{"text_format":"1","workbook":"xlsx","n_sheets":5,"sheets":["Tabelle0","Tabelle1","Tabelle2","Tabelle3","Tabelle4"],"not_rendered":{"charts":0,"images":0,"macros":1,"external_links":0,"defined_names":45,"comments":0,"pivot_tables":0},"unopened":[],"bounds":{"document_bytes":16777216,"sheet_cells":100000,"rows_first":2000,"rows_last":500,"rows_between":2000,"halvings":0,"cell_chars":16384,"cell_head_chars":4096},"cells_cut":0,"cells_raw":0,"read":"whole","date_system":"1904"}

{"sheet":"Tabelle0","index":0,"n_rows":38,"n_cols":128,"rows_kept":38,"cut":false,"hidden":false,"merged":[[0,12,0,23],[4,18,4,19],[16,6,16,20],[16,22,16,30]]}
[null,null,"BINOXXO",null,null,null,null,null,null,null,null,null,"Programmiert von Peter Gallin im\nJanuar 2015\naktualisiert am 22.12.18"]
[null,null,"Bitte gib im Bereich \"Eingabe\" jene x oder o ein, welche beim Spiel gegeben sind. Auf dem Blatt \"Tabelle2\"",null,null,null,null,null,null,null,null,null,null,null,null,null,null,null,null,null,null,null,null,null,null,null,null,null,null,null,"Studie zu Dreier-Loch (Regel 3b)",null,null,null,null,null,null,null,null,null,null,"Studie zu Extremlage (stark)",null,null,null,null,null,null,null,null,null,null,"Studie: keine Extremlage",null,null,null,null,null,null,null,null,null,null,"Studie zu schwacher Extremlage",null,null,null,null,null,null,null,null,null,null,"Studie: keine Extremlage",null,null,null,null,null,null,null,null,null,null,"Studie: keine Extremlage",null,null,null,null,null,null,null,null,null,null,"Studie: keine Extremlage",null,null,null,null,null,null,null,null,null,null,"Studie: keine Extremlage",null,null,null,null,null,null,null,null,null,null,"Studie: keine Extremlage"]
[null,null,"findest du Rätsel, welche du als Ganze kopieren und hier unter \"Eingabe\" einsetzen kannst.",null,null,null,null,null,null,null,null,null,null,null,null,null,null,null,null,null,null,null,null,null,null,null,null,null,null,null,"x","x","o","x","o","o","x","o","o","x",null,"x","x","o",null,null,null,null,null,null,"x",null,"x","x","o",null,null,null,null,"x",null,null,null,"x","x","o",null,null,null,null,null,"x",null,null,"x","x","o","x",null,null,null,null,"o",null,null,"x","o","x","x","o",null,null,null,"o",null,null,"x","x","o","x",null,null,null,null,null,null,null,"o","x","x","o",null,null,null,null,null,"x",null,"x",null,null,null,null,null,null,null,null,"x"]
[null,null,null,null,null,null,null,null,null,null,null,null,null,null,null,null,null,null,null,null,null,null,null,null,null,null,null,null,null,null,"x",null,null,"x","o","o","x",null,"o","x",null,null,null,null,"x","x",null,null,null,null,null,null,null,null,null,"x","x","o","o",null,"o","o",null,null,null,null,"x","x",null,null,null,null,"o",null,"x","x","o","x","x","x","o","o","o","o",null,null,null,null,null,null,"x",null,"x",null,null,null,null,null,null,null,"x",null,null,"x",null,null,null,"o","x","x","o","x",null,"x",null,null,"x",null,"x","x","o","x","o","o","x","o","o","x"]
[null,null,"Eingabe",null,null,null,null,null,null,null,null,null,null,null,"Lösung",null,null,null,null,null,null,null,null,null,null,null,null,null,null,null,null,"o","x",null,null,null,null,"o",null,null,null,null,null,null,"x",null,"x",null,null,null,null,null,null,null,null,"x","o","x","o",null,"o","o",null,null,null,null,"x","o","x","o","o",null,"o",null,"x","x","o","x","x","o","x","o","o","o",null,null,null,null,null,null,null,"x","x",null,null,null,null,null,null,null,null,"x",null,"x",null,null,null,"o","x","x","o","x",null,null,"x",null,"x",null,"x","x","o","o","x","o","x","o","o","x"]
[null,null,null,"o",null,null,"x",null,null,null,"x","x",null,null,"o","o","x","o","x","o","x","o","x","x",null,null,null,null,null,null,null,"o","o",null,null,null,null,"x",null,null,null,null,null,null,"x","o","o","x","o","o",null,null,null,null,null,"x","o","o","x",null,"o","o",null,null,null,null,"x","o","o","x","o",null,"o",null,"x","x","o","x","x","o","o","x","o","o",null,null,null,null,null,null,null,"x",null,null,"x",null,null,null,null,null,null,"x",null,null,"x",null,null,"o","x","x","o",null,"x","x",null,null,"x",null,"x","x","o","o","x","o","o","x","o","x"]
[null,null,null,"o",null,null,"x",null,"o","o",null,null,null,null,null,"o","x","o","x","x","o","o","x",null,null,null,null,null,null,null,null,null,null,null,null,null,null,null,null,null,null,null,null,null,"x",null,null,null,"x",null,null,null,null,null,null,"x",null,null,null,null,"x",null,null,null,null,null,"x",null,null,null,"x",null,null,null,"x","x","o","x","x","o","o","o","o","x",null,null,null,null,null,null,null,null,null,null,null,null,null,null,null,null,null,null,"x","x",null,null,null,"o","x","x","o",null,"x",null,"x",null,"x",null,"x","o","x","x","o","o","x","o","o","x"]
[null,null,null,null,null,null,null,null,null,null,null,null,null,null,null,"x","o","x","o","o","x","x","o",null,null,null,null,null,null,null,null,null,null,null,null,null,null,null,null,null,null,null,null,null,"x",null,null,null,null,"x",null,null,null,null,null,"x",null,null,null,null,null,"x",null,null,null,null,"x",null,null,null,null,null,"x",null,"x","x","o","x","o","x","x","o","o","o",null,null,null,null,null,null,null,null,null,null,null,null,null,null,null,null,null,null,"x",null,"x",null,null,null,null,null,null,null,"x",null,null,"x",null,null,"x","o","x","o","x","o","x","o","o","x"]
[null,null,"o",null,null,null,null,null,null,null,null,"o",null,null,"o","o","x",null,null,"x","o","x","x","o",null,null,null,null,null,null,null,null,null,null,null,null,null,null,null,null,null,null,null,null,null,"x","x",null,null,null,null,null,null,null,null,"o","x","x","o",null,"o","o",null,null,null,null,"o","x","x","o","o",null,"o",null,"x","x","o","x","o","x","o","x","o","o",null,null,null,null,null,null,null,null,null,null,null,null,null,null,null,null,null,null,"x",null,null,"x",null,null,null,null,null,null,null,null,null,null,null,null,"x","o","x","o","o","x","x","o","o","x"]
[null,null,null,"x",null,null,null,"x",null,null,null,null,null,null,null,"x",null,null,null,"x",null,"o",null,null,null,null,null,null,null,null,null,null,null,null,null,null,null,null,null,null,null,null,null,null,"o","x","o","x","o","o",null,null,null,null,null,"o","x","o","x",null,"o","o",null,null,null,null,"o","x","o","x","o",null,"o",null,"x","x","o","x","o","x","o","o","o","x",null,null,null,null,null,null,null,null,null,null,null,null,null,null,null,null,null,null,null,null,null,null,null,null,null,null,null,null,null,null,null,null,null,null,"x","o","x","o","o","x","o","x","o","x"]
[null,null,null,null,null,null,"x",null,null,null,null,null,null,null,null,null,null,null,"x","o",null,null,null,null,null,null,null,null,null,null,null,null,null,null,null,null,null,null,null,null,null,null,null,null,"o","x","o","o","x","o",null,null,null,null,null,"o","x","o","o",null,"x","o",null,null,null,null,"o","x","o","o","x",null,"o",null,"x","x","o","x","o","o","x","x","o","o",null,null,null,null,null,null,null,null,null,null,null,null,null,null,null,null,null,null,null,null,null,null,null,null,null,null,null,null,null,null,null,null,null,null,"x","o","x","o","o","x","o","o","x","x"]
[null,null,null,null,null,null,null,null,null,null,null,"x",null,null,null,null,null,null,"o","x","o",null,null,"x",null,null,null,null,null,null,null,null,null,null,null,null,null,null,null,null,null,null,null,null,null,"x",null,null,null,"x",null,null,null,null,null,"o","x","o","o",null,"o","x",null,null,null,null,null,"x",null,null,null,null,"x",null,"x","x","o","x","o","o","x","o","o","x"]
[null,null,null,null,"x","x",null,"o",null,null,null,null,null,null,null,"o","x","x","o","o","x",null,null,null,null,null,null,null,null,null,null,null,null,null,null,null,null,null,null,null,null,null,null,null,null,null,"x","x",null,null,null,null,null,null,null,null,null,"x","x",null,null,null,null,null,null,null,null,null,"x","x",null,null,null,null,"x","x","o","x","o","o","o","x","o","x"]
[null,null,"x","x",null,null,null,null,null,"o",null,null,null,null,"x","x","o","o","x",null,null,"o",null,null,null,null,null,null,null,null,null,null,null,null,null,null,null,null,null,null,null,null,null,null,null,null,"x",null,"x"]
[null,null,null,null,null,null,null,null,null,null,null,null,null,null,null,"x","o","x","o",null,null,"x",null,null,null,null,null,null,null,null,null,null,null,null,null,null,null,null,null,null,null,null,null,null,null,null,"x",null,null,"x"]
[null,null,null,null,null,null,null,null,null,null,null,null,null,null,null,null,null,null,null,null,null,null,null,null,null,null,null,null,null,null,null,null,null,null,null,null,null,null,null,null,null,null,null,null,null,null,null,"x","x",null,null,null,null,null,null,null,null,null,null,null,null,null,null,null,null,null,null,null,null,null,null,null,null,null,null,null,null,null,null,null,null,null,null,null,null,null,null,null,null,null,null,null,null,null,null,null,null,null,null,null,null,null,null,null,null,null,null,null,null,null,null,null,null,null,null,null,"a"]
[null,null,null,null,null,null,"So weit wie möglich gelöst.",null,null,null,null,null,null,null,null,null,null,null,null,null,null,null,"Extremlagen angewandt",null,null,null,null,null,null,null,null,null,null,null,null,null,null,null,null,null,null,null,null,null,null,null,null,"x",null,"x"]
[null,null,null,null,null,null,null,null,null,null,null,null,null,null,null,null,null,null,null,null,null,null,null,null,null,null,null,null,null,null,null,null,null,null,null,null,null,null,null,null,null,null,null,null,null,null,null,null,"x","x"]
[]
[]
[null,"Wenn du detailliert nach drei Strategien und in kleinen Schritten das Rätsel lösen möchtest,"]
[null,"kannst du die \"Tabelle1\" aktivieren und dort das Rätsel unter \"Gegeben\" eingeben und es dann"]
[null,"ins Spielfeld übertragen lassen. Danach kannst du in drei Etappen vorgehen:"]
[null,"1. Primitives Einsetzen: Jene x oder o werden eingesetzt, welche am Rand von oo oder xx oder zwischen"]
[null,"zwei o oder zwei x liegen müssen."]
[null,"2. Wenn zwischen einem o und einem x zwei Felder frei sind, reserviert man klarerweise für ein xo- "]
[null,"oder ox-Paar dort den Platz. Ausserdem kann evtl. der Rest einer Zeile oder Spalte gefüllt werden,"]
[null,"falls dort schon 5 Zeichen von einer Sorte platziert sind und der Rest eben mit dem anderen Zeichen zu füllen ist."]
[null,"3. Falls in einer Zeile oder Spalte 4 Zeichen einer Sorte platziert sind, die andere Sorte aber weniger als "]
[null,"vier Zeichen hat, dann  kann man probeweise ein fünftes Zeichen der ersten Sorte setzen und schauen, ob"]
[null,"durch das Auffüllen mit der zweiten Sorte ein Fehler entsteht. Ist dies der Fall, kann man dort, wo man das"]
[null,"fünfte Zeichen gesetzt hat, das Zeichen der zweiten Sorte definitiv setzen. Das wird \"Testfüllen\" genannt."]
[null,"4. Die Regel 3 besagt, dass es keine zwei Zeilen (oder Spalten) geben darf, die gleich sind"]
[null,"5. Die Regel 3a behandelt eine dritte Zeile oder Spalte, wenn zwei volle Zeilen oder Spalten bis auf zwei Felder gleich sind."]
[null,"6. Die Regel 3b füllt ein Feld in einem Dreier-Loch, sobald eine volle Zeile oder Spalte mit gleichen Besetzungen existiert."]
[null,"7. Extremlagen (siehe Studien rechts) können geprüft werden."]
[null,"8. Wenn du trotzdem nicht ganz zum Ziel kommst, kannst du mittels Rekursion, alle Möglichkeiten durchtesten."]
[null,"9. Beim Mac bricht man das Programm mit der Befehlstaste und gleichzeitigem Drücken des Punktes ab."]

{"sheet":"Tabelle1","index":1,"n_rows":118,"n_cols":236,"rows_kept":118,"cut":false,"hidden":false,"merged":[[18,43,56,43],[18,65,56,65],[18,131,70,131],[93,135,105,135],[93,136,105,136],[93,137,120,137],[117,148,126,148],[23,47,23,52],[23,53,23,58],[25,47,25,58],[26,47,26,58],[24,53,24,58],[24,47,24,52],[18,61,56,61],[1,26,4,26],[1,27,4,27],[15,28,15,29],[17,27,17,28],[33,16,33,19],[1,25,4,25],[30,26,34,26],[30,27,34,27],[1,24,4,24]]}
[null,null,"BINOXXO"]
[null,null,null,null,null,null,null,null,null,null,null,null,null,null,null,null,null,null,null,null,null,null,null,null,"besetzt","besetzt","Anzahl x","Anzahl o","Anz. soeben ges. Zeichen (Regel 3):",null,null,null,null,null,null,null,null,null,null,0,null,null,"Hier wird geprüft, ob zwei Spalten bis auf drei (d) Felder gleich sind und eine Spalte voll ist."]
[null,null,null,null,null,null,null,null,null,null,null,null,null,null,null,null,null,null,null,null,null,null,null,null,null,null,null,null,"Anz. soeben ges. Zeichen (Regel 3a):",null,null,null,null,null,null,null,null,null,null,0,null,null,{"$f":"IF(AND(COUNTIF(AQ6:AQ15,#VALUE!)=3,COUNTIF(AQ6:AQ15,0)=7),\"d\",\"\")","v":""},{"$f":"IF(AND(COUNTIF(AR6:AR15,#VALUE!)=3,COUNTIF(AR6:AR15,0)=7),\"d\",\"\")","v":""},"","","","","","","","","","","","","","","","","","","","","","","","","","","","","","","","","","","","","","","","","","","","","","","","","","",""]
[null,null,null,null,null,null,null,null,null,null,null,null,null,null,null,null,null,null,null,null,null,null,null,null,null,null,null,null,"Anz. soeben ges. Zeichen (Regel 3b):",null,null,null,null,null,null,null,null,null,null,0,null,null,"Absolute Differenzen zwischen Spalten"]
[null,"Gegeben (vorangehender Stand)",null,null,null,null,null,null,null,null,null,null,null,"Spielfeld",null,null,null,null,null,null,null,null,null,null,null,null,null,null,"Anz. soeb. ges. Zeichen (Extremlage):",null,null,null,null,null,null,null,null,null,null,0,null,null,12,13,14,15,16,17,18,19,"1Z",null,23,24,25,26,27,28,28,"2Z",null,34,35,36,37,38,39,"3Z",null,45,46,47,48,49,"4Z",null,56,57,58,59,"5Z",null,67,68,69,"6Z",null,78,79,"7Z",null,89,"8Z",null,"9Z"]
[null,null,"o","o","x","o","x","o","x","o","x","x",null,null,"o","o","x","o","x","o","x","o","x","x","b","b",{"$f":"COUNTIF(O6:X6,\"x\")+COUNTIF(O6:X6,\"h\")/2","v":5},{"$f":"COUNTIF(O6:X6,\"o\")+COUNTIF(O6:X6,\"h\")/2","v":5},null,null,{"$f":"IF(O6=\"o\",0,IF(O6=\"x\",1,\"\"))","v":0},{"$f":"IF(P6=\"o\",0,IF(P6=\"x\",1,\"\"))","v":0},1,0,1,0,1,0,1,1,null,null,{"$f":"IF(OR($AE6<>\"\",AF6<>\"\"),ABS($AE6-AF6),2)","v":0},{"$f":"IF(OR($AE6<>\"\",AG6<>\"\"),ABS($AE6-AG6),2)","v":1},0,1,0,1,0,1,1,null,{"$f":"IF(OR($AF6<>\"\",AG6<>\"\"),ABS($AF6-AG6),2)","v":1},{"$f":"IF(OR($AF6<>\"\",AH6<>\"\"),ABS($AF6-AH6),2)","v":0},1,0,1,0,1,1,null,{"$f":"IF(OR($AG6<>\"\",AH6<>\"\"),ABS($AG6-AH6),2)","v":1},{"$f":"IF(OR($AG6<>\"\",AI6<>\"\"),ABS($AG6-AI6),2)","v":0},1,0,1,0,0,null,{"$f":"IF(OR($AH6<>\"\",AI6<>\"\"),ABS($AH6-AI6),2)","v":1},{"$f":"IF(OR($AH6<>\"\",AJ6<>\"\"),ABS($AH6-AJ6),2)","v":0},1,0,1,1,null,{"$f":"IF(OR($AI6<>\"\",AJ6<>\"\"),ABS($AI6-AJ6),2)","v":1},{"$f":"IF(OR($AI6<>\"\",AK6<>\"\"),ABS($AI6-AK6),2)","v":0},1,0,0,null,{"$f":"IF(OR($AJ6<>\"\",AK6<>\"\"),ABS($AJ6-AK6),2)","v":1},{"$f":"IF(OR($AJ6<>\"\",AL6<>\"\"),ABS($AJ6-AL6),2)","v":0},1,1,null,{"$f":"IF(OR($AK6<>\"\",AL6<>\"\"),ABS($AK6-AL6),2)","v":1},{"$f":"IF(OR($AK6<>\"\",AM6<>\"\"),ABS($AK6-AM6),2)","v":0},0,null,{"$f":"IF(OR($AL6<>\"\",AM6<>\"\"),ABS($AL6-AM6),2)","v":1},{"$f":"IF(OR($AL6<>\"\",AN6<>\"\"),ABS($AL6-AN6),2)","v":1},null,{"$f":"IF(OR($AM6<>\"\",AN6<>\"\"),ABS($AM6-AN6),2)","v":0}]
[null,null,null,"o","x","o","x","x","o","o","x",null,null,null,null,"o","x","o","x","x","o","o","x",null,"b","b",{"$f":"COUNTIF(O7:X7,\"x\")+COUNTIF(O7:X7,\"h\")/2","v":4},{"$f":"COUNTIF(O7:X7,\"o\")+COUNTIF(O7:X7,\"h\")/2","v":4},null,null,{"$f":"IF(O7=\"o\",0,IF(O7=\"x\",1,\"\"))","v":""},{"$f":"IF(P7=\"o\",0,IF(P7=\"x\",1,\"\"))","v":0},{"$f":"IF(Q7=\"o\",0,IF(Q7=\"x\",1,\"\"))","v":1},{"$f":"IF(R7=\"o\",0,IF(R7=\"x\",1,\"\"))","v":0},{"$f":"IF(S7=\"o\",0,IF(S7=\"x\",1,\"\"))","v":1},{"$f":"IF(T7=\"o\",0,IF(T7=\"x\",1,\"\"))","v":1},{"$f":"IF(U7=\"o\",0,IF(U7=\"x\",1,\"\"))","v":0},{"$f":"IF(V7=\"o\",0,IF(V7=\"x\",1,\"\"))","v":0},{"$f":"IF(W7=\"o\",0,IF(W7=\"x\",1,\"\"))","v":1},{"$f":"IF(X7=\"o\",0,IF(X7=\"x\",1,\"\"))","v":""},null,null,{"$f":"IF(OR($AE7<>\"\",AF7<>\"\"),ABS($AE7-AF7),2)","v":{"$error":"#VALUE!"}},{"$f":"IF(OR($AE7<>\"\",AG7<>\"\"),ABS($AE7-AG7),2)","v":{"$error":"#VALUE!"}},{"$f":"IF(OR($AE7<>\"\",AH7<>\"\"),ABS($AE7-AH7),2)","v":{"$error":"#VALUE!"}},{"$f":"IF(OR($AE7<>\"\",AI7<>\"\"),ABS($AE7-AI7),2)","v":{"$error":"#VALUE!"}},{"$f":"IF(OR($AE7<>\"\",AJ7<>\"\"),ABS($AE7-AJ7),2)","v":{"$error":"#VALUE!"}},{"$f":"IF(OR($AE7<>\"\",AK7<>\"\"),ABS($AE7-AK7),2)","v":{"$error":"#VALUE!"}},{"$f":"IF(OR($AE7<>\"\",AL7<>\"\"),ABS($AE7-AL7),2)","v":{"$error":"#VALUE!"}},{"$f":"IF(OR($AE7<>\"\",AM7<>\"\"),ABS($AE7-AM7),2)","v":{"$error":"#VALUE!"}},{"$f":"IF(OR($AE7<>\"\",AN7<>\"\"),ABS($AE7-AN7),2)","v":2},null,{"$f":"IF(OR($AF7<>\"\",AG7<>\"\"),ABS($AF7-AG7),2)","v":1},{"$f":"IF(OR($AF7<>\"\",AH7<>\"\"),ABS($AF7-AH7),2)","v":0},{"$f":"IF(OR($AF7<>\"\",AI7<>\"\"),ABS($AF7-AI7),2)","v":1},{"$f":"IF(OR($AF7<>\"\",AJ7<>\"\"),ABS($AF7-AJ7),2)","v":1},{"$f":"IF(OR($AF7<>\"\",AK7<>\"\"),ABS($AF7-AK7),2)","v":0},{"$f":"IF(OR($AF7<>\"\",AL7<>\"\"),ABS($AF7-AL7),2)","v":0},{"$f":"IF(OR($AF7<>\"\",AM7<>\"\"),ABS($AF7-AM7),2)","v":1},{"$f":"IF(OR($AF7<>\"\",AN7<>\"\"),ABS($AF7-AN7),2)","v":{"$error":"#VALUE!"}},null,{"$f":"IF(OR($AG7<>\"\",AH7<>\"\"),ABS($AG7-AH7),2)","v":1},{"$f":"IF(OR($AG7<>\"\",AI7<>\"\"),ABS($AG7-AI7),2)","v":0},{"$f":"IF(OR($AG7<>\"\",AJ7<>\"\"),ABS($AG7-AJ7),2)","v":0},{"$f":"IF(OR($AG7<>\"\",AK7<>\"\"),ABS($AG7-AK7),2)","v":1},{"$f":"IF(OR($AG7<>\"\",AL7<>\"\"),ABS($AG7-AL7),2)","v":1},{"$f":"IF(OR($AG7<>\"\",AM7<>\"\"),ABS($AG7-AM7),2)","v":0},{"$f":"IF(OR($AG7<>\"\",AN7<>\"\"),ABS($AG7-AN7),2)","v":{"$error":"#VALUE!"}},null,{"$f":"IF(OR($AH7<>\"\",AI7<>\"\"),ABS($AH7-AI7),2)","v":1},{"$f":"IF(OR($AH7<>\"\",AJ7<>\"\"),ABS($AH7-AJ7),2)","v":1},{"$f":"IF(OR($AH7<>\"\",AK7<>\"\"),ABS($AH7-AK7),2)","v":0},{"$f":"IF(OR($AH7<>\"\",AL7<>\"\"),ABS($AH7-AL7),2)","v":0},{"$f":"IF(OR($AH7<>\"\",AM7<>\"\"),ABS($AH7-AM7),2)","v":1},{"$f":"IF(OR($AH7<>\"\",AN7<>\"\"),ABS($AH7-AN7),2)","v":{"$error":"#VALUE!"}},null,{"$f":"IF(OR($AI7<>\"\",AJ7<>\"\"),ABS($AI7-AJ7),2)","v":0},{"$f":"IF(OR($AI7<>\"\",AK7<>\"\"),ABS($AI7-AK7),2)","v":1},{"$f":"IF(OR($AI7<>\"\",AL7<>\"\"),ABS($AI7-AL7),2)","v":1},{"$f":"IF(OR($AI7<>\"\",AM7<>\"\"),ABS($AI7-AM7),2)","v":0},{"$f":"IF(OR($AI7<>\"\",AN7<>\"\"),ABS($AI7-AN7),2)","v":{"$error":"#VALUE!"}},null,{"$f":"IF(OR($AJ7<>\"\",AK7<>\"\"),ABS($AJ7-AK7),2)","v":1},{"$f":"IF(OR($AJ7<>\"\",AL7<>\"\"),ABS($AJ7-AL7),2)","v":1},{"$f":"IF(OR($AJ7<>\"\",AM7<>\"\"),ABS($AJ7-AM7),2)","v":0},{"$f":"IF(OR($AJ7<>\"\",AN7<>\"\"),ABS($AJ7-AN7),2)","v":{"$error":"#VALUE!"}},null,{"$f":"IF(OR($AK7<>\"\",AL7<>\"\"),ABS($AK7-AL7),2)","v":0},{"$f":"IF(OR($AK7<>\"\",AM7<>\"\"),ABS($AK7-AM7),2)","v":1},{"$f":"IF(OR($AK7<>\"\",AN7<>\"\"),ABS($AK7-AN7),2)","v":{"$error":"#VALUE!"}},null,{"$f":"IF(OR($AL7<>\"\",AM7<>\"\"),ABS($AL7-AM7),2)","v":1},{"$f":"IF(OR($AL7<>\"\",AN7<>\"\"),ABS($AL7-AN7),2)","v":{"$error":"#VALUE!"}},null,{"$f":"IF(OR($AM7<>\"\",AN7<>\"\"),ABS($AM7-AN7),2)","v":{"$error":"#VALUE!"}}]
[null,null,null,"x","o","x","o","o","x","x","o",null,null,null,null,"x","o","x","o","o","x","x","o",null,"b","b",4,4,null,null,"",1,0,1,0,0,1,1,0,"",null,null,{"$error":"#VALUE!"},{"$error":"#VALUE!"},{"$error":"#VALUE!"},{"$error":"#VALUE!"},{"$error":"#VALUE!"},{"$error":"#VALUE!"},{"$error":"#VALUE!"},{"$error":"#VALUE!"},2,null,1,0,1,1,0,0,1,{"$error":"#VALUE!"},null,1,0,0,1,1,0,{"$error":"#VALUE!"},null,1,1,0,0,1,{"$error":"#VALUE!"},null,0,1,1,0,{"$error":"#VALUE!"},null,1,1,0,{"$error":"#VALUE!"},null,0,1,{"$error":"#VALUE!"},null,1,{"$error":"#VALUE!"},null,{"$error":"#VALUE!"}]
[null,null,"o","o","x",null,null,"x","o","x","x","o",null,null,"o","o","x",null,null,"x","o","x","x","o","b","b",4,4,null,null,0,0,1,"","",1,0,1,1,0,null,null,0,1,{"$error":"#VALUE!"},{"$error":"#VALUE!"},1,0,1,1,0,null,1,{"$error":"#VALUE!"},{"$error":"#VALUE!"},1,0,1,1,0,null,{"$error":"#VALUE!"},{"$error":"#VALUE!"},0,1,0,0,1,null,2,{"$error":"#VALUE!"},{"$error":"#VALUE!"},{"$error":"#VALUE!"},{"$error":"#VALUE!"},{"$error":"#VALUE!"},null,{"$error":"#VALUE!"},{"$error":"#VALUE!"},{"$error":"#VALUE!"},{"$error":"#VALUE!"},{"$error":"#VALUE!"},null,1,0,0,1,null,1,1,0,null,0,1,null,1]
[null,null,null,"x",null,null,null,"x",null,"o",null,null,null,null,null,"x",null,null,null,"x",null,"o",null,null,"b","b",2,1,null,null,"",1,"","","",1,"",0,"","",null,null,{"$error":"#VALUE!"},2,2,2,{"$error":"#VALUE!"},2,{"$error":"#VALUE!"},2,2,null,{"$error":"#VALUE!"},{"$error":"#VALUE!"},{"$error":"#VALUE!"},0,{"$error":"#VALUE!"},1,{"$error":"#VALUE!"},{"$error":"#VALUE!"},null,2,2,{"$error":"#VALUE!"},2,{"$error":"#VALUE!"},2,2,null,2,{"$error":"#VALUE!"},2,{"$error":"#VALUE!"},2,2,null,{"$error":"#VALUE!"},2,{"$error":"#VALUE!"},2,2,null,{"$error":"#VALUE!"},1,{"$error":"#VALUE!"},{"$error":"#VALUE!"},null,{"$error":"#VALUE!"},2,2,null,{"$error":"#VALUE!"},{"$error":"#VALUE!"},null,2,null,null,null,null,null,null,null,null,null,null,null,null,null,null,null,null,null,null,null,null,null,null,null,null,null,null,null,null,null,null,null,null,null,null,null,null,null,null,null,null,null,null,null,null,null,null,null,null,null,null,null,null,null,null,null,null,null,null,null,null,null,null,null,null,null,null,null,null,null,null,null,null,null,null,null,null,null,null,null,null,null,null,null,null,null,null,null,null,null,null,null,null,null,null,null,null,null,null,null,null,null,null,null,"Testen des Befehls \"VERGLEICH\""]
[null,null,null,null,null,null,"x","o",null,null,null,null,null,null,null,null,null,null,"x","o",null,null,null,null,"b","b",1,1,null,null,"","","","",1,0,"","","","",null,null,2,2,2,{"$error":"#VALUE!"},{"$error":"#VALUE!"},2,2,2,2,null,2,2,{"$error":"#VALUE!"},{"$error":"#VALUE!"},2,2,2,2,null,2,{"$error":"#VALUE!"},{"$error":"#VALUE!"},2,2,2,2,null,{"$error":"#VALUE!"},{"$error":"#VALUE!"},2,2,2,2,null,1,{"$error":"#VALUE!"},{"$error":"#VALUE!"},{"$error":"#VALUE!"},{"$error":"#VALUE!"},null,{"$error":"#VALUE!"},{"$error":"#VALUE!"},{"$error":"#VALUE!"},{"$error":"#VALUE!"},null,2,2,2,null,2,2,null,2,null,null,null,null,null,null,null,null,null,null,null,null,null,null,null,null,null,null,null,null,null,null,null,null,null,null,null,null,null,null,null,null,null,null,null,null,null,null,null,null,null,null,null,null,null,null,null,null,null,null,null,null,null,null,null,null,null,null,null,null,null,null,null,null,null,null,null,null,null,null,null,null,null,null,null,null,null,null,null,null,null,null,null,null,null,null,null,null,null,null,null,null,null,null,null,null,null,null,null,null,null,null,null,null,null,3,null,null,6,null,null,null,null,{"$f":"MATCH(HB11-1,GQ11:GZ11)","v":3},{"$f":"MATCH(11,GQ11:GZ11)","v":6}]
[null,null,null,null,null,null,"o","x","o",null,null,"x",null,null,null,null,null,null,"o","x","o",null,null,"x","b","b",2,2,null,null,"","","","",0,1,0,"","",1,null,null,2,2,2,{"$error":"#VALUE!"},{"$error":"#VALUE!"},{"$error":"#VALUE!"},2,2,{"$error":"#VALUE!"},null,2,2,{"$error":"#VALUE!"},{"$error":"#VALUE!"},{"$error":"#VALUE!"},2,2,{"$error":"#VALUE!"},null,2,{"$error":"#VALUE!"},{"$error":"#VALUE!"},{"$error":"#VALUE!"},2,2,{"$error":"#VALUE!"},null,{"$error":"#VALUE!"},{"$error":"#VALUE!"},{"$error":"#VALUE!"},2,2,{"$error":"#VALUE!"},null,1,0,{"$error":"#VALUE!"},{"$error":"#VALUE!"},1,null,1,{"$error":"#VALUE!"},{"$error":"#VALUE!"},0,null,{"$error":"#VALUE!"},{"$error":"#VALUE!"},1,null,2,{"$error":"#VALUE!"},null,{"$error":"#VALUE!"}]
[null,null,null,"o","x","x","o","o","x",null,null,null,null,null,null,"o","x","x","o","o","x",null,null,null,"b","b",3,3,null,null,"",0,1,1,0,0,1,"","","",null,null,{"$error":"#VALUE!"},{"$error":"#VALUE!"},{"$error":"#VALUE!"},{"$error":"#VALUE!"},{"$error":"#VALUE!"},{"$error":"#VALUE!"},2,2,2,null,1,1,0,0,1,{"$error":"#VALUE!"},{"$error":"#VALUE!"},{"$error":"#VALUE!"},null,0,1,1,0,{"$error":"#VALUE!"},{"$error":"#VALUE!"},{"$error":"#VALUE!"},null,1,1,0,{"$error":"#VALUE!"},{"$error":"#VALUE!"},{"$error":"#VALUE!"},null,0,1,{"$error":"#VALUE!"},{"$error":"#VALUE!"},{"$error":"#VALUE!"},null,1,{"$error":"#VALUE!"},{"$error":"#VALUE!"},{"$error":"#VALUE!"},null,{"$error":"#VALUE!"},{"$error":"#VALUE!"},{"$error":"#VALUE!"},null,2,2,null,2]
[null,null,"x","x","o","o","x",null,null,"o",null,null,null,null,"x","x","o","o","x",null,null,"o",null,null,"b","b",3,3,null,null,1,1,0,0,1,"","",0,"","",null,null,0,1,1,0,{"$error":"#VALUE!"},{"$error":"#VALUE!"},1,{"$error":"#VALUE!"},{"$error":"#VALUE!"},null,1,1,0,{"$error":"#VALUE!"},{"$error":"#VALUE!"},1,{"$error":"#VALUE!"},{"$error":"#VALUE!"},null,0,1,{"$error":"#VALUE!"},{"$error":"#VALUE!"},0,{"$error":"#VALUE!"},{"$error":"#VALUE!"},null,1,{"$error":"#VALUE!"},{"$error":"#VALUE!"},0,{"$error":"#VALUE!"},{"$error":"#VALUE!"},null,{"$error":"#VALUE!"},{"$error":"#VALUE!"},1,{"$error":"#VALUE!"},{"$error":"#VALUE!"},null,2,{"$error":"#VALUE!"},2,2,null,{"$error":"#VALUE!"},2,2,null,{"$error":"#VALUE!"},{"$error":"#VALUE!"},null,2]
[null,null,null,"x","o","x","o",null,null,"x",null,null,null,null,null,"x","o","x","o",null,null,"x",null,null,"b","b",3,2,"Tot",null,"",1,0,1,0,"","",1,"","",null,null,{"$error":"#VALUE!"},{"$error":"#VALUE!"},{"$error":"#VALUE!"},{"$error":"#VALUE!"},2,2,{"$error":"#VALUE!"},2,2,null,1,0,1,{"$error":"#VALUE!"},{"$error":"#VALUE!"},0,{"$error":"#VALUE!"},{"$error":"#VALUE!"},null,1,0,{"$error":"#VALUE!"},{"$error":"#VALUE!"},1,{"$error":"#VALUE!"},{"$error":"#VALUE!"},null,1,{"$error":"#VALUE!"},{"$error":"#VALUE!"},0,{"$error":"#VALUE!"},{"$error":"#VALUE!"},null,{"$error":"#VALUE!"},{"$error":"#VALUE!"},1,{"$error":"#VALUE!"},{"$error":"#VALUE!"},null,2,{"$error":"#VALUE!"},2,2,null,{"$error":"#VALUE!"},2,2,null,{"$error":"#VALUE!"},{"$error":"#VALUE!"},null,2]
[null,null,null,null,null,null,null,null,null,null,"besetzt",null,null,null,"b","b","b","b","b","b","b","b","b","b",null,null,{"$f":"SUM(AA6:AA15)","v":31},{"$f":"SUM(AB6:AB15)","v":29},{"$f":"AA16+AB16","v":60},null,null,"","","","",null,null,null,null,null,null,null,11,12,13,14,15,16,17,18,19,null,22,23,24,25,26,27,28,29,null,33,34,35,36,37,38,39,null,44,45,46,47,48,49,null,55,56,57,58,59,null,66,67,68,69,null,77,78,79,null,88,89,null,99,null,null,null,null,null,null,null,null,null,null,null,null,null,null,null,null,null,null,null,null,null,null,null,null,null,null,null,null,null,null,null,null,null,null,null,null,null,null,null,"Wenn absolute Differenz zwischen zwei Spalten gleich 2, dann \"Paar\" (p) gefunden, das sich nur in zwei Positionen unterscheidet"]
[null,null,null,null,null,null,null,null,null,null,"Anzahl x",null,null,null,{"$f":"COUNTIF(Spalte1,\"x\")","v":1},{"$f":"COUNTIF(Spalte2,\"x\")","v":4},{"$f":"COUNTIF(Spalte3,\"x\")","v":4},{"$f":"COUNTIF(Spalte4,\"x\")","v":3},{"$f":"COUNTIF(Spalte5,\"x\")","v":4},{"$f":"COUNTIF(Spalte6,\"x\")","v":4},{"$f":"COUNTIF(Spalte7,\"x\")","v":3},{"$f":"COUNTIF(Spalte8,\"x\")","v":3},{"$f":"COUNTIF(Spalte9,\"x\")","v":3},{"$f":"COUNTIF(Spalte10,\"x\")","v":2},null,null,null,"Max",null,null,null,null,null,null,null,null,null,null,null,null,null,null,{"$f":"SUM(AQ6:AQ15)","v":{"$error":"#VALUE!"}},{"$f":"SUM(AR6:AR15)","v":{"$error":"#VALUE!"}},{"$f":"SUM(AS6:AS15)","v":{"$error":"#VALUE!"}},{"$error":"#VALUE!"},{"$error":"#VALUE!"},{"$error":"#VALUE!"},{"$error":"#VALUE!"},{"$error":"#VALUE!"},{"$error":"#VALUE!"},null,{"$error":"#VALUE!"},{"$error":"#VALUE!"},{"$error":"#VALUE!"},{"$error":"#VALUE!"},{"$error":"#VALUE!"},{"$error":"#VALUE!"},{"$error":"#VALUE!"},{"$error":"#VALUE!"},null,{"$error":"#VALUE!"},{"$error":"#VALUE!"},{"$error":"#VALUE!"},{"$error":"#VALUE!"},{"$error":"#VALUE!"},{"$error":"#VALUE!"},{"$error":"#VALUE!"},null,{"$error":"#VALUE!"},{"$error":"#VALUE!"},{"$error":"#VALUE!"},{"$error":"#VALUE!"},{"$error":"#VALUE!"},{"$error":"#VALUE!"},null,{"$error":"#VALUE!"},{"$error":"#VALUE!"},{"$error":"#VALUE!"},{"$error":"#VALUE!"},{"$error":"#VALUE!"},null,{"$error":"#VALUE!"},{"$error":"#VALUE!"},{"$error":"#VALUE!"},{"$error":"#VALUE!"},null,{"$error":"#VALUE!"},{"$error":"#VALUE!"},{"$error":"#VALUE!"},null,{"$error":"#VALUE!"},{"$error":"#VALUE!"},null,{"$error":"#VALUE!"},null,null,null,null,null,null,null,null,null,null,null,null,null,null,null,null,null,null,null,null,null,null,null,null,null,null,null,null,null,null,null,null,null,null,null,null,null,null,null,11,12,13,14,15,16,17,18,19,null,22,23,24,25,26,27,28,29,null,33,34,35,36,37,38,39,null,44,45,46,47,48,49,null,55,56,57,58,59,null,66,67,68,69,null,77,78,79,null,88,89,null,99]
[null,null,null,null,null,null,null,null,null,null,"Anzahl o",null,null,null,{"$f":"COUNTIF(Spalte1,\"o\")","v":2},{"$f":"COUNTIF(Spalte2,\"o\")","v":4},{"$f":"COUNTIF(Spalte3,\"o\")","v":3},{"$f":"COUNTIF(Spalte4,\"o\")","v":3},{"$f":"COUNTIF(Spalte5,\"o\")","v":4},{"$f":"COUNTIF(Spalte6,\"o\")","v":4},{"$f":"COUNTIF(Spalte7,\"o\")","v":3},{"$f":"COUNTIF(Spalte8,\"o\")","v":4},{"$f":"COUNTIF(Spalte9,\"o\")","v":1},{"$f":"COUNTIF(Spalte10,\"o\")","v":1},null,null,null,{"$f":"MAX(Zeilentestbereich,Spaltentestbereich)","v":5},null,"Absolute Differenzen zwischen Zeilen",null,null,null,null,null,null,null,null,null,null,null,null,{"$f":"IF(AND(COUNTIF(AQ6:AQ15,#VALUE!)=2,COUNTIF(AQ6:AQ15,0)=8),\"z\",\"\")","v":""},{"$f":"IF(AND(COUNTIF(AR6:AR15,#VALUE!)=2,COUNTIF(AR6:AR15,0)=8),\"z\",\"\")","v":""},"","","","","","","","","","","","","","","","","","","","","","","","","","","","","","","","","","","","","","","","","","","","","","","","","","",{"$f":"IF(AND(COUNTIF(CQ6:CQ15,#VALUE!)=2,COUNTIF(CQ6:CQ15,0)=8),\"z\",\"\")","v":""},"Hier wird geprüft, ob zwei Spalten bis auf zwei (z) Felder gleich sind und eine Spalte voll ist.",null,null,null,null,null,null,null,null,null,null,null,null,null,null,null,null,null,null,null,null,null,null,null,null,null,null,null,null,null,null,null,null,null,null,null,null,null,null,{"$f":"IF(ISERROR(AQ17),\"\",IF(AQ17=2,\"p\",\"\"))","v":""},{"$f":"IF(ISERROR(AR17),\"\",IF(AR17=2,\"p\",\"\"))","v":""},"","","","","","","","","","","","","","","","","","","","","","","","","","","","","","","","","","","","","","","","","","","","","","","","","","",""]
[null,null,null,null,null,null,null,null,null,null,null,null,null,null,null,null,null,null,null,null,null,null,null,null,null,null,null,null,null,12,{"$f":"IF(OR(AE$6<>\"\",AE7<>\"\"),ABS(AE$6-AE7),2)","v":{"$error":"#VALUE!"}},{"$f":"IF(OR(AF$6<>\"\",AF7<>\"\"),ABS(AF$6-AF7),2)","v":0},0,0,0,1,1,0,0,{"$error":"#VALUE!"},11,{"$f":"SUM(AE19:AN19)","v":{"$error":"#VALUE!"}},{"$f":"IF(AND(COUNTIF(AE19:AN19,#VALUE!)=2,COUNTIF(AE19:AN19,0)=8),\"z\",\"\")","v":""},"Hier wird geprüft, ob zwei Zeilen bis auf zwei (z) Felder gleich sind und eine Zeile voll ist.",null,null,null,null,null,null,null,null,null,null,null,null,null,null,null,null,{"$f":"IF(AND(COUNTIF(AE19:AN19,#VALUE!)=3,COUNTIF(AE19:AN19,0)=7),\"d\",\"\")","v":""},"Hier wird geprüft, ob zwei Zeilen bis auf drei (d) Felder gleich sind und eine Zeile voll ist.",null,{"$f":"IF(BI19=\"d\",INT(AO19/10),\"\")","v":""},{"$f":"IF(BI19=\"d\",AO19-10*BL19+1,\"\")","v":""},"Hier wird angegeben, welche zwei Zeilen bis auf drei leere Felder gleich sind.",null,null,null,null,null,null,null,null,null,null,null,null,null,null,null,null,null,null,null,null,null,null,null,null,null,null,null,null,null,null,null,null,null,null,{"$f":"IF(AQ19=\"z\",INT(AO19/10),\"\")","v":""},{"$f":"IF(AQ19=\"z\",AO19-10*CW19+1,\"\")","v":""},"Hier wird angegeben, welche zwei Zeilen bis auf zwei leere Felder gleich sind.",null,null,null,null,null,null,null,null,null,null,null,null,null,null,null,null,null,null,null,null,null,null,null,null,null,null,null,null,"Wenn absolute Differenz zwischen zweiZeilen gleich 2, dann \"Paar\" (p) gefunden, das sich nur in zwei Positionen unterscheidet.",11,{"$f":"IF(ISERROR(AP19),\"\",IF(AP19=2,\"p\",\"\"))","v":""},null,null,null,null,null,null,null,null,null,null,null,null,null,null,null,null,null,null,null,null,null,null,null,null,null,null,null,null,null,null,null,null,null,null,null,null,null,null,null,null,null,null,null,null,null,null,null,null,null,null,null,null,null,null,null,null,null,null,{"$f":"IF(ED19=\"p\",INT(EC19/10),\"\")","v":""},{"$f":"IF(ED19=\"p\",EC19-10*GK19+1,\"\")","v":""},"Hier wird angegeben, welche zwei vollen Zeilen bis auf zwei Felder gleich sind."]
[null,null,null,null,null,null,null,null,null,null,null,null,null,null,null,null,null,null,null,null,null,null,null,null,null,null,null,null,null,13,{"$f":"IF(OR(AE$6<>\"\",AE8<>\"\"),ABS(AE$6-AE8),2)","v":{"$error":"#VALUE!"}},1,1,1,1,0,0,1,1,{"$error":"#VALUE!"},12,{"$f":"SUM(AE20:AN20)","v":{"$error":"#VALUE!"}},{"$f":"IF(AND(COUNTIF(AE20:AN20,#VALUE!)=2,COUNTIF(AE20:AN20,0)=8),\"z\",\"\")","v":""},null,null,null,null,null,null,null,null,null,null,null,null,null,null,null,null,null,{"$f":"IF(AND(COUNTIF(AE20:AN20,#VALUE!)=3,COUNTIF(AE20:AN20,0)=7),\"d\",\"\")","v":""},null,null,{"$f":"IF(BI20=\"d\",INT(AO20/10),\"\")","v":""},{"$f":"IF(BI20=\"d\",AO20-10*BL20+1,\"\")","v":""},null,null,null,null,null,null,null,null,null,null,null,null,null,null,null,null,null,null,null,null,null,null,null,null,null,null,null,null,null,null,null,null,null,null,null,{"$f":"IF(AQ20=\"z\",INT(AO20/10),\"\")","v":""},{"$f":"IF(AQ20=\"z\",AO20-10*CW20+1,\"\")","v":""},null,null,null,null,null,null,null,null,null,null,null,null,null,null,null,null,null,null,null,null,null,null,null,null,null,null,null,null,null,null,12,{"$f":"IF(ISERROR(AP20),\"\",IF(AP20=2,\"p\",\"\"))","v":""},null,null,null,null,null,null,null,null,null,null,null,null,null,null,null,null,null,null,null,null,null,null,null,null,null,null,null,null,null,null,null,null,null,null,null,null,null,null,null,null,null,null,null,null,null,null,null,null,null,null,null,null,null,null,null,null,null,null,{"$f":"IF(ED20=\"p\",INT(EC20/10),\"\")","v":""},{"$f":"IF(ED20=\"p\",EC20-10*GK20+1,\"\")","v":""}]
[null,null,null,null,null,null,null,null,null,null,null,null,null,null,null,null,null,null,null,null,null,null,null,null,null,null,null,null,null,14,{"$f":"IF(OR(AE$6<>\"\",AE9<>\"\"),ABS(AE$6-AE9),2)","v":0},0,0,{"$error":"#VALUE!"},{"$error":"#VALUE!"},1,1,1,0,1,13,{"$error":"#VALUE!"},"",null,null,null,null,null,null,null,null,null,null,null,null,null,null,null,null,null,"",null,null,"","",null,null,"Zwei Zeilen dazu",null,null,null,null,null,null,null,null,null,null,null,null,null,null,null,null,null,null,null,null,null,null,null,null,null,null,null,null,null,null,null,null,"","",null,null,"Zwei Zeilen dazu",null,null,null,null,null,null,null,null,null,null,null,null,null,null,null,null,null,null,null,null,null,null,null,null,null,null,null,13,"",null,null,null,null,null,null,null,null,null,null,null,null,null,null,null,null,null,null,null,null,null,null,null,null,null,null,null,null,null,null,null,null,null,null,null,null,null,null,null,null,null,null,null,null,null,null,null,null,null,null,null,null,null,null,null,null,null,null,"","",null,null,"Zwei Zeilen"]
[null,null,null,null,null,null,null,null,null,null,null,null,null,null,null,null,null,null,null,null,null,null,null,null,null,null,null,null,null,15,{"$f":"IF(OR(AE$6<>\"\",AE10<>\"\"),ABS(AE$6-AE10),2)","v":{"$error":"#VALUE!"}},1,{"$error":"#VALUE!"},{"$error":"#VALUE!"},{"$error":"#VALUE!"},1,{"$error":"#VALUE!"},0,{"$error":"#VALUE!"},{"$error":"#VALUE!"},14,{"$error":"#VALUE!"},"",null,null,null,null,null,null,null,null,null,null,null,null,null,null,null,null,null,"",null,null,"","",null,null,null,null,{"$f":"OFFSET(O5,$BP$22,0)","v":0},{"$f":"OFFSET(P5,$BP$22,0)","v":0},0,0,0,0,0,0,0,0,null,null,null,null,null,null,null,null,null,null,null,null,null,null,null,null,null,null,null,null,null,"","",null,null,null,null,{"$f":"OFFSET(O5,$DA$22,0)","v":0},{"$f":"OFFSET(P5,$DA$22,0)","v":0},0,0,0,0,0,0,0,0,null,null,null,null,null,null,null,null,null,null,null,null,null,null,null,null,14,"",null,null,null,null,null,null,null,null,null,null,null,null,null,null,null,null,null,null,null,null,null,null,null,null,null,null,null,null,null,null,null,null,null,null,null,null,null,null,null,null,null,null,null,null,null,null,null,null,null,null,null,null,null,null,null,null,null,null,"","",null,null,null,null,{"$f":"OFFSET(O5,$GO$22,0)","v":0},{"$f":"OFFSET(P5,$GO$22,0)","v":0},0,0,0,0,0,0,0,0]
[null,null,null,null,null,null,null,null,null,null,null,null,"Anzahl soeben gesetzter Zeichen:",null,null,null,null,null,null,null,null,null,null,null,0,null,null,null,null,16,{"$f":"IF(OR(AE$6<>\"\",AE11<>\"\"),ABS(AE$6-AE11),2)","v":{"$error":"#VALUE!"}},{"$error":"#VALUE!"},{"$error":"#VALUE!"},{"$error":"#VALUE!"},0,0,{"$error":"#VALUE!"},{"$error":"#VALUE!"},{"$error":"#VALUE!"},{"$error":"#VALUE!"},15,{"$error":"#VALUE!"},"",null,null,null,null,null,null,null,null,null,null,null,null,null,null,null,null,null,"",null,null,"","",null,null,null,null,{"$f":"OFFSET(O5,$BP$23,0)","v":0},{"$f":"OFFSET(P5,$BP$23,0)","v":0},0,0,0,0,0,0,0,0,null,null,null,null,null,null,null,null,null,null,null,null,null,null,null,null,null,null,null,null,null,"","",null,null,null,null,{"$f":"OFFSET(O5,$DA$23,0)","v":0},{"$f":"OFFSET(P5,$DA$23,0)","v":0},0,0,0,0,0,0,0,0,null,null,null,null,null,null,null,null,null,null,null,null,null,null,null,null,15,"",null,null,null,null,null,null,null,null,null,null,null,null,null,null,null,null,null,null,null,null,null,null,null,null,null,null,null,null,null,null,null,null,null,null,null,null,null,null,null,null,null,null,null,null,null,null,null,null,null,null,null,null,null,null,null,null,null,null,"","",null,null,null,null,{"$f":"OFFSET(O5,$GO$23,0)","v":0},{"$f":"OFFSET(P5,$GO$23,0)","v":0},0,0,0,0,0,0,0,0,"1.Z.","2.Z."]
[null,null,null,null,null,null,null,null,null,null,null,null,null,null,null,null,null,null,null,null,null,null,null,null,null,null,null,null,null,17,{"$f":"IF(OR(AE$6<>\"\",AE12<>\"\"),ABS(AE$6-AE12),2)","v":{"$error":"#VALUE!"}},{"$error":"#VALUE!"},{"$error":"#VALUE!"},{"$error":"#VALUE!"},1,1,1,{"$error":"#VALUE!"},{"$error":"#VALUE!"},0,16,{"$error":"#VALUE!"},"",null,null,null,null,"Zeilenprüfung",null,null,null,null,null,"Spaltenprüfung",null,null,null,null,null,null,"",null,null,"","",null,null,null,null,null,null,null,null,null,null,null,null,null,null,null,null,null,null,null,null,null,null,null,null,null,null,null,null,null,null,null,null,null,null,null,"","",null,null,null,null,null,null,null,null,null,null,null,null,null,null,null,null,null,null,null,null,null,null,null,null,null,null,null,null,null,null,16,"",null,null,null,null,null,null,null,null,null,null,null,null,null,null,null,null,null,null,null,null,null,null,null,null,null,null,null,null,null,null,null,null,null,null,null,null,null,null,null,null,null,null,null,null,null,null,null,null,null,null,null,null,null,null,null,null,null,null,"","",null,null,null,null,{"$f":"IF(GQ23<>GQ22,COLUMN()-198,\"\")","v":""},{"$f":"IF(GR23<>GR22,COLUMN()-198,\"\")","v":""},"","","","","","","","",{"$f":"MATCH(HB24-1,GQ24:GZ24)","v":{"$error":"#N/A"}},{"$f":"MATCH(11,GQ24:GZ24)","v":{"$error":"#N/A"}},"<--","Angabe des Ortes der Verschiedenen"]
[null,null,null,null,null,null,null,null,null,null,null,null,null,null,null,null,null,null,null,null,null,null,null,null,null,null,null,null,null,18,{"$f":"IF(OR(AE$6<>\"\",AE13<>\"\"),ABS(AE$6-AE13),2)","v":{"$error":"#VALUE!"}},0,0,1,1,0,0,{"$error":"#VALUE!"},{"$error":"#VALUE!"},{"$error":"#VALUE!"},17,{"$error":"#VALUE!"},"",null,null,null,null,{"$f":"IF(COUNTIF(AP19:AP71,0)>0,\"Gleiche Zeilen\",\"OK\")","v":"OK"},null,null,null,null,null,{"$f":"IF(COUNTIF(AQ17:CQ17,0)>0,\"Gleiche Spalten\",\"OK\")","v":"OK"},null,null,null,null,null,null,"",null,null,"","",null,null,null,null,null,null,null,null,null,null,null,null,null,null,null,null,null,null,null,null,null,null,null,null,null,null,null,null,null,null,null,null,null,null,null,"","",null,null,null,null,null,null,null,null,null,null,null,null,null,null,null,null,null,null,null,null,null,null,null,null,null,null,null,null,null,null,17,"",null,null,null,null,null,null,null,null,null,null,null,null,null,null,null,null,null,null,null,null,null,null,null,null,null,null,null,null,null,null,null,null,null,null,null,null,null,null,null,null,null,null,null,null,null,null,null,null,null,null,null,null,null,null,null,null,null,null,"","","3.Zeile-Nr.",null,null,null,null,null,null,null,null,null,null,null,null,null,{"$f":"COUNTIF(GQ25:GZ25,\"x\")","v":0},{"$f":"COUNTIF(GQ25:GZ25,\"o\")","v":0},"<--","Anzahl x resp. Anzahl o"]
[null,null,null,null,null,null,null,null,null,null,null,null,"Anzahl soeben gesetzter Zeichen:",null,null,null,null,null,null,null,null,null,null,null,0,null,null,null,null,19,{"$f":"IF(OR(AE$6<>\"\",AE14<>\"\"),ABS(AE$6-AE14),2)","v":1},1,1,0,0,{"$error":"#VALUE!"},{"$error":"#VALUE!"},0,{"$error":"#VALUE!"},{"$error":"#VALUE!"},18,{"$error":"#VALUE!"},"",null,null,null,null,"Gesamtidentitätsprüfung: 1=OK",null,null,null,null,null,null,null,null,null,null,null,null,"",null,null,"","",null,null,null,null,null,null,null,null,null,null,null,null,null,null,null,null,null,null,null,null,null,null,null,null,null,null,null,null,null,null,null,null,null,null,null,"","",null,null,null,null,null,null,null,null,null,null,null,null,null,null,null,null,null,null,null,null,null,null,null,null,null,null,null,null,null,null,18,"",null,null,null,null,null,null,null,null,null,null,null,null,null,null,null,null,null,null,null,null,null,null,null,null,null,null,null,null,null,null,null,null,null,null,null,null,null,null,null,null,null,null,null,null,null,null,null,null,null,null,null,null,null,null,null,null,null,null,"","",null,null,null,null,{"$f":"IF(AND(GQ25<>\"\",GQ25=GQ23),1,0)","v":0},{"$f":"IF(AND(GR25<>\"\",GR25=GR23),1,0)","v":0},0,0,0,0,0,0,0,0,{"$f":"IF(SUM(GQ26:GZ26)=HA25+HB25,\"ja\",\"nein\")","v":"ja"},null,"<--","Prüfen, ob die eingesetzte 3. Zeile überall identisch mit zwei Zeilen ausser bei Leeren."]
[null,null,null,null,null,null,null,null,null,null,null,null,null,null,null,null,null,null,null,null,null,null,null,null,null,null,null,null,null,"1Z",{"$f":"IF(OR(AE$6<>\"\",AE15<>\"\"),ABS(AE$6-AE15),2)","v":{"$error":"#VALUE!"}},1,1,1,1,{"$error":"#VALUE!"},{"$error":"#VALUE!"},1,{"$error":"#VALUE!"},{"$error":"#VALUE!"},19,{"$error":"#VALUE!"},"",null,null,null,null,{"$f":"IF(AND(Zeilenpruefung=\"OK\",Spaltenpruefung=\"OK\"),1,0)","v":1},null,null,null,null,null,null,null,null,null,null,null,null,"",null,null,"","",null,null,null,null,null,null,null,null,null,null,null,null,null,null,null,null,null,null,null,null,null,null,null,null,null,null,null,null,null,null,null,null,null,null,null,"","",null,null,null,null,null,null,null,null,null,null,null,null,null,null,null,null,null,null,null,null,null,null,null,null,null,null,null,null,null,null,19,"",null,null,null,null,null,null,null,null,null,null,null,null,null,null,null,null,null,null,null,null,null,null,null,null,null,null,null,null,null,null,null,null,null,null,null,null,null,null,null,null,null,null,null,null,null,null,null,null,null,null,null,null,null,null,null,null,null,null,"","",null,null,null,1,null,null,null,null,null,null,null,null,null,null,null,null,null,{"$f":"IF(AND(GQ27=GP27,GQ27=GR27),\"f\",\"\")","v":""},{"$f":"IF(AND(GR27=GQ27,GR27=GS27),\"f\",\"\")","v":"f"},"f","f","f","f","f","f","f","f",{"$f":"COUNTIF(HD27:HM27,\"f\")+HN39+HN51","v":29},null,null,{"$f":"IF($HN27=0,GQ27,\"\")","v":""},{"$f":"IF($HN27=0,GR27,\"\")","v":""},"","","","","","","",""]
[null,null,null,null,null,null,null,null,null,null,null,null,null,null,null,null,null,null,null,null,null,null,null,null,null,null,null,null,null,null,null,null,null,null,null,null,null,null,null,null,null,null,"",null,null,null,null,null,null,null,null,null,null,null,null,null,null,null,null,null,"",null,null,"","",null,null,null,null,null,null,null,null,null,null,null,null,null,null,null,null,null,null,null,null,null,null,null,null,null,null,null,null,null,null,null,null,null,null,null,"","",null,null,null,null,null,null,null,null,null,null,null,null,null,null,null,null,null,null,null,null,null,null,null,null,null,null,null,null,null,null,null,"",null,null,null,null,null,null,null,null,null,null,null,null,null,null,null,null,null,null,null,null,null,null,null,null,null,null,null,null,null,null,null,null,null,null,null,null,null,null,null,null,null,null,null,null,null,null,null,null,null,null,null,null,null,null,null,null,null,null,"","",null,null,null,2,null,null,null,null,null,null,null,null,null,null,null,null,null,{"$f":"IF(AND(GQ28=GP28,GQ28=GR28),\"f\",\"\")","v":""},{"$f":"IF(AND(GR28=GQ28,GR28=GS28),\"f\",\"\")","v":"f"},{"$f":"IF(AND(GS28=GR28,GS28=GT28),\"f\",\"\")","v":"f"},{"$f":"IF(AND(GT28=GS28,GT28=GU28),\"f\",\"\")","v":"f"},{"$f":"IF(AND(GU28=GT28,GU28=GV28),\"f\",\"\")","v":"f"},{"$f":"IF(AND(GV28=GU28,GV28=GW28),\"f\",\"\")","v":"f"},{"$f":"IF(AND(GW28=GV28,GW28=GX28),\"f\",\"\")","v":"f"},{"$f":"IF(AND(GX28=GW28,GX28=GY28),\"f\",\"\")","v":"f"},{"$f":"IF(AND(GY28=GX28,GY28=GZ28),\"f\",\"\")","v":"f"},{"$f":"IF(AND(GZ28=GY28,GZ28=HA28),\"f\",\"\")","v":"f"},{"$f":"COUNTIF(HD28:HM28,\"f\")+HN40+HN52","v":29},null,null,{"$f":"IF($HN28=0,GQ28,\"\")","v":""},{"$f":"IF($HN28=0,GR28,\"\")","v":""},{"$f":"IF($HN28=0,GS28,\"\")","v":""},{"$f":"IF($HN28=0,GT28,\"\")","v":""},{"$f":"IF($HN28=0,GU28,\"\")","v":""},{"$f":"IF($HN28=0,GV28,\"\")","v":""},{"$f":"IF($HN28=0,GW28,\"\")","v":""},{"$f":"IF($HN28=0,GX28,\"\")","v":""},{"$f":"IF($HN28=0,GY28,\"\")","v":""},{"$f":"IF($HN28=0,GZ28,\"\")","v":""}]
[null,null,null,null,null,null,null,null,null,null,null,null,"Anzahl soeben gesetzter Zeichen:",null,null,null,null,null,null,null,null,null,null,null,0,null,null,null,null,23,{"$f":"IF(OR(AE$7<>\"\",AE8<>\"\"),ABS(AE$7-AE8),2)","v":2},{"$f":"IF(OR(AF$7<>\"\",AF8<>\"\"),ABS(AF$7-AF8),2)","v":1},1,1,1,1,1,1,1,2,22,12,"",null,null,null,null,null,null,null,null,null,null,null,null,null,null,null,null,null,"",null,null,"","",null,null,null,null,null,null,null,null,null,null,null,null,null,null,null,null,null,null,null,null,null,null,null,null,null,null,null,null,null,null,null,null,null,null,null,"","",null,null,null,null,null,null,null,null,null,null,null,null,null,null,null,null,null,null,null,null,null,null,null,null,null,null,null,null,null,null,22,"",null,null,null,null,null,null,null,null,null,null,null,null,null,null,null,null,null,null,null,null,null,null,null,null,null,null,null,null,null,null,null,null,null,null,null,null,null,null,null,null,null,null,null,null,null,null,null,null,null,null,null,null,null,null,null,null,null,null,"","",null,null,null,3,null,null,null,null,null,null,null,null,null,null,null,null,null,"","f","f","f","f","f","f","f","f","f",29,null,null,"","","","","","","","","",""]
[null,null,null,null,null,null,null,null,null,null,null,null,null,null,null,null,null,null,null,null,null,null,null,null,null,null,null,null,null,24,{"$f":"IF(OR(AE$7<>\"\",AE9<>\"\"),ABS(AE$7-AE9),2)","v":{"$error":"#VALUE!"}},0,0,{"$error":"#VALUE!"},{"$error":"#VALUE!"},0,0,1,0,{"$error":"#VALUE!"},23,{"$error":"#VALUE!"},"",null,null,null,null,null,null,null,null,null,null,null,null,null,null,null,null,null,"",null,null,"","",null,null,null,null,null,null,null,null,null,null,null,null,null,null,null,null,null,null,null,null,null,null,null,null,null,null,null,null,null,null,null,null,null,null,null,"","",null,null,null,null,null,null,null,null,null,null,null,null,null,null,null,null,null,null,null,null,null,null,null,null,null,null,null,null,null,null,23,"",null,null,null,null,null,null,null,null,null,null,null,null,null,null,null,null,null,null,null,null,null,null,null,null,null,null,null,null,null,null,null,null,null,null,null,null,null,null,null,null,null,null,null,null,null,null,null,null,null,null,null,null,null,null,null,null,null,null,"","",null,null,null,4,null,null,null,null,null,null,null,null,null,null,null,null,null,"","f","f","f","f","f","f","f","f","f",29,null,null,"","","","","","","","","",""]
[null,null,null,null,null,null,null,null,null,null,null,null,null,null,null,null,null,null,null,null,null,null,null,null,null,null,"Anzahl x +h/2","Anzahl o +h/2",null,25,{"$f":"IF(OR(AE$7<>\"\",AE10<>\"\"),ABS(AE$7-AE10),2)","v":2},1,{"$error":"#VALUE!"},{"$error":"#VALUE!"},{"$error":"#VALUE!"},0,{"$error":"#VALUE!"},0,{"$error":"#VALUE!"},2,24,{"$error":"#VALUE!"},"",null,null,null,null,null,null,null,null,null,null,null,null,null,null,null,null,null,"",null,null,"","",null,null,null,null,null,null,null,null,null,null,null,null,null,null,null,null,null,null,null,null,null,null,null,null,null,null,null,null,null,null,null,null,null,null,null,"","",null,null,null,null,null,null,null,null,null,null,null,null,null,null,null,null,null,null,null,null,null,null,null,null,null,null,null,null,null,null,24,"",null,null,null,null,null,null,null,null,null,null,null,null,null,null,null,null,null,null,null,null,null,null,null,null,null,null,null,null,null,null,null,null,null,null,null,null,null,null,null,null,null,null,null,null,null,null,null,null,null,null,null,null,null,null,null,null,null,null,"","",null,null,null,5,null,null,null,null,null,null,null,null,null,null,null,null,null,"","f","f","f","f","f","f","f","f","f",29,null,null,"","","","","","","","","",""]
[null,null,null,null,null,null,null,null,null,null,null,null,null,null,null,null,null,null,null,null,null,null,null,null,null,null,null,null,null,26,{"$f":"IF(OR(AE$7<>\"\",AE11<>\"\"),ABS(AE$7-AE11),2)","v":2},{"$error":"#VALUE!"},{"$error":"#VALUE!"},{"$error":"#VALUE!"},0,1,{"$error":"#VALUE!"},{"$error":"#VALUE!"},{"$error":"#VALUE!"},2,25,{"$error":"#VALUE!"},"",null,null,null,null,null,null,null,null,null,null,null,null,null,null,null,null,null,"",null,null,"","",null,null,null,null,null,null,null,null,null,null,null,null,null,null,null,null,null,null,null,null,null,null,null,null,null,null,null,null,null,null,null,null,null,null,null,"","",null,null,null,null,null,null,null,null,null,null,null,null,null,null,null,null,null,null,null,null,null,null,null,null,null,null,null,null,null,null,25,"",null,null,null,null,null,null,null,null,null,null,null,null,null,null,null,null,null,null,null,null,null,null,null,null,null,null,null,null,null,null,null,null,null,null,null,null,null,null,null,null,null,null,null,null,null,null,null,null,null,null,null,null,null,null,null,null,null,null,"","",null,null,null,6,null,null,null,null,null,null,null,null,null,null,null,null,null,"","f","f","f","f","f","f","f","f","f",29,null,null,"","","","","","","","","",""]
[null,null,null,null,null,null,null,null,null,null,null,null,null,null,null,null,null,null,null,null,null,null,null,null,null,null,null,null,null,27,{"$f":"IF(OR(AE$7<>\"\",AE12<>\"\"),ABS(AE$7-AE12),2)","v":2},{"$error":"#VALUE!"},{"$error":"#VALUE!"},{"$error":"#VALUE!"},1,0,0,{"$error":"#VALUE!"},{"$error":"#VALUE!"},{"$error":"#VALUE!"},26,{"$error":"#VALUE!"},"",null,null,null,null,null,null,null,null,null,null,null,null,null,null,null,null,null,"",null,null,"","",null,null,null,null,null,null,null,null,null,null,null,null,null,null,null,null,null,null,null,null,null,null,null,null,null,null,null,null,null,null,null,null,null,null,null,"","",null,null,null,null,null,null,null,null,null,null,null,null,null,null,null,null,null,null,null,null,null,null,null,null,null,null,null,null,null,null,26,"",null,null,null,null,null,null,null,null,null,null,null,null,null,null,null,null,null,null,null,null,null,null,null,null,null,null,null,null,null,null,null,null,null,null,null,null,null,null,null,null,null,null,null,null,null,null,null,null,null,null,null,null,null,null,null,null,null,null,"","",null,null,null,7,null,null,null,null,null,null,null,null,null,null,null,null,null,"","f","f","f","f","f","f","f","f","f",29,null,null,"","","","","","","","","",""]
[null,null,null,null,null,null,null,null,null,null,"Pruefergebnis:",null,null,null,null,null,"OK",null,null,null,null,null,null,null,null,null,null,null,null,28,{"$f":"IF(OR(AE$7<>\"\",AE13<>\"\"),ABS(AE$7-AE13),2)","v":2},0,0,1,1,1,1,{"$error":"#VALUE!"},{"$error":"#VALUE!"},2,27,{"$error":"#VALUE!"},"",null,null,null,null,null,null,null,null,null,null,null,null,null,null,null,null,null,"",null,null,"","",null,null,null,null,null,null,null,null,null,null,null,null,null,null,null,null,null,null,null,null,null,null,null,null,null,null,null,null,null,null,null,null,null,null,null,"","",null,null,null,null,null,null,null,null,null,null,null,null,null,null,null,null,null,null,null,null,null,null,null,null,null,null,null,null,null,null,27,"",null,null,null,null,null,null,null,null,null,null,null,null,null,null,null,null,null,null,null,null,null,null,null,null,null,null,null,null,null,null,null,null,null,null,null,null,null,null,null,null,null,null,null,null,null,null,null,null,null,null,null,null,null,null,null,null,null,null,"","",null,null,null,8,null,null,null,null,null,null,null,null,null,null,null,null,null,"","f","f","f","f","f","f","f","f","f",29,null,null,"","","","","","","","","",""]
[null,null,null,null,null,null,null,null,null,null,null,null,null,null,null,null,null,null,null,null,null,null,null,null,null,null,null,null,null,29,{"$f":"IF(OR(AE$7<>\"\",AE14<>\"\"),ABS(AE$7-AE14),2)","v":{"$error":"#VALUE!"}},1,1,0,0,{"$error":"#VALUE!"},{"$error":"#VALUE!"},0,{"$error":"#VALUE!"},2,28,{"$error":"#VALUE!"},"",null,"Zeilen-Spuren",null,null,null,null,null,null,null,null,null,null,null,null,null,null,null,"",null,null,"","",null,null,null,null,null,null,null,null,null,null,null,null,null,null,null,null,null,null,null,null,null,null,null,null,null,null,null,null,null,null,null,null,null,null,null,"","",null,null,null,null,null,null,null,null,null,null,null,null,null,null,null,null,null,null,null,null,null,null,null,null,null,null,null,null,null,null,28,"",null,null,null,null,null,null,null,null,null,null,null,null,null,null,null,null,null,null,null,null,null,null,null,null,null,null,null,null,null,null,null,null,null,null,null,null,null,null,null,null,null,null,null,null,null,null,null,null,null,null,null,null,null,null,null,null,null,null,"","",null,null,null,9,null,null,null,null,null,null,null,null,null,null,null,null,null,"","f","f","f","f","f","f","f","f","f",29,null,null,"","","","","","","","","",""]
[null,null,null,null,null,"Spielfeld mit Paaren H",null,null,null,null,null,null,null,null,"o","o","x","o","x","o","x","o","x","x",null,null,{"$f":"COUNTIF(O36:X36,\"x\")+COUNTIF(O36:X36,\"h\")/2","v":5},{"$f":"COUNTIF(O36:X36,\"o\")+COUNTIF(O36:X36,\"h\")/2","v":5},null,"2Z",{"$f":"IF(OR(AE$7<>\"\",AE15<>\"\"),ABS(AE$7-AE15),2)","v":2},1,1,1,1,{"$error":"#VALUE!"},{"$error":"#VALUE!"},1,{"$error":"#VALUE!"},2,29,{"$error":"#VALUE!"},"",null,null,null,null,null,null,null,null,null,null,null,null,null,null,null,null,null,"",null,null,"","",null,null,null,null,null,null,null,null,null,null,null,null,null,null,null,null,null,null,null,null,null,null,null,null,null,null,null,null,null,null,null,null,null,null,null,"","",null,null,null,null,null,null,null,null,null,null,null,null,null,null,null,null,null,null,null,null,null,null,null,null,null,null,null,null,null,null,29,"",null,null,null,null,null,null,null,null,null,null,null,null,null,null,null,null,null,null,null,null,null,null,null,null,null,null,null,null,null,null,null,null,null,null,null,null,null,null,null,null,null,null,null,null,null,null,null,null,null,null,null,null,null,null,null,null,null,null,"","",null,null,null,10,null,null,null,null,null,null,null,null,null,null,null,null,null,"","f","f","f","f","f","f","f","f","f",29,null,null,"","","","","","","","","",""]
[null,null,null,null,null,null,null,null,null,null,null,null,null,null,null,"o","x","o","x","x","o","o","x",null,null,null,{"$f":"COUNTIF(O37:X37,\"x\")+COUNTIF(O37:X37,\"h\")/2","v":4},{"$f":"COUNTIF(O37:X37,\"o\")+COUNTIF(O37:X37,\"h\")/2","v":4},null,null,null,null,null,null,null,null,null,null,null,null,null,null,"",null,null,null,null,null,null,null,null,null,null,null,null,null,null,null,null,null,"",null,null,"","",null,null,null,null,null,null,null,null,null,null,null,null,null,null,null,null,null,null,null,null,null,null,null,null,null,null,null,null,null,null,null,null,null,null,null,"","",null,null,null,null,null,null,null,null,null,null,null,null,null,null,null,null,null,null,null,null,null,null,null,null,null,null,null,null,null,null,null,"",null,null,null,null,null,null,null,null,null,null,null,null,null,null,null,null,null,null,null,null,null,null,null,null,null,null,null,null,null,null,null,null,null,null,null,null,null,null,null,null,null,null,null,null,null,null,null,null,null,null,null,null,null,null,null,null,null,null,"","",null,null,null,null,null,null,null,null,null,null,null,null,null,null,null,null,null,null,null,null,null,null,null,null,null,null,null,{"$f":"IF(COUNTIF(HN27:HN36,0)=0,-1,COUNTIF(HN27:HN36,0))","v":-1},null,null,{"$f":"IF(COUNTIF(HQ27:HQ36,\"x\")=$HN37,\"x\",IF(COUNTIF(HQ27:HQ36,\"o\")=$HN37,\"o\",\"\"))","v":""},{"$f":"IF(COUNTIF(HR27:HR36,\"x\")=$HN37,\"x\",IF(COUNTIF(HR27:HR36,\"o\")=$HN37,\"o\",\"\"))","v":""},"","","","","","","","","<--","mögliche Setzungen"]
[null,null,null,null,null,null,null,null,null,null,null,null,null,null,null,"x","o","x","o","o","x","x","o",null,null,null,{"$f":"COUNTIF(O38:X38,\"x\")+COUNTIF(O38:X38,\"h\")/2","v":4},4,null,34,{"$f":"IF(OR(AE$8<>\"\",AE9<>\"\"),ABS(AE$8-AE9),2)","v":{"$error":"#VALUE!"}},{"$f":"IF(OR(AF$8<>\"\",AF9<>\"\"),ABS(AF$8-AF9),2)","v":1},1,{"$error":"#VALUE!"},{"$error":"#VALUE!"},1,1,0,1,{"$error":"#VALUE!"},33,{"$error":"#VALUE!"},"",null,null,null,null,null,null,null,null,null,null,null,null,null,null,null,null,null,"",null,null,"","",null,null,null,null,null,null,null,null,null,null,null,null,null,null,null,null,null,null,null,null,null,null,null,null,null,null,null,null,null,null,null,null,null,null,null,"","",null,null,null,null,null,null,null,null,null,null,null,null,null,null,null,null,null,null,null,null,null,null,null,null,null,null,null,null,null,null,33,"",null,null,null,null,null,null,null,null,null,null,null,null,null,null,null,null,null,null,null,null,null,null,null,null,null,null,null,null,null,null,null,null,null,null,null,null,null,null,null,null,null,null,null,null,null,null,null,null,null,null,null,null,null,null,null,null,null,null,"","",null,null,null,"Vorlagen 5a",null,null,null,null,null,"Vorlagen 5b",null,null,null,null,null,null,null,"Vergleich mit erster gelber Zeile"]
[null,null,null,null,null,null,null,null,null,null,null,null,null,null,"o","o","x","h","h","x","o","x","x","o",null,null,5,5,null,35,{"$f":"IF(OR(AE$8<>\"\",AE10<>\"\"),ABS(AE$8-AE10),2)","v":2},0,{"$error":"#VALUE!"},{"$error":"#VALUE!"},{"$error":"#VALUE!"},1,{"$error":"#VALUE!"},1,{"$error":"#VALUE!"},2,34,{"$error":"#VALUE!"},"",null,null,null,null,null,null,null,null,null,null,null,null,null,null,null,null,null,"",null,null,"","",null,null,null,null,null,null,null,null,null,null,null,null,null,null,null,null,null,null,null,null,null,null,null,null,null,null,null,null,null,null,null,null,null,null,null,"","",null,null,null,null,null,null,null,null,null,null,null,null,null,null,null,null,null,null,null,null,null,null,null,null,null,null,null,null,null,null,34,"",null,null,null,null,null,null,null,null,null,null,null,null,null,null,null,null,null,null,null,null,null,null,null,null,null,null,null,null,null,null,null,null,null,null,null,null,null,null,null,null,null,null,null,null,null,null,null,null,null,null,null,null,null,null,null,null,null,null,"","",null,null,1,"x","x","o","o","o",null,"o","o","x","x","x",null,null,null,{"$f":"IF(GQ$22=GQ27,1,0)","v":1},{"$f":"IF(GR$22=GR27,1,0)","v":1},1,1,1,1,1,1,1,{"$f":"IF(GZ$22=GZ27,1,0)","v":1},{"$f":"IF(SUM(HD39:HM39)=10,10,0)","v":10}]
[null,null,null,null,null,null,null,null,null,null,null,null,null,null,null,"x",null,null,null,"x",null,"o",null,null,null,null,2,1,null,36,{"$f":"IF(OR(AE$8<>\"\",AE11<>\"\"),ABS(AE$8-AE11),2)","v":2},{"$error":"#VALUE!"},{"$error":"#VALUE!"},{"$error":"#VALUE!"},1,0,{"$error":"#VALUE!"},{"$error":"#VALUE!"},{"$error":"#VALUE!"},2,35,{"$error":"#VALUE!"},"",null,null,null,null,null,null,null,null,null,null,null,null,null,null,null,null,null,"",null,null,"","",null,null,null,null,null,null,null,null,null,null,null,null,null,null,null,null,null,null,null,null,null,null,null,null,null,null,null,null,null,null,null,null,null,null,null,"","",null,null,null,null,null,null,null,null,null,null,null,null,null,null,null,null,null,null,null,null,null,null,null,null,null,null,null,null,null,null,35,"",null,null,null,null,null,null,null,null,null,null,null,null,null,null,null,null,null,null,null,null,null,null,null,null,null,null,null,null,null,null,null,null,null,null,null,null,null,null,null,null,null,null,null,null,null,null,null,null,null,null,null,null,null,null,null,null,null,null,"","",null,null,2,"x","o","x","o","o",null,"o","x","o","x","x",null,null,null,{"$f":"IF(GQ$22=GQ28,1,0)","v":1},{"$f":"IF(GR$22=GR28,1,0)","v":1},{"$f":"IF(GS$22=GS28,1,0)","v":1},{"$f":"IF(GT$22=GT28,1,0)","v":1},{"$f":"IF(GU$22=GU28,1,0)","v":1},{"$f":"IF(GV$22=GV28,1,0)","v":1},{"$f":"IF(GW$22=GW28,1,0)","v":1},{"$f":"IF(GX$22=GX28,1,0)","v":1},{"$f":"IF(GY$22=GY28,1,0)","v":1},1,{"$f":"IF(SUM(HD40:HM40)=10,10,0)","v":10}]
[null,null,null,null,null,null,null,null,null,null,null,null,null,null,null,null,null,null,"x","o",null,null,null,null,null,null,1,1,null,37,{"$f":"IF(OR(AE$8<>\"\",AE12<>\"\"),ABS(AE$8-AE12),2)","v":2},{"$error":"#VALUE!"},{"$error":"#VALUE!"},{"$error":"#VALUE!"},0,1,1,{"$error":"#VALUE!"},{"$error":"#VALUE!"},{"$error":"#VALUE!"},36,{"$error":"#VALUE!"},"",null,null,null,null,null,null,null,null,null,null,null,null,null,null,null,null,null,"",null,null,"","",null,null,null,null,null,null,null,null,null,null,null,null,null,null,null,null,null,null,null,null,null,null,null,null,null,null,null,null,null,null,null,null,null,null,null,"","",null,null,null,null,null,null,null,null,null,null,null,null,null,null,null,null,null,null,null,null,null,null,null,null,null,null,null,null,null,null,36,"",null,null,null,null,null,null,null,null,null,null,null,null,null,null,null,null,null,null,null,null,null,null,null,null,null,null,null,null,null,null,null,null,null,null,null,null,null,null,null,null,null,null,null,null,null,null,null,null,null,null,null,null,null,null,null,null,null,null,"","",null,null,3,"x","o","o","x","o",null,"o","x","x","o","x",null,null,null,1,1,1,1,1,1,1,1,1,{"$f":"IF(GZ$22=GZ29,1,0)","v":1},10]
[null,null,null,null,null,null,null,null,null,null,null,null,null,null,null,null,null,null,"o","x","o","h","h","x",null,null,3,3,null,38,{"$f":"IF(OR(AE$8<>\"\",AE13<>\"\"),ABS(AE$8-AE13),2)","v":2},1,1,0,0,0,0,{"$error":"#VALUE!"},{"$error":"#VALUE!"},2,37,{"$error":"#VALUE!"},"",null,null,null,null,null,null,null,null,null,null,null,null,null,null,null,null,null,"",null,null,"","",null,null,null,null,null,null,null,null,null,null,null,null,null,null,null,null,null,null,null,null,null,null,null,null,null,null,null,null,null,null,null,null,null,null,null,"","",null,null,null,null,null,null,null,null,null,null,null,null,null,null,null,null,null,null,null,null,null,null,null,null,null,null,null,null,null,null,37,"",null,null,null,null,null,null,null,null,null,null,null,null,null,null,null,null,null,null,null,null,null,null,null,null,null,null,null,null,null,null,null,null,null,null,null,null,null,null,null,null,null,null,null,null,null,null,null,null,null,null,null,null,null,null,null,null,null,null,"","",null,null,4,"x","o","o","o","x",null,"o","x","x","x","o",null,null,null,1,1,1,1,1,1,1,1,1,1,10]
[null,null,null,null,null,null,null,null,null,null,null,null,null,null,null,"o","x","x","o","o","x",null,null,null,null,null,3,3,null,39,{"$f":"IF(OR(AE$8<>\"\",AE14<>\"\"),ABS(AE$8-AE14),2)","v":{"$error":"#VALUE!"}},0,0,1,1,{"$error":"#VALUE!"},{"$error":"#VALUE!"},1,{"$error":"#VALUE!"},2,38,{"$error":"#VALUE!"},"",null,null,null,null,null,null,null,null,null,null,null,null,null,null,null,null,null,"",null,null,"","",null,null,null,null,null,null,null,null,null,null,null,null,null,null,null,null,null,null,null,null,null,null,null,null,null,null,null,null,null,null,null,null,null,null,null,"","",null,null,null,null,null,null,null,null,null,null,null,null,null,null,null,null,null,null,null,null,null,null,null,null,null,null,null,null,null,null,38,"",null,null,null,null,null,null,null,null,null,null,null,null,null,null,null,null,null,null,null,null,null,null,null,null,null,null,null,null,null,null,null,null,null,null,null,null,null,null,null,null,null,null,null,null,null,null,null,null,null,null,null,null,null,null,null,null,null,null,"","",null,null,5,"o","x","x","o","o",null,"x","o","o","x","x",null,null,null,1,1,1,1,1,1,1,1,1,1,10]
[null,null,null,null,null,null,null,null,null,null,null,null,null,null,"x","x","o","o","x","h","h","o","h","h",null,null,5,5,null,"3Z",{"$f":"IF(OR(AE$8<>\"\",AE15<>\"\"),ABS(AE$8-AE15),2)","v":2},0,0,0,0,{"$error":"#VALUE!"},{"$error":"#VALUE!"},0,{"$error":"#VALUE!"},2,39,{"$error":"#VALUE!"},"",null,null,null,null,null,null,null,null,null,null,null,null,null,null,null,null,null,"",null,null,"","",null,null,null,null,null,null,null,null,null,null,null,null,null,null,null,null,null,null,null,null,null,null,null,null,null,null,null,null,null,null,null,null,null,null,null,"","",null,null,null,null,null,null,null,null,null,null,null,null,null,null,null,null,null,null,null,null,null,null,null,null,null,null,null,null,null,null,39,"",null,null,null,null,null,null,null,null,null,null,null,null,null,null,null,null,null,null,null,null,null,null,null,null,null,null,null,null,null,null,null,null,null,null,null,null,null,null,null,null,null,null,null,null,null,null,null,null,null,null,null,null,null,null,null,null,null,null,"","",null,null,6,"o","x","o","x","o",null,"x","o","x","o","x",null,null,null,1,1,1,1,1,1,1,1,1,1,10]
[null,null,null,null,null,null,null,null,null,null,null,null,null,null,null,"x","o","x","o","h","h","x",null,null,null,null,4,3,null,null,null,null,null,null,null,null,null,null,null,null,null,null,"",null,null,null,null,null,null,null,null,null,null,null,null,null,null,null,null,null,"",null,null,"","",null,null,null,null,null,null,null,null,null,null,null,null,null,null,null,null,null,null,null,null,null,null,null,null,null,null,null,null,null,null,null,null,null,null,null,"","",null,null,null,null,null,null,null,null,null,null,null,null,null,null,null,null,null,null,null,null,null,null,null,null,null,null,null,null,null,null,null,"",null,null,null,null,null,null,null,null,null,null,null,null,null,null,null,null,null,null,null,null,null,null,null,null,null,null,null,null,null,null,null,null,null,null,null,null,null,null,null,null,null,null,null,null,null,null,null,null,null,null,null,null,null,null,null,null,null,null,"","",null,null,7,"o","x","o","o","x",null,"x","o","x","x","o",null,null,null,1,1,1,1,1,1,1,1,1,1,10]
[null,null,null,null,null,"Spielfeld mit Paaren V",null,null,null,null,null,null,null,null,"o","o","x","o","x","o","x","o","x","x",null,null,null,null,null,45,{"$f":"IF(OR(AE$9<>\"\",AE10<>\"\"),ABS(AE$9-AE10),2)","v":{"$error":"#VALUE!"}},{"$f":"IF(OR(AF$9<>\"\",AF10<>\"\"),ABS(AF$9-AF10),2)","v":1},{"$error":"#VALUE!"},2,2,0,{"$error":"#VALUE!"},1,{"$error":"#VALUE!"},{"$error":"#VALUE!"},44,{"$error":"#VALUE!"},"",null,null,null,null,null,null,null,null,null,null,null,null,null,null,null,null,null,"",null,null,"","",null,null,null,null,null,null,null,null,null,null,null,null,null,null,null,null,null,null,null,null,null,null,null,null,null,null,null,null,null,null,null,null,null,null,null,"","",null,null,null,null,null,null,null,null,null,null,null,null,null,null,null,null,null,null,null,null,null,null,null,null,null,null,null,null,null,null,44,"",null,null,null,null,null,null,null,null,null,null,null,null,null,null,null,null,null,null,null,null,null,null,null,null,null,null,null,null,null,null,null,null,null,null,null,null,null,null,null,null,null,null,null,null,null,null,null,null,null,null,null,null,null,null,null,null,null,null,"","",null,null,8,"o","o","x","x","o",null,"x","x","o","o","x",null,null,null,1,1,1,1,1,1,1,1,1,1,10]
[null,null,null,null,null,null,null,null,null,null,null,null,null,null,null,"o","x","o","x","x","o","o","x","v",null,null,null,null,null,46,{"$f":"IF(OR(AE$9<>\"\",AE11<>\"\"),ABS(AE$9-AE11),2)","v":{"$error":"#VALUE!"}},{"$error":"#VALUE!"},{"$error":"#VALUE!"},2,{"$error":"#VALUE!"},1,{"$error":"#VALUE!"},{"$error":"#VALUE!"},{"$error":"#VALUE!"},{"$error":"#VALUE!"},45,{"$error":"#VALUE!"},"",null,null,null,null,null,null,null,null,null,null,null,null,null,null,null,null,null,"",null,null,"","",null,null,null,null,null,null,null,null,null,null,null,null,null,null,null,null,null,null,null,null,null,null,null,null,null,null,null,null,null,null,null,null,null,null,null,"","",null,null,null,null,null,null,null,null,null,null,null,null,null,null,null,null,null,null,null,null,null,null,null,null,null,null,null,null,null,null,45,"",null,null,null,null,null,null,null,null,null,null,null,null,null,null,null,null,null,null,null,null,null,null,null,null,null,null,null,null,null,null,null,null,null,null,null,null,null,null,null,null,null,null,null,null,null,null,null,null,null,null,null,null,null,null,null,null,null,null,"","",null,null,9,"o","o","x","o","x",null,"x","x","o","x","o",null,null,null,1,1,1,1,1,1,1,1,1,1,10]
[null,null,null,null,null,null,null,null,null,null,null,null,null,null,null,"x","o","x","o","o","x","x","o","v",null,null,null,null,null,47,{"$f":"IF(OR(AE$9<>\"\",AE12<>\"\"),ABS(AE$9-AE12),2)","v":{"$error":"#VALUE!"}},{"$error":"#VALUE!"},{"$error":"#VALUE!"},2,{"$error":"#VALUE!"},0,0,{"$error":"#VALUE!"},{"$error":"#VALUE!"},1,46,{"$error":"#VALUE!"},"",null,null,null,null,null,null,null,null,null,null,null,null,null,null,null,null,null,"",null,null,"","",null,null,null,null,null,null,null,null,null,null,null,null,null,null,null,null,null,null,null,null,null,null,null,null,null,null,null,null,null,null,null,null,null,null,null,"","",null,null,null,null,null,null,null,null,null,null,null,null,null,null,null,null,null,null,null,null,null,null,null,null,null,null,null,null,null,null,46,"",null,null,null,null,null,null,null,null,null,null,null,null,null,null,null,null,null,null,null,null,null,null,null,null,null,null,null,null,null,null,null,null,null,null,null,null,null,null,null,null,null,null,null,null,null,null,null,null,null,null,null,null,null,null,null,null,null,null,"","",null,null,10,"o","o","o","x","x",null,"x","x","x","o","o",null,null,null,1,1,1,{"$f":"IF(GT$22=GT36,1,0)","v":1},1,1,1,1,1,1,10]
[null,null,null,null,null,null,null,null,null,null,null,null,null,null,"o","o","x",null,"v","x","o","x","x","o",null,null,null,null,null,48,{"$f":"IF(OR(AE$9<>\"\",AE13<>\"\"),ABS(AE$9-AE13),2)","v":{"$error":"#VALUE!"}},0,0,{"$error":"#VALUE!"},{"$error":"#VALUE!"},1,1,{"$error":"#VALUE!"},{"$error":"#VALUE!"},{"$error":"#VALUE!"},47,{"$error":"#VALUE!"},"",null,null,null,null,null,null,null,null,null,null,null,null,null,null,null,null,null,"",null,null,"","",null,null,null,null,null,null,null,null,null,null,null,null,null,null,null,null,null,null,null,null,null,null,null,null,null,null,null,null,null,null,null,null,null,null,null,"","",null,null,null,null,null,null,null,null,null,null,null,null,null,null,null,null,null,null,null,null,null,null,null,null,null,null,null,null,null,null,47,"",null,null,null,null,null,null,null,null,null,null,null,null,null,null,null,null,null,null,null,null,null,null,null,null,null,null,null,null,null,null,null,null,null,null,null,null,null,null,null,null,null,null,null,null,null,null,null,null,null,null,null,null,null,null,null,null,null,null,"",""]
[null,null,null,null,null,null,null,null,null,null,null,null,null,null,null,"x",null,null,"v","x","v","o",null,"v",null,null,null,null,null,49,{"$f":"IF(OR(AE$9<>\"\",AE14<>\"\"),ABS(AE$9-AE14),2)","v":1},1,1,{"$error":"#VALUE!"},{"$error":"#VALUE!"},{"$error":"#VALUE!"},{"$error":"#VALUE!"},1,{"$error":"#VALUE!"},{"$error":"#VALUE!"},48,{"$error":"#VALUE!"},"",null,null,null,null,null,null,null,null,null,null,null,null,null,null,null,null,null,"",null,null,"","",null,null,null,null,null,null,null,null,null,null,null,null,null,null,null,null,null,null,null,null,null,null,null,null,null,null,null,null,null,null,null,null,null,null,null,"","",null,null,null,null,null,null,null,null,null,null,null,null,null,null,null,null,null,null,null,null,null,null,null,null,null,null,null,null,null,null,48,"",null,null,null,null,null,null,null,null,null,null,null,null,null,null,null,null,null,null,null,null,null,null,null,null,null,null,null,null,null,null,null,null,null,null,null,null,null,null,null,null,null,null,null,null,null,null,null,null,null,null,null,null,null,null,null,null,null,null,"","",null,null,null,"Vorlagen 4a",null,null,null,null,"Vorlage 4b",null,null,null,null,"Vorlage 4c",null,null,null,"Vergleich mit zweiter gelber Zeile"]
[null,null,null,null,null,null,null,null,null,null,null,null,null,null,null,"v",null,null,"x","o","v",null,null,"v",null,null,null,null,null,"4Z",{"$f":"IF(OR(AE$9<>\"\",AE15<>\"\"),ABS(AE$9-AE15),2)","v":{"$error":"#VALUE!"}},1,1,{"$error":"#VALUE!"},{"$error":"#VALUE!"},{"$error":"#VALUE!"},{"$error":"#VALUE!"},0,{"$error":"#VALUE!"},{"$error":"#VALUE!"},49,{"$error":"#VALUE!"},"",null,null,null,null,null,null,null,null,null,null,null,null,null,null,null,null,null,"",null,null,"","",null,null,null,null,null,null,null,null,null,null,null,null,null,null,null,null,null,null,null,null,null,null,null,null,null,null,null,null,null,null,null,null,null,null,null,"","",null,null,null,null,null,null,null,null,null,null,null,null,null,null,null,null,null,null,null,null,null,null,null,null,null,null,null,null,null,null,49,"",null,null,null,null,null,null,null,null,null,null,null,null,null,null,null,null,null,null,null,null,null,null,null,null,null,null,null,null,null,null,null,null,null,null,null,null,null,null,null,null,null,null,null,null,null,null,null,null,null,null,null,null,null,null,null,null,null,null,"","",null,null,1,"x","x","o","o",null,"x","x","x","o",null,"o","o","o","x",{"$f":"IF(GQ$23=GQ27,1,0)","v":1},{"$f":"IF(GR$23=GR27,1,0)","v":1},1,1,1,1,1,1,1,1,{"$f":"IF(SUM(HD51:HM51)=10,10,0)","v":10}]
[null,null,null,null,null,null,null,null,null,null,null,null,null,null,null,"v",null,null,"o","x","o",null,null,"x",null,null,null,null,null,null,null,null,null,null,null,null,null,null,null,null,null,null,"",null,null,null,null,null,null,null,null,null,null,null,null,null,null,null,null,null,"",null,null,"","",null,null,null,null,null,null,null,null,null,null,null,null,null,null,null,null,null,null,null,null,null,null,null,null,null,null,null,null,null,null,null,null,null,null,null,"","",null,null,null,null,null,null,null,null,null,null,null,null,null,null,null,null,null,null,null,null,null,null,null,null,null,null,null,null,null,null,null,"",null,null,null,null,null,null,null,null,null,null,null,null,null,null,null,null,null,null,null,null,null,null,null,null,null,null,null,null,null,null,null,null,null,null,null,null,null,null,null,null,null,null,null,null,null,null,null,null,null,null,null,null,null,null,null,null,null,null,"","",null,null,2,"x","o","x","o",null,"x","x","o","x",null,"o","o","x","o",{"$f":"IF(GQ$23=GQ28,1,0)","v":1},{"$f":"IF(GR$23=GR28,1,0)","v":1},{"$f":"IF(GS$23=GS28,1,0)","v":1},{"$f":"IF(GT$23=GT28,1,0)","v":1},{"$f":"IF(GU$23=GU28,1,0)","v":1},{"$f":"IF(GV$23=GV28,1,0)","v":1},{"$f":"IF(GW$23=GW28,1,0)","v":1},{"$f":"IF(GX$23=GX28,1,0)","v":1},{"$f":"IF(GY$23=GY28,1,0)","v":1},{"$f":"IF(GZ$23=GZ28,1,0)","v":1},{"$f":"IF(SUM(HD52:HM52)=10,10,0)","v":10}]
[null,null,null,null,null,null,null,null,null,null,null,null,null,null,null,"o","x","x","o","o","x",null,null,null,null,null,null,null,null,56,{"$f":"IF(OR(AE$10<>\"\",AE11<>\"\"),ABS(AE$10-AE11),2)","v":2},{"$f":"IF(OR(AF$10<>\"\",AF11<>\"\"),ABS(AF$10-AF11),2)","v":{"$error":"#VALUE!"}},2,2,{"$error":"#VALUE!"},1,2,{"$error":"#VALUE!"},2,2,55,{"$error":"#VALUE!"},"",null,null,null,null,null,null,null,null,null,null,null,null,null,null,null,null,null,"",null,null,"","",null,null,null,null,null,null,null,null,null,null,null,null,null,null,null,null,null,null,null,null,null,null,null,null,null,null,null,null,null,null,null,null,null,null,null,"","",null,null,null,null,null,null,null,null,null,null,null,null,null,null,null,null,null,null,null,null,null,null,null,null,null,null,null,null,null,null,55,"",null,null,null,null,null,null,null,null,null,null,null,null,null,null,null,null,null,null,null,null,null,null,null,null,null,null,null,null,null,null,null,null,null,null,null,null,null,null,null,null,null,null,null,null,null,null,null,null,null,null,null,null,null,null,null,null,null,null,"","",null,null,3,"x","o","o","x",null,"x","o","x","x",null,"o","x","o","o",1,1,1,1,1,1,1,1,1,1,10]
[null,null,null,null,null,null,null,null,null,null,null,null,null,null,"x","x","o","o","x","v","v","o",null,null,null,null,null,null,null,57,{"$f":"IF(OR(AE$10<>\"\",AE12<>\"\"),ABS(AE$10-AE12),2)","v":2},{"$error":"#VALUE!"},2,2,{"$error":"#VALUE!"},0,{"$error":"#VALUE!"},{"$error":"#VALUE!"},2,{"$error":"#VALUE!"},56,{"$error":"#VALUE!"},"",null,null,null,null,null,null,null,null,null,null,null,null,null,null,null,null,null,"",null,null,"","",null,null,null,null,null,null,null,null,null,null,null,null,null,null,null,null,null,null,null,null,null,null,null,null,null,null,null,null,null,null,null,null,null,null,null,"","",null,null,null,null,null,null,null,null,null,null,null,null,null,null,null,null,null,null,null,null,null,null,null,null,null,null,null,null,null,null,56,"",null,null,null,null,null,null,null,null,null,null,null,null,null,null,null,null,null,null,null,null,null,null,null,null,null,null,null,null,null,null,null,null,null,null,null,null,null,null,null,null,null,null,null,null,null,null,null,null,null,null,null,null,null,null,null,null,null,null,"","",null,null,4,"o","x","x","o",null,"o","x","x","x",null,"x","o","o","o",1,1,1,1,1,1,1,1,1,1,10]
[null,null,null,null,null,null,null,null,null,null,null,null,null,null,null,"x","o","x","o","v","v","x",null,null,null,null,null,null,null,58,{"$f":"IF(OR(AE$10<>\"\",AE13<>\"\"),ABS(AE$10-AE13),2)","v":2},1,{"$error":"#VALUE!"},{"$error":"#VALUE!"},{"$error":"#VALUE!"},1,{"$error":"#VALUE!"},{"$error":"#VALUE!"},2,2,57,{"$error":"#VALUE!"},"",null,null,null,null,null,null,null,null,null,null,null,null,null,null,null,null,null,"",null,null,"","",null,null,null,null,null,null,null,null,null,null,null,null,null,null,null,null,null,null,null,null,null,null,null,null,null,null,null,null,null,null,null,null,null,null,null,"","",null,null,null,null,null,null,null,null,null,null,null,null,null,null,null,null,null,null,null,null,null,null,null,null,null,null,null,null,null,null,57,"",null,null,null,null,null,null,null,null,null,null,null,null,null,null,null,null,null,null,null,null,null,null,null,null,null,null,null,null,null,null,null,null,null,null,null,null,null,null,null,null,null,null,null,null,null,null,null,null,null,null,null,null,null,null,null,null,null,null,"","",null,null,5,"o","x","o","x",null,null,null,null,null,null,null,null,null,null,1,1,1,1,1,1,1,1,1,1,10]
[null,null,null,null,null,null,null,null,null,null,null,null,null,null,null,null,null,null,null,null,null,null,null,null,null,null,null,null,null,59,{"$f":"IF(OR(AE$10<>\"\",AE14<>\"\"),ABS(AE$10-AE14),2)","v":{"$error":"#VALUE!"}},0,{"$error":"#VALUE!"},{"$error":"#VALUE!"},{"$error":"#VALUE!"},{"$error":"#VALUE!"},2,0,2,2,58,{"$error":"#VALUE!"},"",null,null,null,null,null,null,null,null,null,null,null,null,null,null,null,null,null,"",null,null,"","",null,null,null,null,null,null,null,null,null,null,null,null,null,null,null,null,null,null,null,null,null,null,null,null,null,null,null,null,null,null,null,null,null,null,null,"","",null,null,null,null,null,null,null,null,null,null,null,null,null,null,null,null,null,null,null,null,null,null,null,null,null,null,null,null,null,null,58,"",null,null,null,null,null,null,null,null,null,null,null,null,null,null,null,null,null,null,null,null,null,null,null,null,null,null,null,null,null,null,null,null,null,null,null,null,null,null,null,null,null,null,null,null,null,null,null,null,null,null,null,null,null,null,null,null,null,null,"","",null,null,6,"o","o","x","x",null,null,null,null,null,null,null,null,null,null,1,1,1,1,1,1,1,1,1,1,10]
[null,null,null,null,null,null,null,null,null,"Anzahl x +v/2",null,null,null,null,{"$f":"COUNTIF(O46:O55,\"x\")+COUNTIF(O46:O55,\"v\")/2","v":1},{"$f":"COUNTIF(P46:P55,\"x\")+COUNTIF(P46:P55,\"v\")/2","v":5},4,3,5,5,5,3,3,4,null,null,null,null,null,"5Z",{"$f":"IF(OR(AE$10<>\"\",AE15<>\"\"),ABS(AE$10-AE15),2)","v":2},0,{"$error":"#VALUE!"},{"$error":"#VALUE!"},{"$error":"#VALUE!"},{"$error":"#VALUE!"},2,1,2,2,59,{"$error":"#VALUE!"},"",null,null,null,null,null,null,null,null,null,null,null,null,null,null,null,null,null,"",null,null,"","",null,null,null,null,null,null,null,null,null,null,null,null,null,null,null,null,null,null,null,null,null,null,null,null,null,null,null,null,null,null,null,null,null,null,null,"","",null,null,null,null,null,null,null,null,null,null,null,null,null,null,null,null,null,null,null,null,null,null,null,null,null,null,null,null,null,null,59,"",null,null,null,null,null,null,null,null,null,null,null,null,null,null,null,null,null,null,null,null,null,null,null,null,null,null,null,null,null,null,null,null,null,null,null,null,null,null,null,null,null,null,null,null,null,null,null,null,null,null,null,null,null,null,null,null,null,null,"","",null,null,null,null,null,null,null,null,null,null,null,null,null,null,null,null,null,1,1,1,1,1,1,1,1,1,1,10]
[null,null,null,null,null,null,null,null,null,"Anzahl o +v/2",null,null,null,null,{"$f":"COUNTIF(O46:O55,\"o\")+COUNTIF(O46:O55,\"v\")/2","v":2},{"$f":"COUNTIF(P46:P55,\"o\")+COUNTIF(P46:P55,\"v\")/2","v":5},3,3,5,5,5,4,1,3,null,null,null,null,null,null,null,null,null,null,null,null,null,null,null,null,null,null,"",null,null,null,null,null,null,null,null,null,null,null,null,null,null,null,null,null,"",null,null,"","",null,null,null,null,null,null,null,null,null,null,null,null,null,null,null,null,null,null,null,null,null,null,null,null,null,null,null,null,null,null,null,null,null,null,null,"","",null,null,null,null,null,null,null,null,null,null,null,null,null,null,null,null,null,null,null,null,null,null,null,null,null,null,null,null,null,null,null,"",null,null,null,null,null,null,null,null,null,null,null,null,null,null,null,null,null,null,null,null,null,null,null,null,null,null,null,null,null,null,null,null,null,null,null,null,null,null,null,null,null,null,null,null,null,null,null,null,null,null,null,null,null,null,null,null,null,null,"","",null,null,null,null,null,null,null,null,null,null,null,null,null,null,null,null,null,1,1,1,1,1,1,1,1,1,1,10]
[null,null,null,null,null,null,null,null,null,null,null,null,null,null,null,null,null,null,null,null,null,null,null,null,null,null,null,null,null,67,{"$f":"IF(OR(AE$11<>\"\",AE12<>\"\"),ABS(AE$11-AE12),2)","v":2},{"$f":"IF(OR(AF$11<>\"\",AF12<>\"\"),ABS(AF$11-AF12),2)","v":2},2,2,1,1,{"$error":"#VALUE!"},2,2,{"$error":"#VALUE!"},66,{"$error":"#VALUE!"},"",null,null,null,null,null,null,null,null,null,null,null,null,null,null,null,null,null,"",null,null,"","",null,null,null,null,null,null,null,null,null,null,null,null,null,null,null,null,null,null,null,null,null,null,null,null,null,null,null,null,null,null,null,null,null,null,null,"","",null,null,null,null,null,null,null,null,null,null,null,null,null,null,null,null,null,null,null,null,null,null,null,null,null,null,null,null,null,null,66,"",null,null,null,null,null,null,null,null,null,null,null,null,null,null,null,null,null,null,null,null,null,null,null,null,null,null,null,null,null,null,null,null,null,null,null,null,null,null,null,null,null,null,null,null,null,null,null,null,null,null,null,null,null,null,null,null,null,null,"","",null,null,null,null,null,null,null,null,null,null,null,null,null,null,null,null,null,1,1,1,1,1,1,1,1,1,1,10]
[null,null,null,null,null,null,null,null,null,null,null,null,null,null,null,null,null,null,null,null,null,null,null,null,null,null,null,null,null,68,{"$f":"IF(OR(AE$11<>\"\",AE13<>\"\"),ABS(AE$11-AE13),2)","v":2},{"$error":"#VALUE!"},{"$error":"#VALUE!"},{"$error":"#VALUE!"},1,0,{"$error":"#VALUE!"},2,2,2,67,{"$error":"#VALUE!"},"",null,null,null,null,null,null,null,null,null,null,null,null,null,null,null,null,null,"",null,null,"","",null,null,null,null,null,null,null,null,null,null,null,null,null,null,null,null,null,null,null,null,null,null,null,null,null,null,null,null,null,null,null,null,null,null,null,"","",null,null,null,null,null,null,null,null,null,null,null,null,null,null,null,null,null,null,null,null,null,null,null,null,null,null,null,null,null,null,67,"",null,null,null,null,null,null,null,null,null,null,null,null,null,null,null,null,null,null,null,null,null,null,null,null,null,null,null,null,null,null,null,null,null,null,null,null,null,null,null,null,null,null,null,null,null,null,null,null,null,null,null,null,null,null,null,null,null,null,"","",null,null,null,null,null,null,null,null,null,null,null,null,null,null,null,null,null,1,1,1,1,1,1,1,1,1,1,10]
[null,null,null,null,null,null,null,null,null,null,null,null,null,null,null,null,null,null,null,null,null,null,null,null,null,null,null,null,null,69,{"$f":"IF(OR(AE$11<>\"\",AE14<>\"\"),ABS(AE$11-AE14),2)","v":{"$error":"#VALUE!"}},{"$error":"#VALUE!"},{"$error":"#VALUE!"},{"$error":"#VALUE!"},0,{"$error":"#VALUE!"},2,{"$error":"#VALUE!"},2,2,68,{"$error":"#VALUE!"},"",null,null,null,null,null,null,null,null,null,null,null,null,null,null,null,null,null,"",null,null,"","",null,null,null,null,null,null,null,null,null,null,null,null,null,null,null,null,null,null,null,null,null,null,null,null,null,null,null,null,null,null,null,null,null,null,null,"","",null,null,null,null,null,null,null,null,null,null,null,null,null,null,null,null,null,null,null,null,null,null,null,null,null,null,null,null,null,null,68,"",null,null,null,null,null,null,null,null,null,null,null,null,null,null,null,null,null,null,null,null,null,null,null,null,null,null,null,null,null,null,null,null,null,null,null,null,null,null,null,null,null,null,null,null,null,null,null,null,null,null,null,null,null,null,null,null,null,null,"",""]
[null,null,null,null,null,null,null,null,null,null,null,null,null,null,null,null,null,null,null,null,null,null,null,null,null,null,null,null,null,"6Z",{"$f":"IF(OR(AE$11<>\"\",AE15<>\"\"),ABS(AE$11-AE15),2)","v":2},{"$error":"#VALUE!"},{"$error":"#VALUE!"},{"$error":"#VALUE!"},1,{"$error":"#VALUE!"},2,{"$error":"#VALUE!"},2,2,69,{"$error":"#VALUE!"},"",null,null,null,null,null,null,null,null,null,null,null,null,null,null,null,null,null,"",null,null,"","",null,null,null,null,null,null,null,null,null,null,null,null,null,null,null,null,null,null,null,null,null,null,null,null,null,null,null,null,null,null,null,null,null,null,null,"","",null,null,null,null,null,null,null,null,null,null,null,null,null,null,null,null,null,null,null,null,null,null,null,null,null,null,null,null,null,null,69,"",null,null,null,null,null,null,null,null,null,null,null,null,null,null,null,null,null,null,null,null,null,null,null,null,null,null,null,null,null,null,null,null,null,null,null,null,null,null,null,null,null,null,null,null,null,null,null,null,null,null,null,null,null,null,null,null,null,null,"",""]
[null,null,null,null,null,null,null,null,null,null,null,null,null,null,null,null,null,null,null,null,null,null,null,null,null,null,null,null,null,null,null,null,null,null,null,null,null,null,null,null,null,null,"",null,null,null,null,null,null,null,null,null,null,null,null,null,null,null,null,null,"",null,null,"","",null,null,null,null,null,null,null,null,null,null,null,null,null,null,null,null,null,null,null,null,null,null,null,null,null,null,null,null,null,null,null,null,null,null,null,"","",null,null,null,null,null,null,null,null,null,null,null,null,null,null,null,null,null,null,null,null,null,null,null,null,null,null,null,null,null,null,null,"",null,null,null,null,null,null,null,null,null,null,null,null,null,null,null,null,null,null,null,null,null,null,null,null,null,null,null,null,null,null,null,null,null,null,null,null,null,null,null,null,null,null,null,null,null,null,null,null,null,null,null,null,null,null,null,null,null,null,"",""]
[null,null,null,null,null,null,null,null,null,null,null,null,null,null,null,null,null,null,null,null,null,null,null,null,null,null,null,null,null,78,{"$f":"IF(OR(AE$12<>\"\",AE13<>\"\"),ABS(AE$12-AE13),2)","v":2},{"$f":"IF(OR(AF$12<>\"\",AF13<>\"\"),ABS(AF$12-AF13),2)","v":{"$error":"#VALUE!"}},{"$error":"#VALUE!"},{"$error":"#VALUE!"},0,1,1,2,2,{"$error":"#VALUE!"},77,{"$error":"#VALUE!"},"",null,null,null,null,null,null,null,null,null,null,null,null,null,null,null,null,null,"",null,null,"","",null,null,null,null,null,null,null,null,null,null,null,null,null,null,null,null,null,null,null,null,null,null,null,null,null,null,null,null,null,null,null,null,null,null,null,"","",null,null,null,null,null,null,null,null,null,null,null,null,null,null,null,null,null,null,null,null,null,null,null,null,null,null,null,null,null,null,77,"",null,null,null,null,null,null,null,null,null,null,null,null,null,null,null,null,null,null,null,null,null,null,null,null,null,null,null,null,null,null,null,null,null,null,null,null,null,null,null,null,null,null,null,null,null,null,null,null,null,null,null,null,null,null,null,null,null,null,"",""]
[null,null,null,null,null,null,null,null,null,null,null,null,null,null,null,null,null,null,null,null,null,null,null,null,null,null,null,null,null,79,{"$f":"IF(OR(AE$12<>\"\",AE14<>\"\"),ABS(AE$12-AE14),2)","v":{"$error":"#VALUE!"}},{"$error":"#VALUE!"},{"$error":"#VALUE!"},{"$error":"#VALUE!"},1,{"$error":"#VALUE!"},{"$error":"#VALUE!"},{"$error":"#VALUE!"},2,{"$error":"#VALUE!"},78,{"$error":"#VALUE!"},"",null,null,null,null,null,null,null,null,null,null,null,null,null,null,null,null,null,"",null,null,"","",null,null,null,null,null,null,null,null,null,null,null,null,null,null,null,null,null,null,null,null,null,null,null,null,null,null,null,null,null,null,null,null,null,null,null,"","",null,null,null,null,null,null,null,null,null,null,null,null,null,null,null,null,null,null,null,null,null,null,null,null,null,null,null,null,null,null,78,"",null,null,null,null,null,null,null,null,null,null,null,null,null,null,null,null,null,null,null,null,null,null,null,null,null,null,null,null,null,null,null,null,null,null,null,null,null,null,null,null,null,null,null,null,null,null,null,null,null,null,null,null,null,null,null,null,null,null,"",""]
[null,null,null,null,null,null,null,null,null,null,null,null,null,null,null,null,null,null,null,null,null,null,null,null,null,null,null,null,null,"7Z",{"$f":"IF(OR(AE$12<>\"\",AE15<>\"\"),ABS(AE$12-AE15),2)","v":2},{"$error":"#VALUE!"},{"$error":"#VALUE!"},{"$error":"#VALUE!"},0,{"$error":"#VALUE!"},{"$error":"#VALUE!"},{"$error":"#VALUE!"},2,{"$error":"#VALUE!"},79,{"$error":"#VALUE!"},"",null,null,null,null,null,null,null,null,null,null,null,null,null,null,null,null,null,"",null,null,"","",null,null,null,null,null,null,null,null,null,null,null,null,null,null,null,null,null,null,null,null,null,null,null,null,null,null,null,null,null,null,null,null,null,null,null,"","",null,null,null,null,null,null,null,null,null,null,null,null,null,null,null,null,null,null,null,null,null,null,null,null,null,null,null,null,null,null,79,"",null,null,null,null,null,null,null,null,null,null,null,null,null,null,null,null,null,null,null,null,null,null,null,null,null,null,null,null,null,null,null,null,null,null,null,null,null,null,null,null,null,null,null,null,null,null,null,null,null,null,null,null,null,null,null,null,null,null,"",""]
[null,null,null,null,null,null,null,null,null,null,null,null,null,null,null,null,null,null,null,null,null,null,null,null,null,null,null,null,null,null,null,null,null,null,null,null,null,null,null,null,null,null,"",null,null,null,null,null,null,null,null,null,null,null,null,null,null,null,null,null,"",null,null,"","",null,null,null,null,null,null,null,null,null,null,null,null,null,null,null,null,null,null,null,null,null,null,null,null,null,null,null,null,null,null,null,null,null,null,null,"","",null,null,null,null,null,null,null,null,null,null,null,null,null,null,null,null,null,null,null,null,null,null,null,null,null,null,null,null,null,null,null,"",null,null,null,null,null,null,null,null,null,null,null,null,null,null,null,null,null,null,null,null,null,null,null,null,null,null,null,null,null,null,null,null,null,null,null,null,null,null,null,null,null,null,null,null,null,null,null,null,null,null,null,null,null,null,null,null,null,null,"",""]
[null,null,null,null,null,null,null,null,null,null,null,null,null,null,null,null,null,null,null,null,null,null,null,null,null,null,null,null,null,89,{"$f":"IF(OR(AE$13<>\"\",AE14<>\"\"),ABS(AE$13-AE14),2)","v":{"$error":"#VALUE!"}},{"$f":"IF(OR(AF$13<>\"\",AF14<>\"\"),ABS(AF$13-AF14),2)","v":1},1,1,1,{"$error":"#VALUE!"},{"$error":"#VALUE!"},{"$error":"#VALUE!"},2,2,88,{"$error":"#VALUE!"},"",null,null,null,null,null,null,null,null,null,null,null,null,null,null,null,null,null,"",null,null,"","",null,null,null,null,null,null,null,null,null,null,null,null,null,null,null,null,null,null,null,null,null,null,null,null,null,null,null,null,null,null,null,null,null,null,null,"","",null,null,null,null,null,null,null,null,null,null,null,null,null,null,null,null,null,null,null,null,null,null,null,null,null,null,null,null,null,null,88,"",null,null,null,null,null,null,null,null,null,null,null,null,null,null,null,null,null,null,null,null,null,null,null,null,null,null,null,null,null,null,null,null,null,null,null,null,null,null,null,null,null,null,null,null,null,null,null,null,null,null,null,null,null,null,null,null,null,null,"",""]
[null,null,null,null,null,null,null,null,null,null,null,null,null,null,null,null,null,null,null,null,null,null,null,null,null,null,null,null,null,"8Z",{"$f":"IF(OR(AE$13<>\"\",AE15<>\"\"),ABS(AE$13-AE15),2)","v":2},1,1,0,0,{"$error":"#VALUE!"},{"$error":"#VALUE!"},{"$error":"#VALUE!"},2,2,89,{"$error":"#VALUE!"},"",null,null,null,null,null,null,null,null,null,null,null,null,null,null,null,null,null,"",null,null,"","",null,null,null,null,null,null,null,null,null,null,null,null,null,null,null,null,null,null,null,null,null,null,null,null,null,null,null,null,null,null,null,null,null,null,null,"","",null,null,null,null,null,null,null,null,null,null,null,null,null,null,null,null,null,null,null,null,null,null,null,null,null,null,null,null,null,null,89,"",null,null,null,null,null,null,null,null,null,null,null,null,null,null,null,null,null,null,null,null,null,null,null,null,null,null,null,null,null,null,null,null,null,null,null,null,null,null,null,null,null,null,null,null,null,null,null,null,null,null,null,null,null,null,null,null,null,null,"",""]
[null,null,null,null,null,null,null,null,null,null,null,null,null,null,null,null,null,null,null,null,null,null,null,null,null,null,null,null,null,null,null,null,null,null,null,null,null,null,null,null,null,null,"",null,null,null,null,null,null,null,null,null,null,null,null,null,null,null,null,null,"",null,null,"","",null,null,null,null,null,null,null,null,null,null,null,null,null,null,null,null,null,null,null,null,null,null,null,null,null,null,null,null,null,null,null,null,null,null,null,"","",null,null,null,null,null,null,null,null,null,null,null,null,null,null,null,null,null,null,null,null,null,null,null,null,null,null,null,null,null,null,null,"",null,null,null,null,null,null,null,null,null,null,null,null,null,null,null,null,null,null,null,null,null,null,null,null,null,null,null,null,null,null,null,null,null,null,null,null,null,null,null,null,null,null,null,null,null,null,null,null,null,null,null,null,null,null,null,null,null,null,"",""]
[null,null,null,null,null,null,null,null,null,null,null,null,null,null,null,null,null,null,null,null,null,null,null,null,null,null,null,null,null,"9Z",{"$f":"IF(OR(AE$14<>\"\",AE15<>\"\"),ABS(AE$14-AE15),2)","v":{"$error":"#VALUE!"}},{"$f":"IF(OR(AF$14<>\"\",AF15<>\"\"),ABS(AF$14-AF15),2)","v":0},0,1,1,2,2,1,2,2,99,{"$error":"#VALUE!"},"",null,null,null,null,null,null,null,null,null,null,null,null,null,null,null,null,null,"",null,null,"","",null,null,null,null,null,null,null,null,null,null,null,null,null,null,null,null,null,null,null,null,null,null,null,null,null,null,null,null,null,null,null,null,null,null,null,"","",null,null,null,null,null,null,null,null,null,null,null,null,null,null,null,null,null,null,null,null,null,null,null,null,null,null,null,null,null,null,99,"",null,null,null,null,null,null,null,null,null,null,null,null,null,null,null,null,null,null,null,null,null,null,null,null,null,null,null,null,null,null,null,null,null,null,null,null,null,null,null,null,null,null,null,null,null,null,null,null,null,null,null,null,null,null,null,null,null,null,"",""]
[]
[]
[null,null,null,null,null,null,null,null,null,null,null,null,null,null,null,null,null,null,null,null,null,null,null,null,null,null,null,null,null,null,null,null,null,null,null,null,null,null,null,null,null,null,{"$f":"IF(AQ18=\"z\",INT(AQ16/10),\"\")","v":""},{"$f":"IF(AR18=\"z\",INT(AR16/10),\"\")","v":""},"","","","","","","","","","","","","","","","","","","","","","","","","","","","","","","","","","","","","","","","","","","","","","","","","","","",null,null,null,null,null,null,null,null,null,null,null,null,null,null,null,null,null,null,null,null,null,null,null,null,null,null,null,null,null,null,null,null,null,null,null,null,null,null,null,{"$f":"IF(EE18=\"p\",INT(EE17/10),\"\")","v":""},"","","","","","","","","","","","","","","","","","","","","","","","","","","","","","","","","","","","","","","","","","","","","","","","","","","",{"$f":"IF(GE18=\"p\",INT(GE17/10),\"\")","v":""}]
[null,null,null,null,null,null,null,null,null,null,null,null,null,null,"Spalten-Spuren",null,null,null,null,null,null,null,null,null,null,null,null,null,null,null,null,null,null,null,null,null,null,null,null,null,null,null,{"$f":"IF(AQ18=\"z\",AQ16-10*AQ74+1,\"\")","v":""},{"$f":"IF(AR18=\"z\",AR16-10*AR74+1,\"\")","v":""},"","","","","","","","","","","","","","","","","","","","","","","","","","","","","","","","","","","","","","","","","","","","","","","","","","","",null,null,null,null,null,null,null,null,null,null,null,null,null,null,null,null,null,null,null,null,null,null,null,null,null,null,null,null,null,null,null,null,null,null,null,null,null,null,null,{"$f":"IF(EE18=\"p\",EE17-10*EE74+1,\"\")","v":""},"","","","","","","","","","","","","","","","","","","","","","","","","","","","","","","","","","","","","","","","","","","","","","","","","","","",""]
[null,null,null,null,null,null,null,null,null,null,null,null,null,null,null,null,null,null,null,null,null,null,null,null,null,null,null,null,null,null,null,null,null,null,null,null,null,null,null,null,null,null,"Hier wird angegeben welche zwei Spalten bis auf zwei leere Felder gleich sind.",null,null,null,null,null,null,null,null,null,null,null,null,null,null,null,null,null,null,null,null,null,null,null,null,null,null,null,null,null,null,null,null,null,null,null,null,null,null,null,null,null,null,null,null,null,null,null,null,null,null,null,null,null,null,null,null,null,null,null,null,null,null,null,null,null,null,null,null,null,null,null,null,null,null,null,null,null,null,null,null,null,null,null,null,null,null,null,null,null,null,null,"Hier wird angegeben welche zwei vollen Spalten bis auf zwei Felder gleich sind."]
[]
[null,null,null,null,null,null,null,null,null,null,null,null,null,null,null,null,null,null,null,null,null,null,null,null,null,null,null,null,null,null,null,null,null,null,null,null,null,null,null,null,null,null,"Zwei Spalten dazu",null,null,null,null,null,null,null,null,null,null,null,null,null,null,null,null,null,null,null,null,null,null,null,null,null,null,null,null,null,null,null,null,null,null,null,null,null,null,null,null,null,null,null,null,null,null,null,null,null,null,null,null,null,null,null,null,null,null,null,null,null,null,null,null,null,null,null,null,null,null,null,null,null,null,null,null,null,null,null,null,null,null,null,null,null,null,null,null,null,null,"Zwei Spalten",null,null,"3.Spalte-Nr."]
[]
[null,null,null,null,null,null,null,null,null,null,null,null,null,null,null,null,null,null,null,null,null,null,null,null,null,null,null,null,null,null,null,null,null,null,null,null,null,null,null,null,null,null,null,null,null,null,null,null,null,null,null,null,null,null,null,null,null,null,null,null,null,null,null,null,null,null,null,null,null,null,null,null,null,null,null,null,null,null,null,null,null,null,null,null,null,null,null,null,null,null,null,null,null,null,null,null,null,null,null,null,null,null,null,null,null,null,null,null,null,null,null,null,null,null,null,null,null,null,null,null,null,null,null,null,null,null,null,null,null,null,null,null,null,null,null,null,null,null,1,2,3,4,5,6,7,8,9,10,null,null,"Vergleich mit erster gelben Spalte",null,null,null,null,null,null,null,null,null,null,null,"Vergleich mit zweiter gelber Spalte"]
[null,null,null,null,null,null,null,null,null,null,null,null,null,null,null,null,null,null,null,null,null,null,null,null,null,null,null,null,null,null,null,null,null,null,null,null,null,null,null,null,null,null,{"$f":"OFFSET(N6,0,$AQ$79)","v":0},{"$f":"OFFSET(N6,0,$AR$79)","v":0},null,null,null,null,null,null,null,null,null,null,null,null,null,null,null,null,null,null,null,null,null,null,null,null,null,null,null,null,null,null,null,null,null,null,null,null,null,null,null,null,null,null,null,null,null,null,null,null,null,null,null,null,null,null,null,null,null,null,null,null,null,null,null,null,null,null,null,null,null,null,null,null,null,null,null,null,null,null,null,null,null,null,null,null,null,null,null,null,null,{"$f":"OFFSET(N6,0,$ED$79)","v":0},{"$f":"OFFSET(N6,0,$EE$79)","v":0},{"$f":"IF(EE81<>ED81,ROW()-80,\"\")","v":""},null,{"$f":"IF(AND(EG81<>\"\",EG81=EE81),1,0)","v":0},null,null,null,null,null,null,null,null,null,null,null,null,{"$f":"IF($ED81=EI81,1,0)","v":1},{"$f":"IF($ED81=EJ81,1,0)","v":1},{"$f":"IF($ED81=EK81,1,0)","v":1},1,1,1,1,1,1,1,null,null,{"$f":"IF($EE81=EI81,1,0)","v":1},{"$f":"IF($EE81=EJ81,1,0)","v":1},1,1,1,1,1,1,1,1]
[null,null,null,null,null,null,null,null,null,null,null,null,null,null,null,null,null,null,null,null,null,null,null,null,null,null,null,null,null,null,null,null,null,null,null,null,null,null,null,null,null,null,{"$f":"OFFSET(N7,0,$AQ$79)","v":0},{"$f":"OFFSET(N7,0,$AR$79)","v":0},null,null,null,null,null,null,null,null,null,null,null,null,null,null,null,null,null,null,null,null,null,null,null,null,null,null,null,null,null,null,null,null,null,null,null,null,null,null,null,null,null,null,null,null,null,null,null,null,null,null,null,null,null,null,null,null,null,null,null,null,null,null,null,null,null,null,null,null,null,null,null,null,null,null,null,null,null,null,null,null,null,null,null,null,null,null,null,null,null,{"$f":"OFFSET(N7,0,$ED$79)","v":0},{"$f":"OFFSET(N7,0,$EE$79)","v":0},{"$f":"IF(EE82<>ED82,ROW()-80,\"\")","v":""},null,{"$f":"IF(AND(EG82<>\"\",EG82=EE82),1,0)","v":0},null,null,null,null,null,null,null,null,null,null,null,null,{"$f":"IF($ED82=EI82,1,0)","v":1},{"$f":"IF($ED82=EJ82,1,0)","v":1},1,1,1,1,1,1,1,1,null,null,{"$f":"IF($EE82=EI82,1,0)","v":1},{"$f":"IF($EE82=EJ82,1,0)","v":1},{"$f":"IF($EE82=EK82,1,0)","v":1},{"$f":"IF($EE82=EL82,1,0)","v":1},{"$f":"IF($EE82=EM82,1,0)","v":1},{"$f":"IF($EE82=EN82,1,0)","v":1},{"$f":"IF($EE82=EO82,1,0)","v":1},{"$f":"IF($EE82=EP82,1,0)","v":1},{"$f":"IF($EE82=EQ82,1,0)","v":1},{"$f":"IF($EE82=ER82,1,0)","v":1}]
[null,null,null,null,null,null,null,null,null,null,null,null,null,null,null,null,null,null,null,null,null,null,null,null,null,null,null,null,null,null,null,null,null,null,null,null,null,null,null,null,null,null,0,0,null,null,null,null,null,null,null,null,null,null,null,null,null,null,null,null,null,null,null,null,null,null,null,null,null,null,null,null,null,null,null,null,null,null,null,null,null,null,null,null,null,null,null,null,null,null,null,null,null,null,null,null,null,null,null,null,null,null,null,null,null,null,null,null,null,null,null,null,null,null,null,null,null,null,null,null,null,null,null,null,null,null,null,null,null,null,null,null,null,0,0,"",null,0,null,null,null,null,null,null,null,null,null,null,null,null,1,1,1,1,1,1,1,1,1,1,null,null,1,1,1,1,1,1,1,1,1,1]
[null,null,null,null,null,null,null,null,null,null,null,null,null,null,null,null,null,null,null,null,null,null,null,null,null,null,null,null,null,null,null,null,null,null,null,null,null,null,null,null,null,null,0,0,null,null,null,null,null,null,null,null,null,null,null,null,null,null,null,null,null,null,null,null,null,null,null,null,null,null,null,null,null,null,null,null,null,null,null,null,null,null,null,null,null,null,null,null,null,null,null,null,null,null,null,null,null,null,null,null,null,null,null,null,null,null,null,null,null,null,null,null,null,null,null,null,null,null,null,null,null,null,null,null,null,null,null,null,null,null,null,null,null,0,0,"",null,0,null,null,null,null,null,null,null,null,null,null,null,null,1,1,1,1,1,1,1,1,1,1,null,null,1,1,1,1,1,1,1,1,1,1]
[null,null,null,null,null,null,null,null,null,null,null,null,null,null,null,null,null,null,null,null,null,null,null,null,null,null,null,null,null,null,null,null,null,null,null,null,null,null,null,null,null,null,0,0,null,null,null,null,null,null,null,null,null,null,null,null,null,null,null,null,null,null,null,null,null,null,null,null,null,null,null,null,null,null,null,null,null,null,null,null,null,null,null,null,null,null,null,null,null,null,null,null,null,null,null,null,null,null,null,null,null,null,null,null,null,null,null,null,null,null,null,null,null,null,null,null,null,null,null,null,null,null,null,null,null,null,null,null,null,null,null,null,null,0,0,"",null,0,null,null,null,null,null,null,null,null,null,null,null,null,1,1,1,1,1,1,1,1,1,1,null,null,1,1,1,1,1,1,1,1,1,1]
[null,null,null,null,null,null,null,null,null,null,null,null,null,null,null,null,null,null,null,null,null,null,null,null,null,null,null,null,null,null,null,null,null,null,null,null,null,null,null,null,null,null,0,0,null,null,null,null,null,null,null,null,null,null,null,null,null,null,null,null,null,null,null,null,null,null,null,null,null,null,null,null,null,null,null,null,null,null,null,null,null,null,null,null,null,null,null,null,null,null,null,null,null,null,null,null,null,null,null,null,null,null,null,null,null,null,null,null,null,null,null,null,null,null,null,null,null,null,null,null,null,null,null,null,null,null,null,null,null,null,null,null,null,0,0,"",null,0,null,null,null,null,null,null,null,null,null,null,null,null,1,1,1,1,1,1,1,1,1,1,null,null,1,1,1,1,1,1,1,1,1,1]
[null,null,null,null,null,null,null,null,null,null,null,null,null,null,null,null,null,null,null,null,null,null,null,null,null,null,null,null,null,null,null,null,null,null,null,null,null,null,null,null,null,null,0,0,null,null,null,null,null,null,null,null,null,null,null,null,null,null,null,null,null,null,null,null,null,null,null,null,null,null,null,null,null,null,null,null,null,null,null,null,null,null,null,null,null,null,null,null,null,null,null,null,null,null,null,null,null,null,null,null,null,null,null,null,null,null,null,null,null,null,null,null,null,null,null,null,null,null,null,null,null,null,null,null,null,null,null,null,null,null,null,null,null,0,0,"",null,0,null,null,null,null,null,null,null,null,null,null,null,null,1,1,1,1,1,1,1,1,1,1,null,null,1,1,1,1,1,1,1,1,1,1]
[null,null,null,null,null,null,null,null,null,null,null,null,null,null,null,null,null,null,null,null,null,null,null,null,null,null,null,null,null,null,null,null,null,null,null,null,null,null,null,null,null,null,0,0,null,null,null,null,null,null,null,null,null,null,null,null,null,null,null,null,null,null,null,null,null,null,null,null,null,null,null,null,null,null,null,null,null,null,null,null,null,null,null,null,null,null,null,null,null,null,null,null,null,null,null,null,null,null,null,null,null,null,null,null,null,null,null,null,null,null,null,null,null,null,null,null,null,null,null,null,null,null,null,null,null,null,null,null,null,null,null,null,null,0,0,"",null,0,null,null,null,null,null,null,null,null,null,null,null,null,1,1,1,1,1,1,1,1,1,1,null,null,1,1,1,1,1,1,1,1,1,1]
[null,null,null,null,null,null,null,null,null,null,null,null,null,null,null,null,null,null,null,null,null,null,null,null,null,null,null,null,null,null,null,null,null,null,null,null,null,null,null,null,null,null,0,0,null,null,null,null,null,null,null,null,null,null,null,null,null,null,null,null,null,null,null,null,null,null,null,null,null,null,null,null,null,null,null,null,null,null,null,null,null,null,null,null,null,null,null,null,null,null,null,null,null,null,null,null,null,null,null,null,null,null,null,null,null,null,null,null,null,null,null,null,null,null,null,null,null,null,null,null,null,null,null,null,null,null,null,null,null,null,null,null,null,0,0,"",null,0,null,null,null,null,null,null,null,null,null,null,null,null,1,1,1,1,1,1,1,1,1,1,null,null,1,1,1,1,1,1,1,1,1,1]
[null,null,null,null,null,null,null,null,null,null,null,null,null,null,null,null,null,null,null,null,null,null,null,null,null,null,null,null,null,null,null,null,null,null,null,null,null,null,null,null,null,null,0,0,null,null,null,null,null,null,null,null,null,null,null,null,null,null,null,null,null,null,null,null,null,null,null,null,null,null,null,null,null,null,null,null,null,null,null,null,null,null,null,null,null,null,null,null,null,null,null,null,null,null,null,null,null,null,null,null,null,null,null,null,null,null,null,null,null,null,null,null,null,null,null,null,null,null,null,null,null,null,null,null,null,null,null,null,null,null,null,null,null,0,0,"",null,0,null,null,null,null,null,null,null,null,null,null,null,null,1,1,1,1,1,1,1,1,1,1,null,null,1,1,1,1,1,1,1,1,1,1]
[null,null,null,null,null,null,null,null,null,null,null,null,null,null,null,null,null,null,null,null,null,null,null,null,null,null,null,null,null,null,null,null,null,null,null,null,null,null,null,null,null,null,null,null,null,null,null,null,null,null,null,null,null,null,null,null,null,null,null,null,null,null,null,null,null,null,null,null,null,null,null,null,null,null,null,null,null,null,null,null,null,null,null,null,null,null,null,null,null,null,null,null,null,null,null,null,null,null,null,null,null,null,null,null,null,null,null,null,null,null,null,null,null,null,null,null,null,null,null,null,null,null,null,null,null,null,null,null,null,null,null,null,null,"1.Zahl",null,{"$f":"MATCH(EF92-1,EF81:EF90)","v":{"$error":"#N/A"}},{"$f":"COUNTIF(EG81:EG90,\"x\")","v":0},{"$f":"IF(SUM(EH81:EH90)=EG91+EG92,\"ja\",\"nein\")","v":"ja"},null,null,null,null,null,null,null,null,null,null,null,null,{"$f":"IF(SUM(EU81:EU90)=10,10,0)","v":10},{"$f":"IF(SUM(EV81:EV90)=10,10,0)","v":10},10,10,10,10,10,10,10,10,null,null,{"$f":"IF(SUM(FG81:FG90)=10,10,0)","v":10},{"$f":"IF(SUM(FH81:FH90)=10,10,0)","v":10},10,10,10,10,10,10,10,10]
[null,null,null,null,null,null,null,null,null,null,null,null,null,null,null,null,null,null,null,null,null,null,null,null,null,null,null,null,null,null,null,null,null,null,null,null,null,null,null,null,null,null,null,null,null,null,null,null,null,null,null,null,null,null,null,null,null,null,null,null,null,null,null,null,null,null,null,null,null,null,null,null,null,null,null,null,null,null,null,null,null,null,null,null,null,null,null,null,null,null,null,null,null,null,null,null,null,null,null,null,null,null,null,null,null,null,null,null,null,null,null,null,null,null,null,null,null,null,null,null,null,null,null,null,null,null,null,null,null,null,null,null,null,"2.Zahl",null,{"$f":"MATCH(11,EF81:EF90)","v":{"$error":"#N/A"}},{"$f":"COUNTIF(EG81:EG90,\"o\")","v":0}]
[null,null,null,null,null,null,null,null,null,null,null,null,null,null,null,null,null,null,null,null,null,null,null,null,null,null,null,null,null,null,null,null,null,null,null,null,null,null,null,null,null,null,{"$f":"IF(AQ3=\"d\",INT(AQ16/10),\"\")","v":""},{"$f":"IF(AR3=\"d\",INT(AR16/10),\"\")","v":""},"","","","","","","","","","","","","","","","","","","","","","","","","","","","","","","","","","","","","","","","","","","","","","","","","","","",null,null,null,null,null,null,null,null,null,null,null,null,null,null,null,null,null,null,null,null,null,null,null,null,null,null,null,null,null,null,null,null,null,null,null,null,null,null,null,null,"|","|","|"]
[null,null,null,null,null,null,null,null,null,null,null,null,null,null,null,null,null,null,null,null,null,null,null,null,null,null,null,null,null,null,null,null,null,null,null,null,null,null,null,null,null,null,{"$f":"IF(AQ3=\"d\",AQ16-10*AQ93+1,\"\")","v":""},{"$f":"IF(AR3=\"d\",AR16-10*AR93+1,\"\")","v":""},"","","","","","","","","","","","","","","","","","","","","","","","","","","","","","","","","","","","","","","","","","","","","","","","","","","",null,null,null,null,null,null,null,null,null,null,null,null,null,null,null,null,null,null,null,null,null,null,null,null,null,null,null,null,null,null,null,null,null,null,null,null,null,null,null,null,"Angabe des Ortes der Verschiedenen","Anzahl x resp. Anzahl o","Prüfen, ob die eingesetzte 3. Zeile überall identisch mit zwei Zeilen ausser bei Leeren.",{"$f":"IF(AND(EI81=EI80,EI81=EI82),\"f\",\"\")","v":""},{"$f":"IF(AND(EJ81=EJ80,EJ81=EJ82),\"f\",\"\")","v":""},"","","","","","","",""]
[null,null,null,null,null,null,null,null,null,null,null,null,null,null,null,null,null,null,null,null,null,null,null,null,null,null,null,null,null,null,null,null,null,null,null,null,null,null,null,null,null,null,"Hier wird angegeben welche drei Spalten bis auf drei leere Felder gleich sind.",null,null,null,null,null,null,null,null,null,null,null,null,null,null,null,null,null,null,null,null,null,null,null,null,null,null,null,null,null,null,null,null,null,null,null,null,null,null,null,null,null,null,null,null,null,null,null,null,null,null,null,null,null,null,null,null,null,null,null,null,null,null,null,null,null,null,null,null,null,null,null,null,null,null,null,null,null,null,null,null,null,null,null,null,null,null,null,null,null,null,null,null,null,null,null,{"$f":"IF(AND(EI82=EI81,EI82=EI83),\"f\",\"\")","v":"f"},"f","f","f","f","f","f","f","f","f"]
[null,null,null,null,null,null,null,null,null,null,null,null,null,null,null,null,null,null,null,null,null,null,null,null,null,null,null,null,null,null,null,null,null,null,null,null,null,null,null,null,null,null,null,null,null,null,null,null,null,null,null,null,null,null,null,null,null,null,null,null,null,null,null,null,null,null,null,null,null,null,null,null,null,null,null,null,null,null,null,null,null,null,null,null,null,null,null,null,null,null,null,null,null,null,null,null,null,null,null,null,null,null,null,null,null,null,null,null,null,null,null,null,null,null,null,null,null,null,null,null,null,null,null,null,null,null,null,null,null,null,null,null,null,null,null,null,null,null,{"$f":"IF(AND(EI83=EI82,EI83=EI84),\"f\",\"\")","v":"f"},"f","f","f","f","f","f","f","f","f"]
[null,null,null,null,null,null,null,null,null,null,null,null,null,null,null,null,null,null,null,null,null,null,null,null,null,null,null,null,null,null,null,null,null,null,null,null,null,null,null,null,null,null,"Zwei Spalten dazu",null,null,null,null,null,null,null,null,null,null,null,null,null,null,null,null,null,null,null,null,null,null,null,null,null,null,null,null,null,null,null,null,null,null,null,null,null,null,null,null,null,null,null,null,null,null,null,null,null,null,null,null,null,null,null,null,null,null,null,null,null,null,null,null,null,null,null,null,null,null,null,null,null,null,null,null,null,null,null,null,null,null,null,null,null,null,null,null,null,null,null,null,null,null,null,{"$f":"IF(AND(EI84=EI83,EI84=EI85),\"f\",\"\")","v":"f"},"f","f","f","f","f","f","f","f","f"]
[null,null,null,null,null,null,null,null,null,null,null,null,null,null,null,null,null,null,null,null,null,null,null,null,null,null,null,null,null,null,null,null,null,null,null,null,null,null,null,null,null,null,null,null,null,null,null,null,null,null,null,null,null,null,null,null,null,null,null,null,null,null,null,null,null,null,null,null,null,null,null,null,null,null,null,null,null,null,null,null,null,null,null,null,null,null,null,null,null,null,null,null,null,null,null,null,null,null,null,null,null,null,null,null,null,null,null,null,null,null,null,null,null,null,null,null,null,null,null,null,null,null,null,null,null,null,null,null,null,null,null,null,null,null,null,null,null,null,{"$f":"IF(AND(EI85=EI84,EI85=EI86),\"f\",\"\")","v":"f"},"f","f","f","f","f","f","f","f","f"]
[null,null,null,null,null,null,null,null,null,null,null,null,null,null,null,null,null,null,null,null,null,null,null,null,null,null,null,null,null,null,null,null,null,null,null,null,null,null,null,null,null,null,null,null,null,null,null,null,null,null,null,null,null,null,null,null,null,null,null,null,null,null,null,null,null,null,null,null,null,null,null,null,null,null,null,null,null,null,null,null,null,null,null,null,null,null,null,null,null,null,null,null,null,null,null,null,null,null,null,null,null,null,null,null,null,null,null,null,null,null,null,null,null,null,null,null,null,null,null,null,null,null,null,null,null,null,null,null,null,null,null,null,null,null,null,null,null,null,{"$f":"IF(AND(EI86=EI85,EI86=EI87),\"f\",\"\")","v":"f"},"f","f","f","f","f","f","f","f","f"]
[null,null,null,null,null,null,null,null,null,null,null,null,null,null,null,null,null,null,null,null,null,null,null,null,null,null,null,null,null,null,null,null,null,null,null,null,null,null,null,null,null,null,{"$f":"OFFSET(N6,0,$AQ$98)","v":0},{"$f":"OFFSET(N6,0,$AR$98)","v":0},null,null,null,null,null,null,null,null,null,null,null,null,null,null,null,null,null,null,null,null,null,null,null,null,null,null,null,null,null,null,null,null,null,null,null,null,null,null,null,null,null,null,null,null,null,null,null,null,null,null,null,null,null,null,null,null,null,null,null,null,null,null,null,null,null,null,null,null,null,null,null,null,null,null,null,null,null,null,null,null,null,null,null,null,null,null,null,null,null,null,null,null,null,null,{"$f":"IF(AND(EI87=EI86,EI87=EI88),\"f\",\"\")","v":"f"},"f","f","f","f","f","f","f","f","f"]
[null,null,null,null,null,null,null,null,null,null,null,null,null,null,null,null,null,null,null,null,null,null,null,null,null,null,null,null,null,null,null,null,null,null,null,null,null,null,null,null,null,null,{"$f":"OFFSET(N7,0,$AQ$98)","v":0},{"$f":"OFFSET(N7,0,$AR$98)","v":0},null,null,null,null,null,null,null,null,null,null,null,null,null,null,null,null,null,null,null,null,null,null,null,null,null,null,null,null,null,null,null,null,null,null,null,null,null,null,null,null,null,null,null,null,null,null,null,null,null,null,null,null,null,null,null,null,null,null,null,null,null,null,null,null,null,null,null,null,null,null,null,null,null,null,null,null,null,null,null,null,null,null,null,null,null,null,null,null,null,null,null,null,null,null,{"$f":"IF(AND(EI88=EI87,EI88=EI89),\"f\",\"\")","v":"f"},"f","f","f","f","f","f","f","f","f"]
[null,null,null,null,null,null,null,null,null,null,null,null,null,null,null,null,null,null,null,null,null,null,null,null,null,null,null,null,null,null,null,null,null,null,null,null,null,null,null,null,null,null,0,0,null,null,null,null,null,null,null,null,null,null,null,null,null,null,null,null,null,null,null,null,null,null,null,null,null,null,null,null,null,null,null,null,null,null,null,null,null,null,null,null,null,null,null,null,null,null,null,null,null,null,null,null,null,null,null,null,null,null,null,null,null,null,null,null,null,null,null,null,null,null,null,null,null,null,null,null,null,null,null,null,null,null,null,null,null,null,null,null,null,null,null,null,null,null,{"$f":"IF(AND(EI89=EI88,EI89=EI90),\"f\",\"\")","v":"f"},"f","f","f","f","f","f","f","f","f"]
[null,null,null,null,null,null,null,null,null,null,null,null,null,null,null,null,null,null,null,null,null,null,null,null,null,null,null,null,null,null,null,null,null,null,null,null,null,null,null,null,null,null,0,0,null,null,null,null,null,null,null,null,null,null,null,null,null,null,null,null,null,null,null,null,null,null,null,null,null,null,null,null,null,null,null,null,null,null,null,null,null,null,null,null,null,null,null,null,null,null,null,null,null,null,null,null,null,null,null,null,null,null,null,null,null,null,null,null,null,null,null,null,null,null,null,null,null,null,null,null,null,null,null,null,null,null,null,null,null,null,null,null,null,null,null,null,null,null,{"$f":"IF(AND(EI90=EI89,EI90=EI91),\"f\",\"\")","v":"f"},"f","f","f","f","f","f","f","f","f"]
[null,null,null,null,null,null,null,null,null,null,null,null,null,null,null,null,null,null,null,null,null,null,null,null,null,null,null,null,null,null,null,null,null,null,null,null,null,null,null,null,null,null,0,0,null,null,null,null,null,null,null,null,null,null,null,null,null,null,null,null,null,null,null,null,null,null,null,null,null,null,null,null,null,null,null,null,null,null,null,null,null,null,null,null,null,null,null,null,null,null,null,null,null,null,null,null,null,null,null,null,null,null,null,null,null,null,null,null,null,null,null,null,null,null,null,null,null,null,null,null,null,null,null,null,null,null,null,null,null,null,null,null,null,null,null,null,null,null,{"$f":"COUNTIF(EI94:EI103,\"f\")+EU91+FG91","v":29},{"$f":"COUNTIF(EJ94:EJ103,\"f\")+EV91+FH91","v":29},29,29,29,29,29,29,29,29,{"$f":"IF(COUNTIF(EI104:ER104,0)=0,-1,COUNTIF(EI104:ER104,0))","v":-1}]
[null,null,null,null,null,null,null,null,null,null,null,null,null,null,null,null,null,null,null,null,null,null,null,null,null,null,null,null,null,null,null,null,null,null,null,null,null,null,null,null,null,null,0,0]
[null,null,null,null,null,null,null,null,null,null,null,null,null,null,null,null,null,null,null,null,null,null,null,null,null,null,null,null,null,null,null,null,null,null,null,null,null,null,null,null,null,null,0,0]
[null,null,null,null,null,null,null,null,null,null,null,null,null,null,null,null,null,null,null,null,null,null,null,null,null,null,null,null,null,null,null,null,null,null,null,null,null,null,null,null,null,null,0,0,null,null,null,null,null,null,null,null,null,null,null,null,null,null,null,null,null,null,null,null,null,null,null,null,null,null,null,null,null,null,null,null,null,null,null,null,null,null,null,null,null,null,null,null,null,null,null,null,null,null,null,null,null,null,null,null,null,null,null,null,null,null,null,null,null,null,null,null,null,null,null,null,null,null,null,null,null,null,null,null,null,null,null,null,null,null,null,null,null,null,null,null,null,null,{"$f":"IF(EI$104=0,EI81,\"\")","v":""},{"$f":"IF(EJ$104=0,EJ81,\"\")","v":""},"","","","","","","","",{"$f":"IF(COUNTIF(EI107:ER107,\"x\")=ES$104,\"x\",IF(COUNTIF(EI107:ER107,\"o\")=ES$104,\"o\",\"\"))","v":""}]
[null,null,null,null,null,null,null,null,null,null,null,null,null,null,null,null,null,null,null,null,null,null,null,null,null,null,null,null,null,null,null,null,null,null,null,null,null,null,null,null,null,null,0,0,null,null,null,null,null,null,null,null,null,null,null,null,null,null,null,null,null,null,null,null,null,null,null,null,null,null,null,null,null,null,null,null,null,null,null,null,null,null,null,null,null,null,null,null,null,null,null,null,null,null,null,null,null,null,null,null,null,null,null,null,null,null,null,null,null,null,null,null,null,null,null,null,null,null,null,null,null,null,null,null,null,null,null,null,null,null,null,null,null,null,null,null,null,null,{"$f":"IF(EI$104=0,EI82,\"\")","v":""},"","","","","","","","","",{"$f":"IF(COUNTIF(EI108:ER108,\"x\")=ES$104,\"x\",IF(COUNTIF(EI108:ER108,\"o\")=ES$104,\"o\",\"\"))","v":""}]
[null,null,null,null,null,null,null,null,null,null,null,null,null,null,null,null,null,null,null,null,null,null,null,null,null,null,null,null,null,null,null,null,null,null,null,null,null,null,null,null,null,null,0,0,null,null,null,null,null,null,null,null,null,null,null,null,null,null,null,null,null,null,null,null,null,null,null,null,null,null,null,null,null,null,null,null,null,null,null,null,null,null,null,null,null,null,null,null,null,null,null,null,null,null,null,null,null,null,null,null,null,null,null,null,null,null,null,null,null,null,null,null,null,null,null,null,null,null,null,null,null,null,null,null,null,null,null,null,null,null,null,null,null,null,null,null,null,null,{"$f":"IF(EI$104=0,EI83,\"\")","v":""},"","","","","","","","","",""]
[null,null,null,null,null,null,null,null,null,null,null,null,null,null,null,null,null,null,null,null,null,null,null,null,null,null,null,null,null,null,null,null,null,null,null,null,null,null,null,null,null,null,null,null,null,null,null,null,null,null,null,null,null,null,null,null,null,null,null,null,null,null,null,null,null,null,null,null,null,null,null,null,null,null,null,null,null,null,null,null,null,null,null,null,null,null,null,null,null,null,null,null,null,null,null,null,null,null,null,null,null,null,null,null,null,null,null,null,null,null,null,null,null,null,null,null,null,null,null,null,null,null,null,null,null,null,null,null,null,null,null,null,null,null,null,null,null,null,{"$f":"IF(EI$104=0,EI84,\"\")","v":""},"","","","","","","","","",""]
[null,null,null,null,null,null,null,null,null,null,null,null,null,null,null,null,null,null,null,null,null,null,null,null,null,null,null,null,null,null,null,null,null,null,null,null,null,null,null,null,null,null,null,null,null,null,null,null,null,null,null,null,null,null,null,null,null,null,null,null,null,null,null,null,null,null,null,null,null,null,null,null,null,null,null,null,null,null,null,null,null,null,null,null,null,null,null,null,null,null,null,null,null,null,null,null,null,null,null,null,null,null,null,null,null,null,null,null,null,null,null,null,null,null,null,null,null,null,null,null,null,null,null,null,null,null,null,null,null,null,null,null,null,null,null,null,null,null,{"$f":"IF(EI$104=0,EI85,\"\")","v":""},"","","","","","","","","",""]
[null,null,null,null,null,null,null,null,null,null,null,null,null,null,null,null,null,null,null,null,null,null,null,null,null,null,null,null,null,null,null,null,null,null,null,null,null,null,null,null,null,null,null,null,null,null,null,null,null,null,null,null,null,null,null,null,null,null,null,null,null,null,null,null,null,null,null,null,null,null,null,null,null,null,null,null,null,null,null,null,null,null,null,null,null,null,null,null,null,null,null,null,null,null,null,null,null,null,null,null,null,null,null,null,null,null,null,null,null,null,null,null,null,null,null,null,null,null,null,null,null,null,null,null,null,null,null,null,null,null,null,null,null,null,null,null,null,null,{"$f":"IF(EI$104=0,EI86,\"\")","v":""},"","","","","","","","","",""]
[null,null,null,null,null,null,null,null,null,null,null,null,null,null,null,null,null,null,null,null,null,null,null,null,null,null,null,null,null,null,null,null,null,null,null,null,null,null,null,null,null,null,null,null,null,null,null,null,null,null,null,null,null,null,null,null,null,null,null,null,null,null,null,null,null,null,null,null,null,null,null,null,null,null,null,null,null,null,null,null,null,null,null,null,null,null,null,null,null,null,null,null,null,null,null,null,null,null,null,null,null,null,null,null,null,null,null,null,null,null,null,null,null,null,null,null,null,null,null,null,null,null,null,null,null,null,null,null,null,null,null,null,null,null,null,null,null,null,{"$f":"IF(EI$104=0,EI87,\"\")","v":""},"","","","","","","","","",""]
[null,null,null,null,null,null,null,null,null,null,null,null,null,null,null,null,null,null,null,null,null,null,null,null,null,null,null,null,null,null,null,null,null,null,null,null,null,null,null,null,null,null,null,null,null,null,null,null,null,null,null,null,null,null,null,null,null,null,null,null,null,null,null,null,null,null,null,null,null,null,null,null,null,null,null,null,null,null,null,null,null,null,null,null,null,null,null,null,null,null,null,null,null,null,null,null,null,null,null,null,null,null,null,null,null,null,null,null,null,null,null,null,null,null,null,null,null,null,null,null,null,null,null,null,null,null,null,null,null,null,null,null,null,null,null,null,null,null,{"$f":"IF(EI$104=0,EI88,\"\")","v":""},"","","","","","","","","",""]
[null,null,null,null,null,null,null,null,null,null,null,null,null,null,null,null,null,null,null,null,null,null,null,null,null,null,null,null,null,null,null,null,null,null,null,null,null,null,null,null,null,null,null,null,null,null,null,null,null,null,null,null,null,null,null,null,null,null,null,null,null,null,null,null,null,null,null,null,null,null,null,null,null,null,null,null,null,null,null,null,null,null,null,null,null,null,null,null,null,null,null,null,null,null,null,null,null,null,null,null,null,null,null,null,null,null,null,null,null,null,null,null,null,null,null,null,null,null,null,null,null,null,null,null,null,null,null,null,null,null,null,null,null,null,null,null,null,null,{"$f":"IF(EI$104=0,EI89,\"\")","v":""},"","","","","","","","","",""]
[null,null,null,null,null,null,null,null,null,null,null,null,null,null,null,null,null,null,null,null,null,null,null,null,null,null,null,null,null,null,null,null,null,null,null,null,null,null,null,null,null,null,null,null,null,null,null,null,null,null,null,null,null,null,null,null,null,null,null,null,null,null,null,null,null,null,null,null,null,null,null,null,null,null,null,null,null,null,null,null,null,null,null,null,null,null,null,null,null,null,null,null,null,null,null,null,null,null,null,null,null,null,null,null,null,null,null,null,null,null,null,null,null,null,null,null,null,null,null,null,null,null,null,null,null,null,null,null,null,null,null,null,null,null,null,null,null,null,{"$f":"IF(EI$104=0,EI90,\"\")","v":""},"","","","","","","","","",""]
[null,null,null,null,null,null,null,null,null,null,null,null,null,null,null,null,null,null,null,null,null,null,null,null,null,null,null,null,null,null,null,null,null,null,null,null,null,null,null,null,null,null,null,null,null,null,null,null,null,null,null,null,null,null,null,null,null,null,null,null,null,null,null,null,null,null,null,null,null,null,null,null,null,null,null,null,null,null,null,null,null,null,null,null,null,null,null,null,null,null,null,null,null,null,null,null,null,null,null,null,null,null,null,null,null,null,null,null,null,null,null,null,null,null,null,null,null,null,null,null,null,null,null,null,null,null,null,null,null,null,null,null,null,null,null,null,null,null,null,null,null,null,null,null,null,null,null,null,"|"]
[null,null,null,null,null,null,null,null,null,null,null,null,null,null,null,null,null,null,null,null,null,null,null,null,null,null,null,null,null,null,null,null,null,null,null,null,null,null,null,null,null,null,null,null,null,null,null,null,null,null,null,null,null,null,null,null,null,null,null,null,null,null,null,null,null,null,null,null,null,null,null,null,null,null,null,null,null,null,null,null,null,null,null,null,null,null,null,null,null,null,null,null,null,null,null,null,null,null,null,null,null,null,null,null,null,null,null,null,null,null,null,null,null,null,null,null,null,null,null,null,null,null,null,null,null,null,null,null,null,null,null,null,null,null,null,null,null,null,null,null,null,null,null,null,null,null,null,null,"Mögliche Setzungen"]

{"sheet":"Tabelle2","index":2,"n_rows":528,"n_cols":83,"rows_kept":528,"cut":false,"hidden":false,"merged":[[157,17,157,18],[181,17,181,18]]}
[]
[null,"Gegeben",null,null,null,null,null,null,null,null,null,null,null,"Lösung"]
[null,"o",null,null,null,"o",null,null,null,"x",null,null,null,"o","o","x","o","o","x","x","o","x","x"]
[null,null,null,null,null,null,null,null,null,null,null,null,null,"x","o","x","o","x","x","o","x","o","o"]
[null,null,null,null,"x",null,null,null,null,null,null,null,null,"x","x","o","x","x","o","o","x","o","o"]
[null,null,null,null,null,"o","o",null,null,null,null,null,null,"o","x","o","x","o","o","x","o","x","x"]
[null,null,null,null,null,null,null,"x",null,null,"x",null,null,"x","o","x","o","o","x","x","o","o","x"]
[null,null,null,"x",null,null,null,null,null,null,null,null,null,"x","o","x","o","x","o","o","x","x","o"]
[null,null,"x",null,null,null,null,null,null,null,"x",null,null,"o","x","o","x","x","o","o","x","o","x"]
[null,"o",null,"x",null,"o",null,null,"o",null,null,null,null,"o","x","x","o","o","x","x","o","x","o"]
[null,null,null,null,null,"o",null,null,null,null,"x",null,null,"x","o","o","x","o","x","o","x","o","x"]
[null,"o",null,null,null,null,null,null,"o",null,null,null,null,"o","x","o","x","x","o","x","o","x","o"]
[]
[null,"Gegeben",null,null,null,null,null,null,null,null,null,null,null,"Lösung"]
[null,null,null,null,null,"x","x",null,null,null,null,null,null,"o","o","x","o","x","x","o","o","x","x"]
[null,null,null,null,null,null,null,null,null,null,"x",null,null,"o","o","x","o","x","o","x","o","x","x"]
[null,null,null,null,null,null,"x",null,null,"o",null,null,null,"x","x","o","x","o","x","o","x","o","o"]
[null,"x",null,"x",null,null,null,null,null,null,null,null,null,"x","o","x","o","o","x","o","o","x","x"]
[null,null,null,null,null,null,null,null,null,"o","o",null,null,"o","x","x","o","x","o","x","x","o","o"]
[null,null,"x","o",null,null,null,null,null,null,"x",null,null,"o","x","o","x","o","x","x","o","o","x"]
[null,null,null,"o",null,"x",null,"o",null,null,null,null,null,"x","o","o","x","x","o","o","x","x","o"]
[null,null,null,null,null,null,null,null,"x",null,null,null,null,"x","o","x","o","x","o","o","x","o","x"]
[null,"o",null,null,null,null,"x",null,null,null,"o",null,null,"o","x","o","x","o","x","x","o","x","o"]
[null,null,null,"o",null,null,null,null,"x",null,"o",null,null,"x","x","o","x","o","o","x","x","o","o"]
[]
[null,"Gegeben",null,null,null,null,null,null,null,null,null,null,null,"Lösung"]
[null,null,null,null,null,"x",null,null,null,null,"x",null,null,"o","x","o","o","x","x","o","o","x","x"]
[null,null,"o","o",null,null,null,null,null,"o",null,null,null,"x","o","o","x","o","x","o","x","o","x"]
[null,null,null,null,null,null,null,"x",null,"o",null,null,null,"o","x","x","o","x","o","x","x","o","o"]
[null,null,null,"o",null,null,null,null,null,null,"o",null,null,"o","x","o","x","x","o","x","o","x","o"]
[null,"x",null,null,null,null,null,null,"o",null,null,null,null,"x","o","x","o","o","x","o","o","x","x"]
[null,null,"o",null,"x",null,"o",null,null,null,null,null,null,"x","o","o","x","x","o","o","x","o","x"]
[null,null,null,null,null,null,null,"x",null,null,null,null,null,"o","x","x","o","o","x","x","o","x","o"]
[null,null,null,"x",null,null,"o",null,"o","o",null,null,null,"x","o","x","x","o","o","x","o","o","x"]
[null,null,null,null,"o",null,null,null,null,null,null,null,null,"o","x","o","o","x","x","o","x","x","o"]
[null,null,"o",null,null,null,"o",null,null,null,null,null,null,"x","o","x","x","o","o","x","x","o","o"]
[]
[null,"Gegeben",null,null,null,null,null,null,null,null,null,null,null,"Lösung"]
[null,"o",null,null,null,"x",null,null,"o",null,null,null,null,"o","o","x","o","x","o","x","o","x","x"]
[null,null,"x","x",null,null,null,null,null,"x",null,null,null,"o","x","x","o","x","o","x","o","x","o"]
[null,null,"x",null,null,null,"x",null,null,null,null,null,null,"x","x","o","x","o","x","o","x","o","o"]
[null,null,null,"x","x",null,null,"o",null,null,null,null,null,"o","o","x","x","o","x","o","x","o","x"]
[null,null,null,null,null,null,null,null,null,null,null,null,null,"x","x","o","o","x","o","x","o","x","o"]
[null,null,null,"o","o",null,null,null,null,"o","o",null,null,"x","x","o","o","x","x","o","x","o","o"]
[null,null,null,null,null,null,null,null,"o","o",null,null,null,"o","o","x","x","o","x","x","o","o","x"]
[null,null,null,null,"x",null,null,null,null,null,null,null,null,"x","o","o","x","o","o","x","o","x","x"]
[null,"o",null,null,null,null,null,null,null,null,null,null,null,"o","x","x","o","x","o","o","x","x","o"]
[null,null,null,null,null,null,null,"o",null,null,null,null,null,"x","o","o","x","o","x","o","x","o","x"]
[]
[null,"Gegeben",null,null,null,null,null,null,null,null,null,null,null,"Lösung"]
[null,null,"o",null,null,null,null,"o",null,null,null,null,null,"x","o","o","x","o","x","o","o","x","x"]
[null,null,null,null,null,null,null,null,null,null,"x",null,null,"o","x","o","o","x","x","o","o","x","x"]
[null,null,null,null,null,null,"o",null,null,null,null,null,null,"x","o","x","o","x","o","x","x","o","o"]
[null,null,"x",null,null,null,null,null,null,null,null,null,null,"o","x","o","x","o","o","x","o","x","x"]
[null,null,null,null,null,null,null,null,"x",null,null,null,null,"o","x","o","o","x","x","o","x","x","o"]
[null,null,null,"x",null,"x",null,null,null,"o",null,null,null,"x","o","x","o","x","x","o","x","o","o"]
[null,null,"o",null,null,null,"o",null,null,"o",null,null,null,"x","o","x","x","o","o","x","o","o","x"]
[null,null,null,null,"x","x",null,"o",null,null,null,null,null,"o","x","o","x","x","o","o","x","x","o"]
[null,null,null,null,null,null,null,null,null,null,null,null,null,"o","x","x","o","o","x","x","o","o","x"]
[null,null,null,"x",null,"o",null,null,"x",null,null,null,null,"x","o","x","x","o","o","x","x","o","o"]
[]
[null,"Eingabe",null,null,null,null,null,null,null,null,null,null,null,"Lösung"]
[null,null,null,null,null,"o",null,null,null,"o",null,null,null,"x","x","o","x","o","o","x","o","o","x"]
[null,null,null,"o",null,null,null,null,"x",null,null,null,null,"x","x","o","x","o","o","x","x","o","o"]
[null,null,null,null,null,"x",null,null,null,null,"x",null,null,"o","o","x","o","x","x","o","o","x","x"]
[null,null,null,null,"o",null,null,null,null,null,null,null,null,"x","x","o","o","x","o","x","x","o","o"]
[null,null,null,"x",null,null,"x",null,null,null,null,null,null,"o","o","x","x","o","x","x","o","o","x"]
[null,null,null,null,null,null,"x","o",null,null,"o",null,null,"x","o","o","x","o","x","o","x","x","o"]
[null,"o",null,null,"o",null,null,"o",null,null,null,null,null,"o","x","x","o","x","o","o","x","x","o"]
[null,null,"x",null,null,null,null,null,null,null,null,null,null,"o","x","x","o","x","o","x","o","o","x"]
[null,null,null,"o",null,null,null,null,null,"x","x",null,null,"x","o","o","x","o","x","o","o","x","x"]
[null,null,null,"x",null,null,"x",null,null,null,null,null,null,"o","o","x","o","x","x","o","x","x","o"]
[]
[null,"Gegeben (Schwer)",null,null,null,null,null,null,null,null,null,null,null,"Lösung"]
[null,"x","o","x","o","x","x","o","x","o","o",null,null,"x","o","x","o","x","x","o","x","o","o"]
[null,null,null,null,"x","o",null,"x",null,null,"o",null,null,"x","o","x","x","o","o","x","o","x","o"]
[null,null,null,"o","x",null,null,"x","o",null,"x",null,null,"o","x","o","x","o","o","x","o","x","x"]
[null,null,"x",null,"o",null,null,"o","x","o",null,null,null,"o","x","o","o","x","x","o","x","o","x"]
[null,null,"o","x","o","x",null,null,"x",null,null,null,null,"x","o","x","o","x","o","x","x","o","o"]
[null,null,"o",null,"x","o",null,null,"o",null,null,null,null,"o","o","x","x","o","x","o","o","x","x"]
[null,"x","x","o","x","o","o","x","o","o","x",null,null,"x","x","o","x","o","o","x","o","o","x"]
[null,null,null,"x","o","x",null,null,"x",null,"o",null,null,"o","o","x","o","x","x","o","x","x","o"]
[null,null,null,"o","x","o",null,null,null,null,"x",null,null,"o","x","o","x","o","o","x","x","o","x"]
[null,null,"x",null,"o","x","x","o",null,null,null,null,null,"x","x","o","o","x","x","o","o","x","o"]
[]
[null,"Gegeben",null,null,null,null,null,null,null,null,null,null,null,"Lösung"]
[null,null,null,"o","o",null,null,null,null,"x",null,null,null,"x","x","o","o","x","o","o","x","x","o"]
[null,null,null,null,null,null,null,null,null,null,null,null,null,"o","o","x","x","o","x","o","x","o","x"]
[null,null,null,null,"o",null,null,null,null,null,null,null,null,"x","o","x","o","o","x","x","o","o","x"]
[null,"o",null,null,null,null,"o",null,null,null,"o",null,null,"o","x","o","x","x","o","o","x","x","o"]
[null,null,null,null,null,null,null,null,null,null,null,null,null,"o","o","x","x","o","o","x","x","o","x"]
[null,"x","x",null,"o",null,"x",null,"o",null,null,null,null,"x","x","o","o","x","x","o","o","x","o"]
[null,null,null,"o",null,null,null,null,null,null,"o",null,null,"o","x","o","x","o","x","x","o","x","o"]
[null,null,"o",null,null,null,"o",null,null,null,null,null,null,"x","o","x","o","x","o","o","x","o","x"]
[null,null,null,null,null,null,null,"x",null,"x",null,null,null,"x","o","x","o","o","x","x","o","x","o"]
[null,"o",null,null,"x",null,"o",null,"o",null,null,null,null,"o","x","o","x","x","o","x","o","o","x"]
[]
[null,"Testproblem (aus Schwer)",null,null,null,null,null,null,null,null,null,null,null,"Zwei Lösungen"]
[null,"x","o","x","o","x","x","o","x","o","o",null,null,"x","o","x","o","x","x","o","x","o","o",null,"x","o","x","o","x","x","o","x","o","o"]
[null,"x",null,null,null,"o","o",null,null,"x","o",null,null,"x","x","o","x","o","o","x","o","x","o",null,"x","o","x","x","o","o","x","o","x","o"]
[null,"o",null,null,null,"o","o",null,null,"x","x",null,null,"o","o","x","x","o","o","x","o","x","x",null,"o","x","o","x","o","o","x","o","x","x"]
[null,"o","x","o","o","x","x","o","x","o","x",null,null,"o","x","o","o","x","x","o","x","o","x",null,"o","x","o","o","x","x","o","x","o","x"]
[null,"x","o","x","o","x","o","x","x","o","o",null,null,"x","o","x","o","x","o","x","x","o","o",null,"x","o","x","o","x","o","x","x","o","o"]
[null,"o","o","x","x","o","x","o","o","x","x",null,null,"o","o","x","x","o","x","o","o","x","x",null,"o","o","x","x","o","x","o","o","x","x"]
[null,"x","x","o","x","o","o","x","o","o","x",null,null,"x","x","o","x","o","o","x","o","o","x",null,"x","x","o","x","o","o","x","o","o","x"]
[null,"o","o","x","o","x","x","o","x","x","o",null,null,"o","o","x","o","x","x","o","x","x","o",null,"o","o","x","o","x","x","o","x","x","o"]
[null,null,"x","o","x","o","o","x",null,null,"x",null,null,"o","x","o","x","o","o","x","x","o","x",null,"o","x","o","x","o","o","x","x","o","x"]
[null,null,"x","o","o","x","x","o",null,null,"o",null,null,"x","x","o","o","x","x","o","o","x","o",null,"x","x","o","o","x","x","o","o","x","o"]
[]
[null,"Gegeben (Schwer)",null,null,null,null,null,null,null,null,null,null,null,"Lösung"]
[null,"x",null,null,"x",null,null,null,null,"x",null,null,null,"x","o","x","x","o","o","x","o","x","o"]
[null,null,null,"o",null,null,null,null,null,null,null,null,null,"o","x","o","o","x","o","x","o","x","x"]
[null,"o",null,"o",null,null,null,"o",null,"o",null,null,null,"o","x","o","o","x","x","o","x","o","x"]
[null,null,null,null,null,"o","x",null,"x",null,null,null,null,"x","o","x","x","o","x","o","x","o","o"]
[null,null,null,"x",null,null,null,null,null,null,null,null,null,"o","x","x","o","x","o","x","o","x","o"]
[null,null,null,null,null,null,null,null,null,null,null,null,null,"x","o","o","x","o","x","o","x","o","x"]
[null,null,"x","o",null,null,null,"x","x",null,null,null,null,"o","x","o","x","x","o","x","x","o","o"]
[null,null,"x",null,null,"o",null,null,null,null,null,null,null,"o","x","x","o","o","x","o","o","x","x"]
[null,null,null,null,null,"o",null,null,"o",null,null,null,null,"x","o","o","x","o","x","x","o","o","x"]
[null,null,null,null,"o",null,null,null,null,"x",null,null,null,"x","o","x","o","x","o","o","x","x","o"]
[]
[null,"Rätsel mit 24 Lösungen"]
[null,null,null,"x",null,null,"o",null,"o"]
[null,null,null,"x",null,null,null,"x"]
[null,"o",null,null,null,"o",null,null,null,null,"o"]
[null,"o",null,"o",null,null,null,"x",null,null,"o"]
[null,null,null,null,null,null,"x"]
[null,null,null,"x",null,null,null,null,null,"x"]
[null,null,null,null,"o",null,null,null,null,"x"]
[null,null,null,null,"x"]
[null,"o",null,null,null,"o",null,null,null,"x"]
[null,null,"o"]
[]
[null,"Rätsel ohne Lösung"]
[null,"o",null,null,null,"o","x",null,null,null,"o"]
[null,null,null,null,null,null,null,null,null,null,"x"]
[null,null,null,null,null,null,"x",null,null,"o"]
[null,"x",null,"x"]
[null,null,null,null,null,null,null,null,null,"o","o"]
[null,null,"x","o",null,null,null,null,null,null,"x"]
[null,null,null,"o",null,"x",null,"o"]
[null,null,null,null,null,null,null,null,"x"]
[null,"o",null,null,null,null,"x",null,null,null,"o"]
[null,null,null,"o",null,null,null,null,"x",null,"o"]
[]
[null,"Rätsel, das die dritte Regel verlangt: Letzte Zeile darf nicht gleich der 8. Zeile sein."]
[null,null,null,"x",null,null,"o",null,"o",null,null,null,null,"o","x","x","o","x","o","x","o","o","x"]
[null,null,null,"x",null,null,null,"x",null,null,null,null,null,"x","o","x","o",null,null,"x","o","o","x"]
[null,"o",null,null,null,"o",null,null,null,null,"o",null,null,"o","x","o","x","o","x","o","x","x","o"]
[null,"o",null,"o",null,null,null,"x",null,null,"o",null,null,"o","x","o","x","x","o","x","o","x","o"]
[null,null,null,null,null,null,"x",null,null,null,null,null,null,"x","o","x","o","o","x","o","x","o","x"]
[null,null,null,"x",null,null,null,null,null,"x",null,null,null,"x","o","x","x","o","o","x","o","x","o"]
[null,null,null,null,"o",null,"x",null,null,"x",null,null,null,"o","x","o","o","x","x","o","x","x","o"]
[null,null,null,null,"x",null,null,null,null,null,null,null,null,"x","o","o","x","x","o","o","x","o","x"]
[null,"o",null,null,null,"o",null,"x",null,"x",null,null,null,"o","x","x","o","o","x","x","o","x","o"]
[null,null,"o",null,null,null,null,null,null,null,null,null,null,"x","o","o","x",null,null,"o","x","o","x"]
[]
[null,"Blick am Abend 03.12.12",null,null,null,null,null,null,null,null,null,null,null,"Lösung"]
[null,"o",null,null,null,null,null,"o","o",null,"o",null,null,"o","x","x","o","x","x","o","o","x","o"]
[null,null,null,null,null,null,null,null,null,"o",null,null,null,"x","o","o","x","o","o","x","x","o","x"]
[null,null,null,null,null,"o",null,"o",null,null,null,null,null,"x","o","o","x","o","x","o","o","x","x"]
[null,null,"x",null,null,null,"x",null,null,null,null,null,null,"o","x","x","o","x","x","o","x","o","o"]
[null,null,null,null,null,null,null,null,null,null,null,null,null,"x","x","o","x","o","o","x","o","x","o"]
[null,"x",null,null,"x",null,null,null,null,null,"x",null,null,"x","o","o","x","x","o","x","o","o","x"]
[null,null,null,null,null,"o",null,null,"x","o",null,null,null,"o","x","x","o","o","x","o","x","o","x"]
[null,null,"x",null,null,null,"x",null,null,null,null,null,null,"o","x","o","x","o","x","o","x","x","o"]
[null,null,null,null,"o",null,null,null,"o",null,null,null,null,"x","o","x","o","x","o","x","o","x","o"]
[null,null,"o",null,null,"x",null,null,null,null,null,null,null,"o","o","x","o","x","o","x","x","o","x"]
[]
[null,"Blick am Abend 04.12.12",null,null,null,null,null,null,null,null,null,null,null,"Lösung"]
[null,"o","o",null,null,"o",null,null,null,null,null,null,null,"o","o","x","x","o","x","o","x","x","o"]
[null,null,"o",null,null,null,null,null,null,"x","x",null,null,"x","o","o","x","o","o","x","o","x","x"]
[null,null,null,"x",null,null,null,null,null,null,"x",null,null,"o","x","x","o","x","o","o","x","o","x"]
[null,null,"o",null,null,"x",null,null,"o",null,null,null,null,"x","o","x","o","x","x","o","o","x","o"]
[null,"x",null,null,null,null,null,null,null,"x",null,null,null,"x","x","o","x","o","o","x","o","x","o"]
[null,null,"o",null,null,null,null,null,null,null,null,null,null,"o","o","x","o","x","x","o","x","o","x"]
[null,null,null,null,null,null,"x",null,null,null,null,null,null,"o","x","o","x","o","x","x","o","o","x"]
[null,null,null,null,"x",null,null,null,"x",null,null,null,null,"x","o","o","x","x","o","o","x","x","o"]
[null,null,null,null,null,null,null,null,null,null,null,null,null,"o","x","x","o","o","x","x","o","o","x"]
[null,null,null,null,null,null,null,null,null,null,null,null,null,"x","x","o","o","x","o","x","x","o","o"]
[]
[null,"Blick am Abend, 18.05.16",null,null,null,null,null,null,null,null,null,null,null,"Lösung",null,null,"Nr.",1,null,"(Rekursion)"]
[null,null,null,null,"x",null,null,null,"o",null,"x",null,null,"x","o","o","x","x","o","x","o","o","x"]
[null,"o",null,null,null,null,null,null,"o",null,null,null,null,"o","x","x","o","o","x","x","o","x","o"]
[null,"o",null,null,"x","x",null,null,null,null,"x",null,null,"o","x","o","x","x","o","o","x","o","x"]
[null,null,null,null,null,"o",null,"x",null,null,null,null,null,"x","o","o","x","o","o","x","x","o","x"]
[null,"o",null,null,null,null,null,null,"o",null,null,null,null,"o","x","x","o","x","x","o","o","x","o"]
[null,"o",null,null,null,null,null,"o",null,null,null,null,null,"o","x","o","o","x","x","o","o","x","x"]
[null,null,null,"x","x",null,null,null,"x",null,null,null,null,"x","o","x","x","o","o","x","x","o","o"]
[null,null,"o",null,"o","o",null,null,null,"o",null,null,null,"x","o","x","o","o","x","o","x","o","x"]
[null,null,null,null,null,null,null,null,"o",null,null,null,null,"o","x","o","x","x","o","x","o","x","o"]
[null,null,null,null,null,"o",null,null,null,null,null,null,null,"x","o","x","o","o","x","o","x","x","o"]
[]
[null,"Blick am Abend, 08.06.16",null,null,null,null,null,null,null,null,null,null,null,"Ab hier Spezialregel nötig",null,null,null,null,null,null,null,null,null,null,null,"Blick am Abend, 22.06.16",null,null,null,null,null,null,null,null,null,null,null,"Bis hierher trivial, dann Spezial"]
[null,null,"x",null,null,null,null,null,null,null,null,null,null,"o","x","x","o","x",null,null,"o",null,null,null,null,null,null,"o",null,null,null,null,null,"x",null,null,null,"x","o","o","x","x","o","o","x","x","o"]
[null,null,null,null,null,null,"o",null,"x",null,null,null,null,"o",null,"x","o","x","o",null,"x","o",null,null,null,"o",null,null,null,null,"x",null,null,null,null,null,null,"o","x","o","x","o","x","o","x","o","x"]
[null,null,null,"o",null,null,null,"o",null,null,"o",null,null,"x","o","o","x","o","x","o","x","x","o",null,null,null,"x","x",null,null,null,"x",null,null,"x",null,null,"o","x","x","o",null,null,"x","o","o","x"]
[null,"o",null,"o",null,null,null,null,null,"x",null,null,null,"o","x","o",null,"x","o","x","o","x",null,null,null,null,null,null,null,null,null,"x",null,null,null,null,null,"x","o","x","o",null,null,"x","o","x","o"]
[null,null,"x",null,null,"o",null,"x",null,null,null,null,null,"o","x","x","o","o","x","x","o","o","x",null,null,null,null,"o",null,null,null,null,null,null,null,null,null,"x","o","o","x","x","o","o","x","o","x"]
[null,null,null,null,null,"o",null,null,null,"x",null,null,null,"x","o",null,null,"o","x","o","x","x","o",null,null,null,"x",null,null,"o",null,"x",null,null,"o",null,null,"o","x","o","x","o","x","x","o","x","o"]
[null,null,null,null,null,null,null,null,null,null,"o",null,null,"x",null,null,null,"x","o",null,null,null,"o",null,null,"o",null,"x",null,null,"x",null,null,null,null,null,null,"o","x","x","o","o","x","o","x","o","x"]
[null,null,null,"o",null,null,null,null,"o",null,null,null,null,"o","x","o",null,null,null,null,"o",null,"x",null,null,null,null,"x",null,null,null,null,null,null,"o",null,null,"x","o","x","o","x","o","o","x","x","o"]
[null,null,null,null,null,null,"x",null,null,null,null,null,null,"x","o","x",null,null,"x",null,null,null,null,null,null,null,null,null,null,null,"x",null,"o",null,"o",null,null,"x","o","o","x","o","x","x","o","x","o"]
[null,null,null,"o",null,"o",null,"x",null,null,"o",null,null,"x",null,"o","x","o",null,"x",null,null,"o",null,null,null,"x",null,null,null,null,"x",null,null,null,null,null,"o","x","x","o","x","o","x","o","o","x"]
[]
[null,"Blick am Abend, 03.06.16",null,null,null,null,null,null,null,null,null,null,null,"Lösung mit Rekursionstiefe 2",null,null,null,null,null,null,null,null,null,null,null,"Blick am Abend, 24.06.16",null,null,null,null,null,null,null,null,null,null,null,"Lösung mit Rekursionstiefe 8"]
[null,null,null,"x","x",null,null,null,"o",null,null,null,null,"o","o","x","x","o","x","o","o","x","x",null,null,"x","x",null,null,null,null,null,null,null,null,null,null,"x","x","o","x","o","o","x","o","o","x"]
[null,"o",null,null,null,"o","o",null,null,null,null,null,null,"o","o","x","x","o","o","x","x","o","x",null,null,null,null,null,null,null,null,null,"x","x",null,null,null,"x","o","o","x","o","x","o","x","x","o"]
[null,null,"x",null,null,null,null,null,null,"x",null,null,null,"x","x","o","o","x","x","o","o","x","o",null,null,"o",null,null,null,null,null,null,"o",null,null,null,null,"o","x","x","o","x","x","o","o","x","o"]
[null,null,null,null,null,null,null,null,null,null,null,null,null,"o","x","o","o","x","x","o","x","o","x",null,null,null,"x",null,null,null,null,"x",null,null,"x",null,null,"o","x","o","o","x","o","x","x","o","x"]
[null,null,null,"x",null,"o",null,"x",null,null,null,null,null,"x","o","x","x","o","o","x","x","o","o",null,null,null,null,null,null,null,null,null,null,null,null,null,null,"x","o","o","x","o","o","x","o","x","x"]
[null,null,"o",null,null,"x","o",null,"o",null,null,null,null,"o","o","x","o","x","o","x","o","x","x",null,null,"x",null,null,null,null,null,null,"x",null,null,null,null,"x","o","x","o","o","x","o","x","x","o"]
[null,"x",null,null,null,null,null,null,null,null,null,null,null,"x","x","o","x","o","x","o","x","o","o",null,null,null,null,null,null,null,null,null,null,"o","o",null,null,"o","x","x","o","x","x","o","x","o","o"]
[null,null,null,"x",null,null,null,null,null,"x",null,null,null,"x","o","x","o","o","x","o","o","x","x",null,null,null,null,null,null,null,null,null,null,"o",null,null,null,"o","x","o","x","x","o","x","o","o","x"]
[null,"o",null,null,null,null,null,null,null,null,"o",null,null,"o","x","o","x","x","o","x","x","o","o",null,null,null,null,null,null,null,"o",null,null,null,null,null,null,"x","o","x","x","o","o","x","o","x","o"]
[null,null,null,null,null,null,"o",null,"o",null,"o",null,null,"x","x","o","o","x","o","x","o","x","o",null,null,null,null,null,null,null,null,null,"x",null,null,null,null,"o","o","x","o","x","x","o","x","o","x"]
[]
[null,"Blick am Abend, 11.08.16",null,null,null,null,null,null,null,null,null,null,null,"Lösung benötigt die dritte Regel"]
[null,null,null,null,"o",null,null,"x",null,null,null,null,null,"o","x","x","o","o","x","x","o","o","x"]
[null,null,null,null,null,null,null,null,"o",null,null,null,null,"x","x","o","o","x","x","o","o","x","o"]
[null,null,"o",null,"x",null,"o",null,null,null,null,null,null,"x","o","x","x","o","o","x","x","o","o"]
[null,null,null,null,null,null,null,"x",null,null,null,null,null,"o","o","x","x","o","x","x","o","o","x"]
[null,null,null,null,"o",null,"o",null,null,null,null,null,null,"x","x","o","o","x","o","o","x","x","o"]
[null,"o","o",null,null,null,null,null,null,"x",null,null,null,"o","o","x","o","x","o","x","o","x","x"]
[null,null,null,null,null,"o","x",null,null,null,"x",null,null,"x","o","o","x","o","x","o","x","o","x"]
[null,"o",null,"o",null,null,null,null,null,null,null,null,null,"o","x","o","x","o","x","x","o","x","o"]
[null,null,"x",null,null,"x","o",null,null,"x",null,null,null,"o","x","x","o","x","o","o","x","x","o"]
[null,null,null,null,null,"x",null,null,null,null,null,null,null,"x","o","o","x","x","o","o","x","o","x"]
[]
[null,"Blick am Abend, 19.07.16",null,null,null,null,null,null,null,null,null,null,null,"Lösung benötigt zweimal die dritte Regel",null,null,null,null,null,null,null,null,null,null,null,"Eindeutige Lösung mit Rekursion"]
[null,null,"x",null,"x","x",null,null,null,"x",null,null,null,"o","x","o","x","x","o","o","x","x","o",null,null,"o","x","o","x","x","o","o","x","x","o"]
[null,"o",null,"o",null,null,null,null,null,null,null,null,null,"o","x","o","x",null,"o",null,"x",null,null,null,null,"o","x","o","x","x","o","o","x","o","x"]
[null,null,null,null,null,null,"x",null,null,null,null,null,null,"x","o","x","o","o","x","x","o",null,null,null,null,"x","o","x","o","o","x","x","o","x","o"]
[null,null,null,null,"o",null,null,"o",null,null,null,null,null,"o",null,"x","o",null,"x","o",null,null,null,null,null,"o","x","x","o","o","x","o","x","o","x"]
[null,"x",null,null,null,"x",null,"o",null,null,null,null,null,"x",null,"o","x","x","o","o","x",null,null,null,null,"x","o","o","x","x","o","o","x","x","o"]
[null,null,null,null,null,null,"o",null,null,"o",null,null,null,"x","o","o","x",null,"o","x",null,"o",null,null,null,"x","o","o","x","x","o","x","o","o","x"]
[null,null,"x","x",null,null,null,null,"o",null,"x",null,null,"o","x","x","o","o","x",null,"o",null,"x",null,null,"o","x","x","o","o","x","x","o","o","x"]
[null,null,"x","x",null,null,null,null,null,null,null,null,null,"o","x","x","o",null,null,null,"x",null,null,null,null,"o","x","x","o","x","o","o","x","x","o"]
[null,null,null,null,null,null,null,null,"o",null,null,null,null,"x","o","o","x",null,null,null,"o",null,null,null,null,"x","o","o","x","o","x","x","o","x","o"]
[null,null,null,null,null,null,null,"x",null,null,"x",null,null,"x","o","x","o","o","x","x","o","o","x",null,null,"x","o","x","o","o","x","x","o","o","x"]
[]
[null,"Blick am Abend, 18.08.16 (mittel)",null,null,null,null,null,null,null,null,null,null,null,"Lösung benötigt viermal die dritte Regel",null,null,null,null,null,null,null,null,null,null,null,"1. Mal",null,null,null,null,null,null,null,null,null,null,null,"2. Mal (mit Folgerungen hellgrün)",null,null,null,null,null,null,null,null,null,null,null,"3. Mal (mit Folgerungen hellgrün)",null,null,null,null,null,null,null,null,null,null,null,"4. Mal (mit Folgerungen hellgrün)",null,null,null,null,null,null,null,null,null,null,null,"Eindeutige Lösung mit Rekursion"]
[null,null,null,null,null,null,"x",null,null,null,null,null,null,null,null,null,null,"o","x","x","o",null,null,null,null,"x",null,null,null,"o","x","x","o",null,null,null,null,"x","o","o","x","o","x","x","o",null,null,null,null,"x","o","o","x","o","x","x","o","x","o",null,null,"x","o","o","x","o","x","x","o","x","o",null,null,"x","o","o","x","o","x","x","o","x","o"]
[null,null,"x",null,"x",null,null,null,"o",null,null,null,null,"o","x","o","x","o","x","o","o","x","x",null,null,"o","x","o","x","o","x","o","o","x","x",null,null,"o","x","o","x","o","x","o","o","x","x",null,null,"o","x","o","x","o","x","o","o","x","x",null,null,"o","x","o","x","o","x","o","o","x","x",null,null,"o","x","o","x","o","x","o","o","x","x"]
[null,"x",null,null,null,null,null,"x",null,null,null,null,null,"x","o","x","o","x","o","x","x","o","o",null,null,"x","o","x","o","x","o","x","x","o","o",null,null,"x","o","x","o","x","o","x","x","o","o",null,null,"x","o","x","o","x","o","x","x","o","o",null,null,"x","o","x","o","x","o","x","x","o","o",null,null,"x","o","x","o","x","o","x","x","o","o"]
[null,null,null,null,"x",null,null,"x",null,null,null,null,null,"x","o","o","x","x","o","x","x","o","o",null,null,"x","o","o","x","x","o","x","x","o","o",null,null,"x","o","o","x","x","o","x","x","o","o",null,null,"x","o","o","x","x","o","x","x","o","o",null,null,"x","o","o","x","x","o","x","x","o","o",null,null,"x","o","o","x","x","o","x","x","o","o"]
[null,"o",null,null,null,"o",null,null,"o",null,null,null,null,"o","x",null,null,"o","x","o","o","x","x",null,null,"o","x",null,null,"o","x","o","o","x","x",null,null,"o","x","x","o","o","x","o","o","x","x",null,null,"o","x","x","o","o","x","o","o","x","x",null,null,"o","x","x","o","o","x","o","o","x","x",null,null,"o","x","x","o","o","x","o","o","x","x"]
[null,null,"x","x",null,null,null,"o","o",null,null,null,null,"o","x","x","o",null,"x","o","o","x",null,null,null,"o","x","x","o",null,"x","o","o","x",null,null,null,"o","x","x","o",null,"x","o","o","x",null,null,null,"o","x","x","o",null,"x","o","o","x",null,null,null,"o","x","x","o","x","x","o","o","x","o",null,null,"o","x","x","o","x","x","o","o","x","o"]
[null,null,null,null,null,null,null,null,null,null,null,null,null,"x","o",null,null,null,"o","x","x","o",null,null,null,"x","o",null,null,null,"o","x","x","o",null,null,null,"x","o",null,"x",null,"o","x","x","o",null,null,null,"x","o","o","x",null,"o","x","x","o",null,null,null,"x","o","o","x","o","o","x","x","o","x",null,null,"x","o","o","x","o","o","x","x","o","x"]
[null,null,null,null,null,null,null,null,null,null,null,null,null,"o","x",null,null,null,"o","x","o","x",null,null,null,"o","x",null,null,null,"o","x","o","x",null,null,null,"o","x",null,"o",null,"o","x","o","x",null,null,null,"o","x","x","o","x","o","x","o","x","o",null,null,"o","x","x","o","x","o","x","o","x","o",null,null,"o","x","x","o","x","o","x","o","x","o"]
[null,null,"o","o",null,null,"x",null,"x",null,"x",null,null,"x","o","o","x","o","x","o","x","o","x",null,null,"x","o","o","x","o","x","o","x","o","x",null,null,"x","o","o","x","o","x","o","x","o","x",null,null,"x","o","o","x","o","x","o","x","o","x",null,null,"x","o","o","x","o","x","o","x","o","x",null,null,"x","o","o","x","o","x","o","x","o","x"]
[null,null,null,null,"o",null,null,"o",null,null,null,null,null,null,null,null,"o","x","o","o","x",null,null,null,null,"o",null,null,"o","x","o","o","x",null,null,null,null,"o","x",null,"o","x","o","o","x",null,null,null,null,"o","x","x","o","x","o","o","x","o","x",null,null,"o","x","x","o","x","o","o","x","o","x",null,null,"o","x","x","o","x","o","o","x","o","x"]
[]
[null,"Blick am Abend, 18.08.16 (einfach)",null,null,null,null,null,null,null,null,null,null,null,null,null,null,null,null,null,null,null,null,null,null,null,"Coop-Zeitung, 17.07.18 (dreimal Zeilenregel notwendig)"]
[null,null,"o",null,null,"x",null,null,"o",null,"o",null,null,"x","o","x","o","x","x","o","o","x","o",null,null,"o",null,null,null,"o",null,null,"o",null,null,null,null,"o","x","o","x","o","x","x","o","x","o"]
[null,null,"o",null,"o",null,null,null,null,null,null,null,null,"o","o","x","o","o","x","x","o","x","x",null,null,null,null,null,null,"o",null,null,null,null,"x",null,null,"x","o","x","x","o","o","x","o","o","x"]
[null,"x",null,null,null,null,"o","o",null,null,null,null,null,"x","x","o","x","x","o","o","x","o","o",null,null,null,null,"o","o",null,"o",null,null,null,null,null,null,"x","x","o","o","x","o","o","x","x","o"]
[null,"x",null,null,null,"x",null,null,"o",null,null,null,null,"x","x","o","o","x","x","o","o","x","o",null,null,null,null,null,null,null,"x",null,"o",null,"x",null,null,"o","x","o","x","o","x","x","o","o","x"]
[null,null,"o",null,null,null,null,"x","o",null,null,null,null,"o","o","x","x","o","o","x","o","x","x",null,null,null,null,"x","o",null,null,null,null,null,null,null,null,"x","o","x","o","x","o","x","o","x","o"]
[null,null,null,null,"o",null,null,"x",null,null,"o",null,null,"x","x","o","o","x","o","x","x","o","o",null,null,"o",null,null,null,null,null,null,null,"o",null,null,null,"o","o","x","x","o","x","o","x","o","x"]
[null,null,null,"x",null,null,null,null,null,null,null,null,null,"o","o","x","x","o","x","o","x","o","x",null,null,null,null,"o",null,"x",null,null,null,null,"o",null,null,"o","x","o","o","x","x","o","x","x","o"]
[null,null,null,null,null,"x","o",null,null,null,null,null,null,"o","o","x","o","x","o","x","o","x","x",null,null,"x",null,null,null,"o",null,null,null,null,null,null,null,"x","x","o","x","o","o","x","o","o","x"]
[null,null,null,"o",null,null,null,"x",null,null,"o",null,null,"x","x","o","x","o","o","x","x","o","o",null,null,"x","o",null,null,null,null,null,null,"x",null,null,null,"x","o","x","o","x","o","o","x","x","o"]
[null,null,null,"o",null,null,null,null,null,null,null,null,null,"o","x","o","x","o","x","o","x","o","x",null,null,null,"o",null,null,null,null,null,null,null,null,null,null,"o","o","x","o","x","x","o","x","o","x"]
[]
[null,"Blick am Abend, 28.11.18 (neue Regel3a)",null,null,null,null,null,null,null,null,null,null,null,"Ab hier neue Regel 3a: zwei fast gleiche Spalten bewirken bei dritter mögliche Setzung",null,null,null,null,null,null,null,null,null,null,null,null,null,null,null,null,null,null,null,null,null,null,null,"Gespiegeltes Problem zum Zeilen-Spalten-Test"]
[null,"o","o",null,"o","x",null,null,null,null,null,null,null,"o","o","x","o","x","o","x","x","o","x",null,null,"o","o","x","o","x","o","x","x","o","x",null,null,"o",null,"x","o",null,null,"x",null,null,null,null,null,"o","o","x","o","o","x","x","o","x","x"]
[null,null,"o",null,null,null,"x","x",null,"x","x",null,null,"o","o","x","o","o","x","x","o","x","x",null,null,"o","o","x","o","o","x","x","o","x","x",null,null,"o","o",null,null,"x",null,"x",null,null,null,null,null,"o","o","x","o","x","o","x","o","x","x"]
[null,"x",null,null,null,"o",null,"o",null,"o",null,null,null,"x","x","o","x","o","x","o","x","o","o",null,null,"x","x","o","x","o","x","o","x","o","o",null,null,null,null,null,null,null,null,null,null,"o",null,null,null,"x","x","o","x","o","x","o","x","o","o"]
[null,"o",null,null,null,null,null,null,null,"x",null,null,null,"o","o","x","o","x","o","x","o","x","x",null,null,"o","o","x","o","x","o","x","o","x","x",null,null,"o",null,null,null,null,null,"x",null,"o",null,null,null,"o","o","x","o","x","o","x","x","o","x"]
[null,null,"x",null,null,null,null,null,null,null,"x",null,null,null,"x","o","x",null,null,null,null,"o","x",null,null,"o","x","o","x","o","x","o","x","o","x",null,null,"x",null,"o",null,null,null,null,null,null,null,null,null,"x","o","o","x","o","x","o","o","x","x"]
[null,null,null,null,null,null,"x",null,null,"x",null,null,null,null,"o","x","o",null,"x",null,null,"x","o",null,null,"x","o","x","o","x","x","o","o","x","o",null,null,null,"x",null,null,null,"x",null,null,null,null,null,null,"o","x","x","o","x","x","o","o","x","o"]
[null,"x","x",null,"x",null,null,null,null,null,null,null,null,"x","x","o","x",null,null,null,null,null,"o",null,null,"x","x","o","x","o","o","x","x","o","o",null,null,null,"x","o",null,null,null,null,null,"o",null,null,null,"x","x","o","x","o","o","x","x","o","o"]
[null,null,null,null,null,null,null,null,"o",null,null,null,null,null,"o","x","x","o",null,null,"o",null,"x",null,null,"o","o","x","x","o","o","x","o","x","x",null,null,null,null,null,null,null,null,null,"o",null,null,null,null,"x","o","x","o","x","o","x","o","o","x"]
[null,null,null,"o","o",null,null,"o",null,null,null,null,null,null,"x","o","o","x",null,"o",null,null,"o",null,null,"x","x","o","o","x","x","o","o","x","o",null,null,null,"x","o","x",null,"x",null,null,null,null,null,null,"o","x","o","x","o","x","o","x","x","o"]
[null,null,null,null,null,null,null,null,null,null,null,null,null,"x","x","o","x",null,null,null,null,null,"o",null,null,"x","x","o","x","x","o","o","x","o","o",null,null,null,"x",null,null,"x",null,null,null,null,null,null,null,"x","x","o","x","x","o","o","x","o","o"]
[]
[null,"Blick am Abend (mittel), 28.11.18 (nur mit Rekursion lösbar (eine Lösung))"]
[null,null,null,null,null,null,"x",null,null,null,null,null,null,"o","o","x","o","o","x","x","o","x","x"]
[null,null,"o",null,null,"o",null,null,null,"x",null,null,null,"o","o","x","x","o","x","o","o","x","x"]
[null,"x",null,null,null,null,null,"x",null,null,null,null,null,"x","x","o","o","x","o","x","x","o","o"]
[null,"x",null,null,null,null,null,"x","o",null,null,null,null,"x","o","o","x","o","o","x","o","x","x"]
[null,null,null,null,null,null,null,null,null,null,null,null,null,"o","o","x","o","x","x","o","x","o","x"]
[null,null,null,null,null,null,"o",null,null,null,"o",null,null,"o","x","x","o","x","o","x","o","x","o"]
[null,null,null,null,"x","o",null,null,null,"o","o",null,null,"x","x","o","x","o","x","o","x","o","o"]
[null,null,null,null,null,null,null,null,null,null,null,null,null,"o","o","x","o","x","o","x","x","o","x"]
[null,null,null,null,null,"o",null,"o","o",null,"o",null,null,"x","x","o","x","o","x","o","o","x","o"]
[null,"x","x",null,null,"x",null,null,null,"o","o",null,null,"x","x","o","x","x","o","o","x","o","o"]
[]
[null,"Blick am Abend (einfach), 05.12.18 (nur mit Rekursion lösbar (eine Lösung))"]
[null,"o","o",null,null,"o",null,null,null,null,"x"]
[null,null,"o","x",null,null,null,null,null,null,"x"]
[null,null,null,null,null,null,null,"o","x","o"]
[null,"o",null,null,null,null,"o",null,null,"o","x"]
[null,null,null,"o","x"]
[null,"x",null,"x","o"]
[null,"x","x",null,null,null,"x",null,null,"x"]
[null,null,"o",null,null,null,null,null,null,"x"]
[null,null,null,"o",null,null,null,"o"]
[null,null,null,null,"x","x",null,null,"x"]
[]
[null,"Schwere Aufgabe mit Dreierloch in Spalte 8 gegen volle Spalte 5",null,null,null,null,null,null,null,null,null,null,null,null,null,null,null,null,null,null,null,null,null,null,null,"Schwere Aufgabe mit Dreierloch in Zeile 8 gegen volle Zeile 5 (Transposition)"]
[null,"x","o","x","o","x","x","o","x","o","o",null,null,null,null,null,null,null,null,null,null,null,null,null,null,"x","x",null,null,null,null,"x"]
[null,"x",null,null,"x","o",null,"x",null,null,"o",null,null,null,null,null,null,null,null,null,null,null,null,null,null,"o",null,null,"x","o","o","x",null,null,"x"]
[null,null,null,"o","x","o",null,"x","o",null,"x",null,null,null,null,null,null,null,null,null,null,null,null,null,null,"x",null,"o",null,"x",null,"o","x","o"]
[null,null,"x",null,"o","x",null,"o","x","o",null,null,null,null,null,null,null,null,null,null,null,null,null,null,null,"o","x","x","o","o","x","x","o","x","o"]
[null,null,"o","x","o","x",null,null,"x",null,null,null,null,null,null,null,null,null,null,null,null,null,null,null,null,"x","o","o","x","x","o","o","x","o","x"]
[null,null,"o",null,"x","o",null,null,"o",null,null,null,null,null,null,null,null,null,null,null,null,null,null,null,null,"x",null,null,null,null,null,"o",null,null,"x"]
[null,"x","x","o","x","o","o","x","o","o","x",null,null,null,null,null,null,null,null,null,null,null,null,null,null,"o","x","x","o",null,null,"x",null,null,"o"]
[null,null,null,"x","o","x",null,null,"x",null,"o",null,null,null,null,null,null,null,null,null,null,null,null,null,null,"x",null,"o","x","x","o","o","x"]
[null,null,null,"o","x","o",null,null,null,null,"x",null,null,null,null,null,null,null,null,null,null,null,null,null,null,"o",null,null,"o",null,null,"o"]
[null,null,"x",null,"o","x","x","o",null,null,"o",null,null,null,null,null,null,null,null,null,null,null,null,null,null,"o","o","x",null,null,null,"x","o","x","o"]
[]
[null,"Blick am Abend (einfach), 05.12.18"]
[null,"o","o",null,null,"o",null,null,null,null,"x"]
[null,null,"o","x",null,null,null,null,null,null,"x"]
[null,null,null,null,null,null,null,"o","x","o"]
[null,"o",null,null,null,null,"o",null,null,"o","x"]
[null,null,null,"o","x"]
[null,"x",null,"x","o"]
[null,"x","x",null,null,null,"x",null,null,"x"]
[null,null,"o",null,null,null,null,null,null,"x"]
[null,null,null,"o",null,null,null,"o"]
[null,null,null,null,"x","x",null,null,"x"]
[]
[null,"Blick am Abend (mittel), 05.12.18"]
[null,null,null,null,null,null,null,null,"x"]
[null,null,null,"x",null,null,"x"]
[null,"x",null,null,"o",null,null,"x",null,"o"]
[null,null,null,null,null,null,null,"x","o"]
[null,null,null,"o"]
[null,null,null,null,null,null,null,null,"o",null,"o"]
[null,null,"o",null,null,null,"x",null,null,null,"o"]
[null,null,"o"]
[null,"x",null,null,null,"o",null,"o"]
[null,null,"x",null,null,null,"o","o",null,null,"o"]
[]
[null,"Blick am Abend (einfach), 06.12.18",null,null,null,null,null,null,null,null,null,null,null,"Lösung"]
[null,null,"o",null,null,null,"o",null,null,null,null,null,null,"x","o","o","x","o","o","x","o","x","x"]
[null,null,null,null,"x",null,null,null,"x",null,"x",null,null,"x","o","o","x","o","x","o","x","o","x"]
[null,null,null,"x",null,"x",null,"o",null,null,null,null,null,"o","x","x","o","x","o","o","x","x","o"]
[null,null,"o",null,null,null,null,null,null,null,"x",null,null,"o","o","x","o","o","x","x","o","x","x"]
[null,null,"o",null,"x",null,null,null,"o","o",null,null,null,"x","o","o","x","x","o","x","o","o","x"]
[null,"o",null,"x",null,"x","x",null,null,null,null,null,null,"o","x","x","o","x","x","o","x","o","o"]
[null,null,null,"o",null,null,null,"x",null,"x",null,null,null,"o","x","o","x","o","x","x","o","x","o"]
[null,"x","o",null,"o","x",null,null,null,null,null,null,null,"x","o","x","o","x","o","o","x","o","x"]
[null,null,null,"x",null,"x","x",null,null,null,null,null,null,"o","x","x","o","x","x","o","o","x","o"]
[null,"x",null,null,null,null,null,null,null,null,null,null,null,"x","x","o","x","o","o","x","x","o","o"]
[]
[null,"Blick am Abend (mittel), 06.12.18"]
[null,null,"o"]
[null,null,null,null,"o",null,null,"x",null,"x"]
[null,null,null,null,null,"x"]
[null,null,null,null,"o",null,null,null,null,null,"x"]
[null,null,null,null,null,null,null,"o",null,"o","x"]
[null,"o",null,null,"o",null,"o",null,"x"]
[null,null,"x"]
[null,null,null,null,null,"o","x"]
[null,null,null,null,null,"o",null,null,null,"o","o"]
[null,null,null,"o",null,null,null,null,null,"o","o"]
[]
[null,"Beobachter, 07.12.18"]
[null,null,null,null,null,null,null,null,"o"]
[null,null,null,"o",null,"o",null,null,null,"x"]
[null,null,null,"o","o",null,null,"x"]
[null,null,"x",null,null,null,"x",null,"x"]
[null,null,null,null,null,"o",null,null,null,"o"]
[null,null,null,"x",null,null,null,null,"x"]
[null,null,null,null,null,null,null,"o"]
[null,"o",null,"o",null,null,"o",null,null,"x","o"]
[null,null,null,"o",null,null,"x",null,null,null,"o"]
[null,null,null,null,null,"x",null,null,null,"x"]
[null,null,null,null,null,null,null,null,null,null,null,null,null,"Elementare Lösung (hier induziertes Paar in Spalte 4!)"]
[null,"Blick am Abend, 07.12.18 (einfach)",null,null,null,null,null,null,null,null,null,null,null,null,null,null,null,null,null,null,null,null,null,null,null,"Lösung mit Rekursion resp. mit induzierten Paaren"]
[null,"x",null,null,"x",null,null,"x",null,"x",null,null,null,"x",null,null,"x","o",null,"x","o","x",null,null,null,"x","o","o","x","o","o","x","o","x","x"]
[null,null,null,null,null,null,null,null,"o","x",null,null,null,"o",null,null,null,null,null,"x","o","x",null,null,null,"o","o","x","o","o","x","x","o","x","x"]
[null,null,null,null,null,null,null,"o","x",null,null,null,null,"o",null,null,null,null,null,"o","x","o",null,null,null,"o","x","x","o","x","x","o","x","o","o"]
[null,null,null,null,"x","o",null,null,null,null,null,null,null,"x",null,"o","x","o",null,"x",null,null,null,null,null,"x","o","o","x","o","o","x","x","o","x"]
[null,null,null,null,null,"x","x",null,null,null,"x",null,null,"o","o","x","o","x","x","o",null,null,"x",null,null,"o","o","x","o","x","x","o","o","x","x"]
[null,null,"x","x",null,null,null,"x",null,null,null,null,null,"o","x","x","o","x","o","x","x","o","o",null,null,"o","x","x","o","x","o","x","x","o","o"]
[null,null,null,"o","x",null,"x",null,"o",null,"o",null,null,"x","x","o","x","o","x","o","o","x","o",null,null,"x","x","o","x","o","x","o","o","x","o"]
[null,null,null,null,null,null,null,null,null,null,"x",null,null,"o","o","x",null,null,"o","x","x","o","x",null,null,"o","o","x","x","o","o","x","x","o","x"]
[null,"x",null,"o",null,null,null,"o","o",null,null,null,null,"x",null,"o",null,null,"x","o","o","x",null,null,null,"x","x","o","o","x","x","o","o","x","o"]
[null,"x","x",null,null,null,"o","o",null,null,"o",null,null,"x","x","o","x","x","o","o","x","o","o",null,null,"x","x","o","x","x","o","o","x","o","o"]
[]
[null,"Blick am Abend, 07.12.18 (mittel)",null,null,null,null,null,null,null,null,null,null,null,"Elementare Lösung",null,null,null,null,null,null,null,null,null,null,null,"Lösung mit Rekursion"]
[null,"o",null,null,null,null,"x",null,"o",null,"x",null,null,"o",null,"x",null,null,"x",null,"o",null,"x",null,null,"o","o","x","o","o","x","x","o","x","x"]
[null,null,null,null,"o",null,null,null,null,null,null,null,null,null,null,"x","o",null,null,null,null,null,null,null,null,"o","o","x","o","x","o","x","o","x","x"]
[null,null,null,"o",null,"o",null,null,null,"o",null,null,null,null,null,"o","x","o",null,null,null,"o",null,null,null,"x","x","o","x","o","x","o","x","o","o"]
[null,null,null,null,null,null,null,"x",null,null,null,null,null,"x",null,null,null,null,null,"x",null,null,null,null,null,"x","o","o","x","o","o","x","o","x","x"]
[null,"o",null,"x",null,null,null,null,null,null,null,null,null,"o",null,"x",null,null,null,null,null,null,null,null,null,"o","o","x","o","x","x","o","x","o","x"]
[null,"o",null,null,"o",null,"x",null,null,null,"o",null,null,"o",null,null,"o",null,"x",null,null,null,"o",null,null,"o","x","x","o","x","x","o","o","x","o"]
[null,null,"x",null,null,null,null,null,"x",null,null,null,null,"x","x","o",null,null,"o",null,"x",null,null,null,null,"x","x","o","x","o","o","x","x","o","o"]
[null,null,null,null,"x",null,null,"o",null,null,null,null,null,null,"o","x","x","o","x","o","o","x",null,null,null,"o","o","x","x","o","x","o","o","x","x"]
[null,null,null,"o",null,null,null,null,"x","o",null,null,null,null,null,"o",null,null,null,null,"x","o",null,null,null,"x","x","o","o","x","o","x","x","o","o"]
[null,null,"x","o",null,"x","o",null,null,"o",null,null,null,"x","x","o",null,"x","o",null,null,"o",null,null,null,"x","x","o","x","x","o","o","x","o","o"]
[]
[null,"Blick am Abend, 10.12.18 (einfach) Regeln 3 und 3b)"]
[null,null,"x","o",null,"x","o",null,null,null,"o",null,null,"x","x","o","o","x","o","x","o","x","o"]
[null,null,null,null,null,null,null,null,null,null,null,null,null,"x","o","o","x","o","x","o","x","o","x"]
[null,"o",null,null,null,null,null,null,null,"x",null,null,null,"o","o","x","o","x","o","x","o","x","x"]
[null,"o",null,"o","o",null,null,null,null,null,"o",null,null,"o","x","o","o","x","x","o","x","x","o"]
[null,null,null,null,null,"o","x",null,null,null,"o",null,null,"x","o","x","x","o","x","o","x","o","o"]
[null,null,null,null,null,"o",null,null,null,"x",null,null,null,"o","o","x","x","o","o","x","o","x","x"]
[null,"o",null,"o",null,null,"o",null,"x",null,null,null,null,"o","x","o","o","x","o","x","x","o","x"]
[null,null,null,null,null,null,"x",null,null,null,null,null,null,"x","o","x","x","o","x","o","o","x","o"]
[null,null,"x",null,null,null,null,null,null,null,null,null,null,"o","x","x","o","o","x","x","o","o","x"]
[null,null,null,"o",null,"x",null,"o","x",null,"o",null,null,"x","x","o","x","x","o","o","x","o","o"]
[]
[null,"Blick am Abend, 10.12.18 (mittel) Regeln 3 und 3b)"]
[null,null,null,null,null,null,null,null,"o","o",null,null,null,"x","o","o","x","x","o","x","o","o","x"]
[null,null,null,null,"o","o",null,null,"x",null,null,null,null,"o","x","x","o","o","x","o","x","x","o"]
[null,null,null,"x",null,"x",null,null,null,null,null,null,null,"o","o","x","o","x","o","x","x","o","x"]
[null,null,null,null,null,null,null,null,null,"x","o",null,null,"x","o","o","x","x","o","x","o","x","o"]
[null,null,"x",null,null,null,"x",null,null,"x",null,null,null,"o","x","x","o","o","x","o","o","x","x"]
[null,null,null,"x",null,null,"x",null,null,null,"x",null,null,"o","o","x","o","x","x","o","x","o","x"]
[null,null,"x",null,null,"o",null,null,"o",null,null,null,null,"x","x","o","x","o","o","x","o","x","o"]
[null,null,"o",null,null,null,null,null,null,null,null,null,null,"o","o","x","x","o","o","x","x","o","x"]
[null,"x",null,null,null,"x","x",null,null,"x",null,null,null,"x","x","o","o","x","x","o","o","x","o"]
[null,null,"x",null,"x",null,"x",null,null,null,"o",null,null,"x","x","o","x","o","x","o","x","o","o"]
[]
[null,"Blick am Abend, 11.12.18 (einfach) Regeln 3 und 3b)"]
[null,null,null,"o",null,null,"o",null,"o",null,"x",null,null,"x","o","o","x","o","o","x","o","x","x"]
[null,null,"x",null,"o",null,null,null,"o","o",null,null,null,"x","x","o","o","x","o","x","o","o","x"]
[null,"o",null,null,null,null,null,null,null,null,null,null,null,"o","o","x","x","o","x","o","x","x","o"]
[null,null,null,"x",null,"x",null,"x","x",null,null,null,null,"o","o","x","o","x","o","x","x","o","x"]
[null,null,null,null,null,null,null,null,null,"x","o",null,null,"x","x","o","x","o","o","x","o","x","o"]
[null,"o",null,null,"o",null,null,null,"x",null,null,null,null,"o","o","x","o","x","x","o","x","o","x"]
[null,null,"x",null,null,"x",null,null,"x","x",null,null,null,"o","x","o","o","x","x","o","x","x","o"]
[null,null,"o",null,"x",null,null,null,null,null,null,null,null,"x","o","x","x","o","o","x","o","o","x"]
[null,null,"x",null,null,null,null,null,null,"o",null,null,null,"o","x","x","o","x","x","o","x","o","o"]
[null,null,null,"o",null,null,null,null,null,null,null,null,null,"x","x","o","x","o","x","o","o","x","o"]
[]
[null,"Blick am Abend, 11.12.18 (mittel) Regeln 3 und 3a)"]
[null,"o",null,null,null,null,"o",null,"x",null,null,null,null,"o","o","x","o","x","o","x","x","o","x"]
[null,null,null,null,null,null,null,"x",null,null,null,null,null,"o","o","x","o","o","x","x","o","x","x"]
[null,null,null,null,null,null,null,null,"x",null,null,null,null,"x","x","o","x","x","o","o","x","o","o"]
[null,null,null,null,null,null,"x",null,null,null,null,null,null,"x","o","o","x","o","x","o","o","x","x"]
[null,"o",null,null,null,null,null,null,null,null,null,null,null,"o","o","x","o","x","o","x","o","x","x"]
[null,null,"x","x",null,null,null,null,"x",null,"o",null,null,"o","x","x","o","x","x","o","x","o","o"]
[null,null,"x",null,null,"o","o",null,null,null,"o",null,null,"x","x","o","x","o","o","x","o","x","o"]
[null,"o",null,null,"x",null,null,null,null,"o",null,null,null,"o","o","x","x","o","o","x","x","o","x"]
[null,null,null,"o",null,null,"x",null,"x",null,null,null,null,"x","x","o","o","x","x","o","x","o","o"]
[null,null,"x",null,null,"o",null,null,null,null,null,null,null,"x","x","o","x","o","x","o","o","x","o"]
[]
[null,"Blick am Abend, 12.12.18 (einfach) (Regeln 3, 3a und 3b)"]
[null,"x",null,null,null,null,"o",null,null,null,"o",null,null,"x","x","o","o","x","o","x","o","x","o"]
[null,null,null,"o",null,null,null,null,"o",null,null,null,null,"o","x","o","o","x","x","o","o","x","x"]
[null,null,null,"x","x",null,"o",null,null,"o",null,null,null,"x","o","x","x","o","o","x","x","o","o"]
[null,"o",null,null,null,null,null,"x",null,"x",null,null,null,"o","o","x","o","o","x","x","o","x","x"]
[null,null,null,null,null,null,"o",null,null,"o",null,null,null,"o","x","o","x","x","o","o","x","o","x"]
[null,null,"o",null,null,"x","o",null,null,"x",null,null,null,"x","o","x","o","x","o","x","o","x","o"]
[null,null,"o",null,null,null,null,"o","x",null,null,null,null,"o","o","x","x","o","x","o","x","o","x"]
[null,null,null,null,null,null,null,"x","x",null,null,null,null,"o","x","o","o","x","o","x","x","o","x"]
[null,"x","o",null,"x","o",null,null,null,"x",null,null,null,"x","o","x","x","o","x","o","o","x","o"]
[null,"x",null,"o","x",null,null,null,null,"o","o",null,null,"x","x","o","x","o","x","o","x","o","o"]
[]
[null,"Blick am Abend, 12.12.18 (mittel) (so weit wie möglich)(Extremlage in Zeile 4 und Spalte 8)",null,null,null,null,null,null,null,null,null,null,null,null,null,null,null,null,null,null,null,null,null,null,null,null,"hier mit Extremlagenanwendung"]
[null,null,"o",null,null,"x",null,null,null,"x","x",null,null,"o","o","x","o","x",null,null,"o","x","x",null,null,"o","o","x","o","x","o","x","o","x","x"]
[null,null,"o",null,null,"x",null,"o","o",null,null,null,null,null,"o","x","o","x","x","o","o","x",null,null,null,null,"o","x","o","x","x","o","o","x"]
[null,null,null,null,null,null,null,null,null,null,null,null,null,null,"x","o","x","o",null,null,"x","o",null,null,null,null,"x","o","x","o","o","x","x","o"]
[null,"o",null,null,null,null,null,null,null,null,"o",null,null,"o","o","x",null,null,null,null,null,null,"o",null,null,"o","o","x",null,null,"x","o","x","x","o"]
[null,null,"x",null,null,null,"x",null,null,null,null,null,null,null,"x",null,null,null,"x",null,null,null,null,null,null,null,"x",null,null,null,"x",null,"o"]
[null,null,null,null,null,"x",null,null,null,null,null,null,null,null,null,null,null,"x",null,null,null,null,null,null,null,null,null,null,null,"x","o"]
[null,null,null,null,null,null,null,null,null,null,"x",null,null,null,null,null,null,"o",null,null,null,null,"x",null,null,null,null,null,null,"o","x","o",null,null,"x"]
[null,null,null,"x","x",null,"o",null,null,null,null,null,null,null,"o","x","x","o","o","x",null,null,null,null,null,null,"o","x","x","o","o","x"]
[null,"x","x",null,null,null,null,null,"o",null,null,null,null,"x","x","o","o","x",null,null,"o",null,null,null,null,"x","x","o","o","x",null,null,"o"]
[null,null,null,null,null,null,null,null,null,null,null,null,null,null,"x","o","x","o",null,null,null,null,null,null,null,null,"x","o","x","o",null,null,"x"]
[]
[null,"Blick am Abend, 14.12.18 (einfach) so weit wie möglich gelöst."]
[null,null,"o",null,null,"x",null,"x",null,null,"x",null,null,null,"o",null,null,"x","o","x",null,null,"x"]
[null,null,"o",null,"o",null,null,"x","x",null,"x",null,null,"o","o","x","o","x","o","x","x","o","x"]
[null,null,null,null,null,null,null,null,null,"x",null,null,null,null,"x","o","x","o","x","o",null,"x","o"]
[null,null,"o","x",null,"o",null,"x",null,"o","x",null,null,null,"o","x",null,"o",null,"x",null,"o","x"]
[null,"o",null,null,null,"x",null,null,null,null,null,null,null,"o","x","o",null,"x",null,null,"x",null,"o"]
[null,null,null,"x",null,null,null,null,"o",null,null,null,null,null,null,"x",null,null,null,null,"o","x","o"]
[null,null,null,null,null,"o",null,null,"o",null,"x",null,null,null,null,null,null,"o",null,null,"o",null,"x"]
[null,null,"x","o",null,null,null,"x",null,"o",null,null,null,null,"x","o",null,null,"o","x","x","o"]
[null,null,null,null,null,null,"x","o",null,"x",null,null,null,null,"o","x",null,null,"x","o",null,"x"]
[null,null,"x",null,"x",null,null,null,null,null,null,null,null,null,"x","o","x",null,null,"o"]
[]
[null,"Blick am Abend, 14.12.18 (mittel) so weit wie möglich gelöst."]
[null,null,"o","o",null,null,"o",null,null,null,null,null,null,"x","o","o","x",null,"o","x","o",null,"x"]
[null,null,null,null,null,null,null,null,null,null,null,null,null,null,null,"x","o",null,null,null,"x"]
[null,null,null,null,null,null,null,null,null,null,null,null,null,null,null,"o","x",null,null,null,"x",null,"o"]
[null,null,null,"x","o",null,null,null,"o","o",null,null,null,null,null,"x","o",null,null,"x","o","o","x"]
[null,null,null,"x",null,null,null,null,null,null,"x",null,null,null,null,"x","o",null,"x","o","o","x","x"]
[null,null,null,null,null,"o",null,null,null,null,null,null,null,"x","x","o","x","o","o","x","x","o","o"]
[null,null,null,null,null,null,"x",null,"o",null,null,null,null,null,null,"x","o","x","x","o","o","x"]
[null,null,null,null,"o","o",null,null,null,null,null,null,null,null,null,"x","o","o","x","x","o",null,"x"]
[null,"x","x",null,null,null,null,null,null,null,null,null,null,"x","x","o","x","x","o","o","x","o","o"]
[null,null,null,"o",null,"o",null,null,null,null,"o",null,null,null,null,"o","x","o",null,null,"x",null,"o"]
[]
[null,"Blick am Abend, 17.12.18 (einfach) so weit wie möglich gelöst."]
[null,"o","o",null,"o",null,null,"x","x",null,null,null,null,"o","o","x","o","x","o","x","x","o","x"]
[null,"o","o",null,"o","x",null,null,"x","o",null,null,null,"o","o","x","o","x","x","o","x","o","x"]
[null,null,null,null,null,null,null,null,null,"x",null,null,null,"x","x","o","x","o",null,null,"o","x","o"]
[null,"o",null,null,null,null,null,null,null,null,null,null,null,"o","o","x","o",null,null,null,"o","x","x"]
[null,null,null,null,"x","x",null,null,"x","o",null,null,null,"o","x","o","x","x","o",null,"x","o"]
[null,"x",null,null,null,null,null,null,"o",null,"o",null,null,"x","o","x",null,null,null,null,"o","x","o"]
[null,"x","x",null,null,null,null,"o",null,null,null,null,null,"x","x","o",null,null,null,"o","x"]
[null,null,null,null,null,null,null,null,"o",null,null,null,null,"o",null,"x",null,null,null,null,"o"]
[null,null,null,"o","x",null,"x",null,null,"x",null,null,null,"x",null,"o","x","o","x",null,null,"x"]
[null,"x",null,null,null,null,null,null,null,"o",null,null,null,"x","x","o",null,null,null,null,null,"o"]
[]
[null,"Blick am Abend, 17.12.18 (mittel) so weit wie möglich gelöst."]
[null,"o","o",null,"o",null,null,null,"o",null,null,null,null,"o","o","x","o",null,null,null,"o","x","x"]
[null,null,null,null,"x","x",null,null,"x",null,null,null,null,null,"x","o","x","x","o",null,"x"]
[null,null,"o",null,null,null,null,"o",null,null,null,null,null,"x","o",null,null,"o","x","o"]
[null,"o","o",null,"o","x",null,null,null,null,null,null,null,"o","o","x","o","x","o","x",null,null,"x"]
[null,"o",null,null,"x",null,null,"o",null,null,null,null,null,"o","x","o","x",null,null,"o"]
[null,null,null,"x",null,null,null,null,null,null,"o",null,null,"x","o","x","o",null,null,null,null,null,"o"]
[null,null,null,null,"x",null,null,null,null,null,null,null,null,null,"x","o","x"]
[null,null,null,"x",null,"o",null,null,null,null,null,null,null,null,"o","x","x","o","o","x"]
[null,null,null,null,null,null,"x",null,"o",null,null,null,null,null,"x",null,"o",null,"x",null,"o"]
[null,"x",null,null,null,null,"x",null,null,"o",null,null,null,"x","x","o",null,null,"x","o","x","o","o"]
[]
[null,"Blick am Abend, 18.12.18 (einfach) so weit wie möglich gelöst.",null,null,null,null,null,null,null,null,null,null,null,null,null,null,null,null,null,null,null,null,null,null,null,"Blick am Abend, 18.12.18 (mittel) (elementar lösbar)"]
[null,null,null,null,null,"o",null,null,null,null,"x",null,null,null,null,null,null,"o","x","x","o",null,"x",null,null,null,null,null,null,null,"x",null,"o",null,null,null,null,"x","o","x","o","o","x","o","o","x","x"]
[null,"o","o",null,null,null,null,null,"o",null,"x",null,null,"o","o","x","o","x","o","x","o","x","x",null,null,null,"x",null,null,"x",null,"x",null,null,null,null,null,"o","x","o","o","x","o","x","x","o","x"]
[null,null,"x",null,"x",null,"o",null,null,null,null,null,null,"x","x","o","x","x","o","o","x","o","o",null,null,null,null,null,null,null,null,"x","o",null,null,null,null,"o","x","o","x","o","x","x","o","x","o"]
[null,"o",null,null,null,"o",null,"o",null,"x",null,null,null,"o",null,"x",null,"o","x","o",null,"x",null,null,null,"x",null,null,"o","o",null,null,null,null,"o",null,null,"x","o","x","o","o","x","o","x","x","o"]
[null,null,null,"o",null,null,"o",null,"o",null,null,null,null,null,null,"o",null,"x","o","x","o",null,"x",null,null,"x",null,null,null,null,null,null,"o",null,null,null,null,"x","o","o","x","x","o","x","o","o","x"]
[null,null,null,null,null,"o",null,"o",null,null,"o",null,null,"x","o",null,"x","o","x","o",null,null,"o",null,null,null,null,null,null,null,"o","x",null,null,null,null,null,"o","x","x","o","x","o","x","o","x","o"]
[null,"o",null,null,"o","x",null,null,null,null,"o",null,null,"o","x","x","o","x","o","x",null,null,"o",null,null,"o","o",null,null,null,null,null,null,"o",null,null,null,"o","o","x","x","o","x","o","x","o","x"]
[null,null,"x",null,null,null,null,"o",null,null,null,null,null,"o","x","o","o","x","x","o","o","x","x",null,null,null,null,null,null,null,null,null,null,null,"x",null,null,"x","o","o","x","o","o","x","o","x","x"]
[null,"x",null,null,null,"o","x",null,"x",null,null,null,null,"x","o",null,"x","o","x","o","x",null,null,null,null,"o",null,null,null,null,null,"o",null,"o",null,null,null,"o","x","x","o","x","x","o","x","o","o"]
[null,null,null,null,null,"o",null,null,"x",null,null,null,null,null,null,null,"x","o","o","x","x","o",null,null,null,null,null,null,"x",null,"o",null,null,"o",null,null,null,"x","x","o","x","x","o","o","x","o","o"]

{"sheet":"Tabelle3","index":3,"n_rows":20,"n_cols":10,"rows_kept":20,"cut":false,"hidden":false,"merged":[]}
[]
[]
[]
[]
[]
[]
[]
[]
[]
[]
[null,null,null,null,"o",null,null,null,null,"x"]
["o","o",null,null,null,null,null,"o",null,"x"]
[null,"x",null,"x",null,"o"]
["o",null,null,null,"o",null,"o",null,"x"]
[null,null,"o",null,null,"o",null,"o"]
[null,null,null,null,"o",null,"o",null,null,"o"]
["o",null,null,"o","x",null,null,null,null,"o"]
[null,"x",null,null,null,null,"o"]
["x",null,null,null,"o","x",null,"x"]
[null,null,null,null,"o",null,null,"x"]

{"sheet":"Tabelle4","index":4,"n_rows":12,"n_cols":16,"rows_kept":12,"cut":false,"hidden":false,"merged":[]}
["Liste sämtlicher Lösungen",null,null,null,null,null,null,null,null,null,null,null,null,null,null,"(Tiefstes erreichtes Rekursionsniveau: 1)"]
["o","o","x","o","o","x","x","o","x","x"]
["o","o","x","o","x","o","x","o","x","x"]
["x","x","o","x","x","o","o","x","o","o"]
["o","o","x","x","o","x","o","o","x","x"]
["x","x","o","o","x","o","x","o","o","x"]
["x","o","o","x","o","x","o","x","x","o"]
["o","x","x","o","x","o","x","x","o","o"]
["o","x","o","o","x","x","o","o","x","x"]
["x","o","x","x","o","x","o","x","o","o"]
["x","x","o","x","o","o","x","x","o","o"]
["Rekursionsniveau:",null,null,null,null,null,1]